{"text_format":"3","workbook":"xlsx","n_sheets":4,"sheets":["Введення даних","Результат","Підбір підіймачів","Імена"],"not_rendered":{"images":1,"macros":1,"defined_names":3,"comments":2},"read":"whole","date_system":"1900"}

{"sheet":"Введення даних","index":0,"n_rows":16,"n_cols":10,"rows_kept":16,"merged":[[1,7,1,9],[3,1,3,3],[5,1,5,3],[5,9,5,11],[6,1,6,3],[6,5,6,7],[6,9,6,11],[8,1,8,3],[8,5,8,7],[8,9,8,11],[9,1,9,3],[9,5,9,7],[9,9,9,11],[11,1,11,3],[11,5,11,7],[11,9,11,11],[12,1,12,3],[12,5,12,7],[12,9,12,11],[14,1,14,3],[15,1,15,3],[17,5,17,7],[18,5,18,7],[21,5,21,7],[22,5,22,7]]}
[]
[null,"Форма введення даних"]
[]
[null,"Габарити корпусу",{"$nulls":3},"Параметри фасаду",{"$nulls":3},"Вага фасаду"]
[]
[null,"Висота фасаду [мм]",{"$nulls":3},"Матеріал фасаду",{"$nulls":3},"Розрахунок ваги фасаду"]
[null,500,{"$nulls":3},"МДФ",{"$nulls":3},"Автоматичний"]
[]
[null,"Ширина корпусу [мм]",{"$nulls":3},"Щільність матеріалу [кг/м3]",{"$nulls":3},"Вага фасаду [кг, розрахунок]"]
[null,600,{"$nulls":3},{"$f":"IFERROR(VLOOKUP(F7,material_list[#Data],2,FALSE),\" - \")","v":770},{"$nulls":3},{"$f":"IF(OR(F13=\"\",F13<0),\"Введіть вагу ручки\",(B7/1000)*(B10/1000)*(B16/1000)*F10)","v":{"v":4.388999999999999,"d":"4.39"}}]
[]
[null,"Внутрішня глибина корпусу [мм]",{"$nulls":3},"Вага ручки [грам]",{"$nulls":3},"Вага фасаду [кг, ручне введення]"]
[null,280,{"$nulls":3},150]
[]
[null,"Товщина фасаду [мм]"]
[null,19]

{"sheet":"Результат","index":1,"n_rows":17,"n_cols":10,"rows_kept":17}
[]
[]
[]
[]
[null,"Висота фасаду, мм",{"$f":"'Введення даних'!B7","v":500},{"$nulls":3},"Ширина корпусу: ≤600 мм",null,"Ширина корпусу більше 600 мм"]
[null,"Ширина корпусу, мм",{"$f":"'Введення даних'!B10","v":600},null,"Тип","Кут","1 комплет, лівий або правий",null,"2 комплекти, лівий + правий"]
[null,"Внутрішня глибина корпусу, мм",{"$f":"'Введення даних'!B13","v":280},null,"відкривання","відкривання","Рекомендована","Альтернативна","Рекомендована","Альтернативна"]
[null,"Товщина фасаду, мм",{"$f":"IF(C12=\"Ручне введення\",\" - \",'Введення даних'!B16)","v":19},null,"Standard",75,{"$f":"IF($C$6>600,\" - \",IFERROR(INDEX(rawdata[Model],MATCH(Результат!$E8&Результат!$F8&LARGE(IF(rawdata[Opening type]=E8,IF(rawdata[Opening angle]=Результат!$F8,rawdata[FWq 1])),1),rawdata[Opening type]&rawdata[Opening angle]&rawdata[FWq 1],0)),\" - \"))","v":"B"},{"$f":"IF($C$6>600,\" - \",IFERROR(INDEX(rawdata[Model],MATCH(Результат!$E8&Результат!$F8&LARGE(IF(rawdata[Opening type]=E8,IF(rawdata[Opening angle]=Результат!$F8,rawdata[FWq 1])),2),rawdata[Opening type]&rawdata[Opening angle]&rawdata[FWq 1],0)),\" - \"))","v":" - "},{"$f":"IFERROR(INDEX(rawdata[Model],MATCH(Результат!$E8&Результат!$F8&LARGE(IF(rawdata[Opening type]=E8,IF(rawdata[Opening angle]=Результат!$F8,rawdata[FWq 2])),1),rawdata[Opening type]&rawdata[Opening angle]&rawdata[FWq 2],0)),\" - \")","v":"A"},{"$f":"IFERROR(INDEX(rawdata[Model],MATCH(Результат!$E8&Результат!$F8&LARGE(IF(rawdata[Opening type]=E8,IF(rawdata[Opening angle]=Результат!$F8,rawdata[FWq 2])),2),rawdata[Opening type]&rawdata[Opening angle]&rawdata[FWq 2],0)),\" - \")","v":" - "}]
[null,"Матеріал фасаду",{"$f":"IF(C12=\"Ручне введення\",\" - \",'Введення даних'!F7)","v":"МДФ"},null,"Standard",90,{"$f":"IF($C$6>600,\" - \",IFERROR(INDEX(rawdata[Model],MATCH(Результат!$E9&Результат!$F9&LARGE(IF(rawdata[Opening type]=E9,IF(rawdata[Opening angle]=Результат!$F9,rawdata[FWq 1])),1),rawdata[Opening type]&rawdata[Opening angle]&rawdata[FWq 1],0)),\" - \"))","v":"D"},{"$f":"IF($C$6>600,\" - \",IFERROR(INDEX(rawdata[Model],MATCH(Результат!$E9&Результат!$F9&LARGE(IF(rawdata[Opening type]=E9,IF(rawdata[Opening angle]=Результат!$F9,rawdata[FWq 1])),2),rawdata[Opening type]&rawdata[Opening angle]&rawdata[FWq 1],0)),\" - \"))","v":" - "},{"$f":"IFERROR(INDEX(rawdata[Model],MATCH(Результат!$E9&Результат!$F9&LARGE(IF(rawdata[Opening type]=E9,IF(rawdata[Opening angle]=Результат!$F9,rawdata[FWq 2])),1),rawdata[Opening type]&rawdata[Opening angle]&rawdata[FWq 2],0)),\" - \")","v":"B"},{"$f":"IFERROR(INDEX(rawdata[Model],MATCH(Результат!$E9&Результат!$F9&LARGE(IF(rawdata[Opening type]=E9,IF(rawdata[Opening angle]=Результат!$F9,rawdata[FWq 2])),2),rawdata[Opening type]&rawdata[Opening angle]&rawdata[FWq 2],0)),\" - \")","v":" - "}]
[null,"Щільність матеріалу, кг/м3",{"$f":"IF(C12=\"Ручне введення\",\" - \",'Введення даних'!F10)","v":770},null,"Standard",110,{"$f":"IF($C$6>600,\" - \",IFERROR(INDEX(rawdata[Model],MATCH(Результат!$E10&Результат!$F10&LARGE(IF(rawdata[Opening type]=E10,IF(rawdata[Opening angle]=Результат!$F10,rawdata[FWq 1])),1),rawdata[Opening type]&rawdata[Opening angle]&rawdata[FWq 1],0)),\" - \"))","v":" - "},{"$f":"IF($C$6>600,\" - \",IFERROR(INDEX(rawdata[Model],MATCH(Результат!$E10&Результат!$F10&LARGE(IF(rawdata[Opening type]=E10,IF(rawdata[Opening angle]=Результат!$F10,rawdata[FWq 1])),2),rawdata[Opening type]&rawdata[Opening angle]&rawdata[FWq 1],0)),\" - \"))","v":" - "},{"$f":"IFERROR(INDEX(rawdata[Model],MATCH(Результат!$E10&Результат!$F10&LARGE(IF(rawdata[Opening type]=E10,IF(rawdata[Opening angle]=Результат!$F10,rawdata[FWq 2])),1),rawdata[Opening type]&rawdata[Opening angle]&rawdata[FWq 2],0)),\" - \")","v":"B"},{"$f":"IFERROR(INDEX(rawdata[Model],MATCH(Результат!$E10&Результат!$F10&LARGE(IF(rawdata[Opening type]=E10,IF(rawdata[Opening angle]=Результат!$F10,rawdata[FWq 2])),2),rawdata[Opening type]&rawdata[Opening angle]&rawdata[FWq 2],0)),\" - \")","v":" - "}]
[null,"Вага ручки, грам",{"$f":"'Введення даних'!F13","v":150},null,"Touch opening",75,{"$f":"IF($C$6>600,\" - \",IFERROR(INDEX(rawdata[Model],MATCH(Результат!$E11&Результат!$F11&LARGE(IF(rawdata[Opening type]=E11,IF(rawdata[Opening angle]=Результат!$F11,rawdata[FWq 1])),1),rawdata[Opening type]&rawdata[Opening angle]&rawdata[FWq 1],0)),\" - \"))","v":"C*"},{"$f":"IF($C$6>600,\" - \",IFERROR(INDEX(rawdata[Model],MATCH(Результат!$E11&Результат!$F11&LARGE(IF(rawdata[Opening type]=E11,IF(rawdata[Opening angle]=Результат!$F11,rawdata[FWq 1])),2),rawdata[Opening type]&rawdata[Opening angle]&rawdata[FWq 1],0)),\" - \"))","v":" - "},{"$f":"IFERROR(INDEX(rawdata[Model],MATCH(Результат!$E11&Результат!$F11&LARGE(IF(rawdata[Opening type]=E11,IF(rawdata[Opening angle]=Результат!$F11,rawdata[FWq 2])),1),rawdata[Opening type]&rawdata[Opening angle]&rawdata[FWq 2],0)),\" - \")","v":" - "},{"$f":"IFERROR(INDEX(rawdata[Model],MATCH(Результат!$E11&Результат!$F11&LARGE(IF(rawdata[Opening type]=E11,IF(rawdata[Opening angle]=Результат!$F11,rawdata[FWq 2])),2),rawdata[Opening type]&rawdata[Opening angle]&rawdata[FWq 2],0)),\" - \")","v":" - "}]
[null,"Розрахунок ваги фасаду",{"$f":"'Введення даних'!J7:L7","v":"Автоматичний"},null,"Touch opening",90,{"$f":"IF($C$6>600,\" - \",IFERROR(INDEX(rawdata[Model],MATCH(Результат!$E12&Результат!$F12&LARGE(IF(rawdata[Opening type]=E12,IF(rawdata[Opening angle]=Результат!$F12,rawdata[FWq 1])),1),rawdata[Opening type]&rawdata[Opening angle]&rawdata[FWq 1],0)),\" - \"))","v":"D"},{"$f":"IF($C$6>600,\" - \",IFERROR(INDEX(rawdata[Model],MATCH(Результат!$E12&Результат!$F12&LARGE(IF(rawdata[Opening type]=E12,IF(rawdata[Opening angle]=Результат!$F12,rawdata[FWq 1])),2),rawdata[Opening type]&rawdata[Opening angle]&rawdata[FWq 1],0)),\" - \"))","v":" - "},{"$f":"IFERROR(INDEX(rawdata[Model],MATCH(Результат!$E12&Результат!$F12&LARGE(IF(rawdata[Opening type]=E12,IF(rawdata[Opening angle]=Результат!$F12,rawdata[FWq 2])),1),rawdata[Opening type]&rawdata[Opening angle]&rawdata[FWq 2],0)),\" - \")","v":"B"},{"$f":"IFERROR(INDEX(rawdata[Model],MATCH(Результат!$E12&Результат!$F12&LARGE(IF(rawdata[Opening type]=E12,IF(rawdata[Opening angle]=Результат!$F12,rawdata[FWq 2])),2),rawdata[Opening type]&rawdata[Opening angle]&rawdata[FWq 2],0)),\" - \")","v":" - "}]
[null,"Вага фасаду без ручки, кг",{"$f":"IF('Введення даних'!J7=\"Автоматичний\",'Введення даних'!J10,IF(OR('Введення даних'!J13=\"\",'Введення даних'!J13=0),\"Введіть вагу\",'Введення даних'!J13))","v":{"v":4.388999999999999,"d":"4.39"}},null,"Touch opening",110,{"$f":"IF($C$6>600,\" - \",IFERROR(INDEX(rawdata[Model],MATCH(Результат!$E13&Результат!$F13&LARGE(IF(rawdata[Opening type]=E13,IF(rawdata[Opening angle]=Результат!$F13,rawdata[FWq 1])),1),rawdata[Opening type]&rawdata[Opening angle]&rawdata[FWq 1],0)),\" - \"))","v":" - "},{"$f":"IF($C$6>600,\" - \",IFERROR(INDEX(rawdata[Model],MATCH(Результат!$E13&Результат!$F13&LARGE(IF(rawdata[Opening type]=E13,IF(rawdata[Opening angle]=Результат!$F13,rawdata[FWq 1])),2),rawdata[Opening type]&rawdata[Opening angle]&rawdata[FWq 1],0)),\" - \"))","v":" - "},{"$f":"IFERROR(INDEX(rawdata[Model],MATCH(Результат!$E13&Результат!$F13&LARGE(IF(rawdata[Opening type]=E13,IF(rawdata[Opening angle]=Результат!$F13,rawdata[FWq 2])),1),rawdata[Opening type]&rawdata[Opening angle]&rawdata[FWq 2],0)),\" - \")","v":"C"},{"$f":"IFERROR(INDEX(rawdata[Model],MATCH(Результат!$E13&Результат!$F13&LARGE(IF(rawdata[Opening type]=E13,IF(rawdata[Opening angle]=Результат!$F13,rawdata[FWq 2])),2),rawdata[Opening type]&rawdata[Opening angle]&rawdata[FWq 2],0)),\" - \")","v":"B"}]
[null,"Вага фасаду з ручкою, кг",{"$f":"IFERROR(IF(C13=\"Введіть вагу\",\"Введіть вагу\",C13+'Введення даних'!F13/1000),C13)","v":{"v":4.539,"d":"4.54"}},null,"Push-to-open",75,{"$f":"IF($C$6>600,\" - \",IFERROR(INDEX(rawdata[Model],MATCH(Результат!$E14&Результат!$F14&LARGE(IF(rawdata[Opening type]=E14,IF(rawdata[Opening angle]=Результат!$F14,rawdata[FWq 1])),1),rawdata[Opening type]&rawdata[Opening angle]&rawdata[FWq 1],0)),\" - \"))","v":"D"},{"$f":"IF($C$6>600,\" - \",IFERROR(INDEX(rawdata[Model],MATCH(Результат!$E14&Результат!$F14&LARGE(IF(rawdata[Opening type]=E14,IF(rawdata[Opening angle]=Результат!$F14,rawdata[FWq 1])),2),rawdata[Opening type]&rawdata[Opening angle]&rawdata[FWq 1],0)),\" - \"))","v":" - "},{"$f":"IFERROR(INDEX(rawdata[Model],MATCH(Результат!$E14&Результат!$F14&LARGE(IF(rawdata[Opening type]=E14,IF(rawdata[Opening angle]=Результат!$F14,rawdata[FWq 2])),1),rawdata[Opening type]&rawdata[Opening angle]&rawdata[FWq 2],0)),\" - \")","v":"B"},{"$f":"IFERROR(INDEX(rawdata[Model],MATCH(Результат!$E14&Результат!$F14&LARGE(IF(rawdata[Opening type]=E14,IF(rawdata[Opening angle]=Результат!$F14,rawdata[FWq 2])),2),rawdata[Opening type]&rawdata[Opening angle]&rawdata[FWq 2],0)),\" - \")","v":" - "}]
[{"$nulls":4},"Push-to-open",90,{"$f":"IF($C$6>600,\" - \",IFERROR(INDEX(rawdata[Model],MATCH(Результат!$E15&Результат!$F15&LARGE(IF(rawdata[Opening type]=E15,IF(rawdata[Opening angle]=Результат!$F15,rawdata[FWq 1])),1),rawdata[Opening type]&rawdata[Opening angle]&rawdata[FWq 1],0)),\" - \"))","v":" - "},{"$f":"IF($C$6>600,\" - \",IFERROR(INDEX(rawdata[Model],MATCH(Результат!$E15&Результат!$F15&LARGE(IF(rawdata[Opening type]=E15,IF(rawdata[Opening angle]=Результат!$F15,rawdata[FWq 1])),2),rawdata[Opening type]&rawdata[Opening angle]&rawdata[FWq 1],0)),\" - \"))","v":" - "},{"$f":"IFERROR(INDEX(rawdata[Model],MATCH(Результат!$E15&Результат!$F15&LARGE(IF(rawdata[Opening type]=E15,IF(rawdata[Opening angle]=Результат!$F15,rawdata[FWq 2])),1),rawdata[Opening type]&rawdata[Opening angle]&rawdata[FWq 2],0)),\" - \")","v":"C"},{"$f":"IFERROR(INDEX(rawdata[Model],MATCH(Результат!$E15&Результат!$F15&LARGE(IF(rawdata[Opening type]=E15,IF(rawdata[Opening angle]=Результат!$F15,rawdata[FWq 2])),2),rawdata[Opening type]&rawdata[Opening angle]&rawdata[FWq 2],0)),\" - \")","v":"D"}]
[{"$nulls":4},"Push-to-open",110,{"$f":"IF($C$6>600,\" - \",IFERROR(INDEX(rawdata[Model],MATCH(Результат!$E16&Результат!$F16&LARGE(IF(rawdata[Opening type]=E16,IF(rawdata[Opening angle]=Результат!$F16,rawdata[FWq 1])),1),rawdata[Opening type]&rawdata[Opening angle]&rawdata[FWq 1],0)),\" - \"))","v":" - "},{"$f":"IF($C$6>600,\" - \",IFERROR(INDEX(rawdata[Model],MATCH(Результат!$E16&Результат!$F16&LARGE(IF(rawdata[Opening type]=E16,IF(rawdata[Opening angle]=Результат!$F16,rawdata[FWq 1])),2),rawdata[Opening type]&rawdata[Opening angle]&rawdata[FWq 1],0)),\" - \"))","v":" - "},{"$f":"IFERROR(INDEX(rawdata[Model],MATCH(Результат!$E16&Результат!$F16&LARGE(IF(rawdata[Opening type]=E16,IF(rawdata[Opening angle]=Результат!$F16,rawdata[FWq 2])),1),rawdata[Opening type]&rawdata[Opening angle]&rawdata[FWq 2],0)),\" - \")","v":"D"},{"$f":"IFERROR(INDEX(rawdata[Model],MATCH(Результат!$E16&Результат!$F16&LARGE(IF(rawdata[Opening type]=E16,IF(rawdata[Opening angle]=Результат!$F16,rawdata[FWq 2])),2),rawdata[Opening type]&rawdata[Opening angle]&rawdata[FWq 2],0)),\" - \")","v":" - "}]
[{"$nulls":4},"* 356.06.460/461 + 356.06.470/471"]

{"sheet":"Підбір підіймачів","index":2,"n_rows":192,"n_cols":16,"rows_kept":192,"hidden":true}
[]
[null,"Висота фасаду, мм",{"$f":"'Введення даних'!B7","v":500},null,"Алгоритм підбору підіймачів"]
[null,"Ширина корпусу, мм",{"$f":"'Введення даних'!B10","v":600},null,"Крок 1. Пошук моделей із співпадінням по вазі та висоті фасаду."]
[null,"Внутрішня глибина корпусу, мм",{"$f":"'Введення даних'!B13","v":280},null,"Крок 2. Розрахунок коефіцієнту, який показує на скільки вага фасаду співвідноситься із діапазоном"]
[null,"Товщина фасаду, мм",{"$f":"'Введення даних'!B16","v":19},null,"мінімальної та максимальної ваги для конретної моделі та кута відкривання."]
[null,"Матеріал фасаду",{"$f":"'Введення даних'!F7","v":"МДФ"},null,"Крок 3.1. Для 1го комплекту. Пошук моделі підіймача з найвищим коефіцієнтом співвідношення (індекс 1)."]
[null,"Щільність матеріалу, кг/м3",{"$f":"'Введення даних'!F10","v":770},null,"Крок 3.2. Для 2х комплекту. Пошук моделі підіймача з найнижчим коефіцієнтом співвідношення (індекс 1)."]
[null,"Вага ручки, грам",{"$f":"'Введення даних'!F13","v":150}]
[null,"Вага фасаду без ручки, кг",{"$f":"Результат!C13","v":{"v":4.388999999999999,"d":"4.39"}}]
[null,"Вага фасаду з ручкою, кг",{"$f":"Результат!C14","v":{"v":4.539,"d":"4.54"}}]
[{"$nulls":8},"Q висоти фасаду",{"$f":"LARGE(IF(J13:J192<=1,J13:J192),1)","v":{"v":1,"d":"1.00"}},{"$nulls":5},{"$f":"LARGE(IF(rawdata[FWq 1]<=1,rawdata[FWq 1]),1)","v":{"v":0.25327066390796665,"d":"25.33%"}}]
[null,"Opening type","Opening angle","KH","KDmin","Model","FW","FWmin","FWmax","FHq","Fhmatch 1","FWq 1","Fhmatch 2","Fwmin 2","FWmax 2","FWq 2"]
[null,"Standard",75,350,165,"A",{"$f":"IF(rawdata[[#This Row],[Opening type]]=\"Standard\",$C$10,$C$9)","v":{"v":4.539,"d":"4.54"}},2.6,4.2,{"$f":"$C$2/D13","v":{"v":1.4285714285714286,"d":"1.43"}},{"$f":"IF(AND($C$4>=rawdata[[#This Row],[KDmin]],$J$11=rawdata[[#This Row],[FHq]],rawdata[[#This Row],[FW]]>=rawdata[[#This Row],[FWmin]],rawdata[[#This Row],[FW]]<=rawdata[[#This Row],[FWmax]]),\"YES\",\" - \")","v":" - "},{"$f":"IF(rawdata[[#This Row],[Fhmatch 1]]=\"YES\",((1-rawdata[[#This Row],[FWmin]]/rawdata[[#This Row],[FW]])+(1-rawdata[[#This Row],[FW]]/rawdata[[#This Row],[FWmax]]))/2,\"\")","v":""},{"$f":"IF(AND($C$4>=rawdata[[#This Row],[KDmin]],$J$11=rawdata[[#This Row],[FHq]],rawdata[[#This Row],[FW]]/2>=rawdata[[#This Row],[FWmin]],rawdata[[#This Row],[FW]]/2<=rawdata[[#This Row],[FWmax]]),\"YES\",\" - \")","v":" - "},{"$f":"IFERROR(rawdata[[#This Row],[FWmin]]*2,\" - \")","v":5.2},{"$f":"IFERROR(rawdata[[#This Row],[FWmax]]*2,\" - \")","v":8.4},{"$f":"IF(rawdata[[#This Row],[Fhmatch 2]]=\"YES\",((1-rawdata[[#This Row],[Fwmin 2]]/rawdata[[#This Row],[FW]])+(1-rawdata[[#This Row],[FW]]/rawdata[[#This Row],[FWmax 2]]))/2,\"\")","v":""}]
[null,"Standard",75,350,165,"B",{"$f":"IF(rawdata[[#This Row],[Opening type]]=\"Standard\",$C$10,$C$9)","v":{"v":4.539,"d":"4.54"}},3.8,6.5,{"v":1.4285714285714286,"d":"1.43"},{"$f":"IF(AND($C$4>=rawdata[[#This Row],[KDmin]],$J$11=rawdata[[#This Row],[FHq]],rawdata[[#This Row],[FW]]>=rawdata[[#This Row],[FWmin]],rawdata[[#This Row],[FW]]<=rawdata[[#This Row],[FWmax]]),\"YES\",\" - \")","v":" - "},{"$f":"IF(rawdata[[#This Row],[Fhmatch 1]]=\"YES\",((1-rawdata[[#This Row],[FWmin]]/rawdata[[#This Row],[FW]])+(1-rawdata[[#This Row],[FW]]/rawdata[[#This Row],[FWmax]]))/2,\"\")","v":""},{"$f":"IF(AND($C$4>=rawdata[[#This Row],[KDmin]],$J$11=rawdata[[#This Row],[FHq]],rawdata[[#This Row],[FW]]/2>=rawdata[[#This Row],[FWmin]],rawdata[[#This Row],[FW]]/2<=rawdata[[#This Row],[FWmax]]),\"YES\",\" - \")","v":" - "},{"$f":"IFERROR(rawdata[[#This Row],[FWmin]]*2,\" - \")","v":7.6},{"$f":"IFERROR(rawdata[[#This Row],[FWmax]]*2,\" - \")","v":{"v":13,"d":"13.0"}},{"$f":"IF(rawdata[[#This Row],[Fhmatch 2]]=\"YES\",((1-rawdata[[#This Row],[Fwmin 2]]/rawdata[[#This Row],[FW]])+(1-rawdata[[#This Row],[FW]]/rawdata[[#This Row],[FWmax 2]]))/2,\"\")","v":""}]
[null,"Standard",75,350,165,"D",{"$f":"IF(rawdata[[#This Row],[Opening type]]=\"Standard\",$C$10,$C$9)","v":{"v":4.539,"d":"4.54"}},6.2,10.9,{"v":1.4285714285714286,"d":"1.43"},{"$f":"IF(AND($C$4>=rawdata[[#This Row],[KDmin]],$J$11=rawdata[[#This Row],[FHq]],rawdata[[#This Row],[FW]]>=rawdata[[#This Row],[FWmin]],rawdata[[#This Row],[FW]]<=rawdata[[#This Row],[FWmax]]),\"YES\",\" - \")","v":" - "},{"$f":"IF(rawdata[[#This Row],[Fhmatch 1]]=\"YES\",((1-rawdata[[#This Row],[FWmin]]/rawdata[[#This Row],[FW]])+(1-rawdata[[#This Row],[FW]]/rawdata[[#This Row],[FWmax]]))/2,\"\")","v":""},{"$f":"IF(AND($C$4>=rawdata[[#This Row],[KDmin]],$J$11=rawdata[[#This Row],[FHq]],rawdata[[#This Row],[FW]]/2>=rawdata[[#This Row],[FWmin]],rawdata[[#This Row],[FW]]/2<=rawdata[[#This Row],[FWmax]]),\"YES\",\" - \")","v":" - "},{"$f":"IFERROR(rawdata[[#This Row],[FWmin]]*2,\" - \")","v":12.4},{"$f":"IFERROR(rawdata[[#This Row],[FWmax]]*2,\" - \")","v":21.8},{"$f":"IF(rawdata[[#This Row],[Fhmatch 2]]=\"YES\",((1-rawdata[[#This Row],[Fwmin 2]]/rawdata[[#This Row],[FW]])+(1-rawdata[[#This Row],[FW]]/rawdata[[#This Row],[FWmax 2]]))/2,\"\")","v":""}]
[null,"Standard",75,400,165,"A",{"$f":"IF(rawdata[[#This Row],[Opening type]]=\"Standard\",$C$10,$C$9)","v":{"v":4.539,"d":"4.54"}},2.3,3.3,1.25,{"$f":"IF(AND($C$4>=rawdata[[#This Row],[KDmin]],$J$11=rawdata[[#This Row],[FHq]],rawdata[[#This Row],[FW]]>=rawdata[[#This Row],[FWmin]],rawdata[[#This Row],[FW]]<=rawdata[[#This Row],[FWmax]]),\"YES\",\" - \")","v":" - "},{"$f":"IF(rawdata[[#This Row],[Fhmatch 1]]=\"YES\",((1-rawdata[[#This Row],[FWmin]]/rawdata[[#This Row],[FW]])+(1-rawdata[[#This Row],[FW]]/rawdata[[#This Row],[FWmax]]))/2,\"\")","v":""},{"$f":"IF(AND($C$4>=rawdata[[#This Row],[KDmin]],$J$11=rawdata[[#This Row],[FHq]],rawdata[[#This Row],[FW]]/2>=rawdata[[#This Row],[FWmin]],rawdata[[#This Row],[FW]]/2<=rawdata[[#This Row],[FWmax]]),\"YES\",\" - \")","v":" - "},{"$f":"IFERROR(rawdata[[#This Row],[FWmin]]*2,\" - \")","v":4.6},{"$f":"IFERROR(rawdata[[#This Row],[FWmax]]*2,\" - \")","v":6.6},{"$f":"IF(rawdata[[#This Row],[Fhmatch 2]]=\"YES\",((1-rawdata[[#This Row],[Fwmin 2]]/rawdata[[#This Row],[FW]])+(1-rawdata[[#This Row],[FW]]/rawdata[[#This Row],[FWmax 2]]))/2,\"\")","v":""}]
[null,"Standard",75,400,165,"B",{"$f":"IF(rawdata[[#This Row],[Opening type]]=\"Standard\",$C$10,$C$9)","v":{"v":4.539,"d":"4.54"}},{"v":3,"d":"3.0"},5.8,1.25,{"$f":"IF(AND($C$4>=rawdata[[#This Row],[KDmin]],$J$11=rawdata[[#This Row],[FHq]],rawdata[[#This Row],[FW]]>=rawdata[[#This Row],[FWmin]],rawdata[[#This Row],[FW]]<=rawdata[[#This Row],[FWmax]]),\"YES\",\" - \")","v":" - "},{"$f":"IF(rawdata[[#This Row],[Fhmatch 1]]=\"YES\",((1-rawdata[[#This Row],[FWmin]]/rawdata[[#This Row],[FW]])+(1-rawdata[[#This Row],[FW]]/rawdata[[#This Row],[FWmax]]))/2,\"\")","v":""},{"$f":"IF(AND($C$4>=rawdata[[#This Row],[KDmin]],$J$11=rawdata[[#This Row],[FHq]],rawdata[[#This Row],[FW]]/2>=rawdata[[#This Row],[FWmin]],rawdata[[#This Row],[FW]]/2<=rawdata[[#This Row],[FWmax]]),\"YES\",\" - \")","v":" - "},{"$f":"IFERROR(rawdata[[#This Row],[FWmin]]*2,\" - \")","v":{"v":6,"d":"6.0"}},{"$f":"IFERROR(rawdata[[#This Row],[FWmax]]*2,\" - \")","v":11.6},{"$f":"IF(rawdata[[#This Row],[Fhmatch 2]]=\"YES\",((1-rawdata[[#This Row],[Fwmin 2]]/rawdata[[#This Row],[FW]])+(1-rawdata[[#This Row],[FW]]/rawdata[[#This Row],[FWmax 2]]))/2,\"\")","v":""}]
[null,"Standard",75,400,165,"D",{"$f":"IF(rawdata[[#This Row],[Opening type]]=\"Standard\",$C$10,$C$9)","v":{"v":4.539,"d":"4.54"}},5.6,10.2,1.25,{"$f":"IF(AND($C$4>=rawdata[[#This Row],[KDmin]],$J$11=rawdata[[#This Row],[FHq]],rawdata[[#This Row],[FW]]>=rawdata[[#This Row],[FWmin]],rawdata[[#This Row],[FW]]<=rawdata[[#This Row],[FWmax]]),\"YES\",\" - \")","v":" - "},{"$f":"IF(rawdata[[#This Row],[Fhmatch 1]]=\"YES\",((1-rawdata[[#This Row],[FWmin]]/rawdata[[#This Row],[FW]])+(1-rawdata[[#This Row],[FW]]/rawdata[[#This Row],[FWmax]]))/2,\"\")","v":""},{"$f":"IF(AND($C$4>=rawdata[[#This Row],[KDmin]],$J$11=rawdata[[#This Row],[FHq]],rawdata[[#This Row],[FW]]/2>=rawdata[[#This Row],[FWmin]],rawdata[[#This Row],[FW]]/2<=rawdata[[#This Row],[FWmax]]),\"YES\",\" - \")","v":" - "},{"$f":"IFERROR(rawdata[[#This Row],[FWmin]]*2,\" - \")","v":11.2},{"$f":"IFERROR(rawdata[[#This Row],[FWmax]]*2,\" - \")","v":20.4},{"$f":"IF(rawdata[[#This Row],[Fhmatch 2]]=\"YES\",((1-rawdata[[#This Row],[Fwmin 2]]/rawdata[[#This Row],[FW]])+(1-rawdata[[#This Row],[FW]]/rawdata[[#This Row],[FWmax 2]]))/2,\"\")","v":""}]
[null,"Standard",75,450,165,"A",{"$f":"IF(rawdata[[#This Row],[Opening type]]=\"Standard\",$C$10,$C$9)","v":{"v":4.539,"d":"4.54"}},2.2,3.1,{"v":1.1111111111111112,"d":"1.11"},{"$f":"IF(AND($C$4>=rawdata[[#This Row],[KDmin]],$J$11=rawdata[[#This Row],[FHq]],rawdata[[#This Row],[FW]]>=rawdata[[#This Row],[FWmin]],rawdata[[#This Row],[FW]]<=rawdata[[#This Row],[FWmax]]),\"YES\",\" - \")","v":" - "},{"$f":"IF(rawdata[[#This Row],[Fhmatch 1]]=\"YES\",((1-rawdata[[#This Row],[FWmin]]/rawdata[[#This Row],[FW]])+(1-rawdata[[#This Row],[FW]]/rawdata[[#This Row],[FWmax]]))/2,\"\")","v":""},{"$f":"IF(AND($C$4>=rawdata[[#This Row],[KDmin]],$J$11=rawdata[[#This Row],[FHq]],rawdata[[#This Row],[FW]]/2>=rawdata[[#This Row],[FWmin]],rawdata[[#This Row],[FW]]/2<=rawdata[[#This Row],[FWmax]]),\"YES\",\" - \")","v":" - "},{"$f":"IFERROR(rawdata[[#This Row],[FWmin]]*2,\" - \")","v":4.4},{"$f":"IFERROR(rawdata[[#This Row],[FWmax]]*2,\" - \")","v":6.2},{"$f":"IF(rawdata[[#This Row],[Fhmatch 2]]=\"YES\",((1-rawdata[[#This Row],[Fwmin 2]]/rawdata[[#This Row],[FW]])+(1-rawdata[[#This Row],[FW]]/rawdata[[#This Row],[FWmax 2]]))/2,\"\")","v":""}]
[null,"Standard",75,450,165,"B",{"$f":"IF(rawdata[[#This Row],[Opening type]]=\"Standard\",$C$10,$C$9)","v":{"v":4.539,"d":"4.54"}},2.7,{"v":4.36,"d":"4.4"},{"v":1.1111111111111112,"d":"1.11"},{"$f":"IF(AND($C$4>=rawdata[[#This Row],[KDmin]],$J$11=rawdata[[#This Row],[FHq]],rawdata[[#This Row],[FW]]>=rawdata[[#This Row],[FWmin]],rawdata[[#This Row],[FW]]<=rawdata[[#This Row],[FWmax]]),\"YES\",\" - \")","v":" - "},{"$f":"IF(rawdata[[#This Row],[Fhmatch 1]]=\"YES\",((1-rawdata[[#This Row],[FWmin]]/rawdata[[#This Row],[FW]])+(1-rawdata[[#This Row],[FW]]/rawdata[[#This Row],[FWmax]]))/2,\"\")","v":""},{"$f":"IF(AND($C$4>=rawdata[[#This Row],[KDmin]],$J$11=rawdata[[#This Row],[FHq]],rawdata[[#This Row],[FW]]/2>=rawdata[[#This Row],[FWmin]],rawdata[[#This Row],[FW]]/2<=rawdata[[#This Row],[FWmax]]),\"YES\",\" - \")","v":" - "},{"$f":"IFERROR(rawdata[[#This Row],[FWmin]]*2,\" - \")","v":5.4},{"$f":"IFERROR(rawdata[[#This Row],[FWmax]]*2,\" - \")","v":{"v":8.72,"d":"8.7"}},{"$f":"IF(rawdata[[#This Row],[Fhmatch 2]]=\"YES\",((1-rawdata[[#This Row],[Fwmin 2]]/rawdata[[#This Row],[FW]])+(1-rawdata[[#This Row],[FW]]/rawdata[[#This Row],[FWmax 2]]))/2,\"\")","v":""}]
[null,"Standard",75,450,165,"D",{"$f":"IF(rawdata[[#This Row],[Opening type]]=\"Standard\",$C$10,$C$9)","v":{"v":4.539,"d":"4.54"}},5.5,9.7,{"v":1.1111111111111112,"d":"1.11"},{"$f":"IF(AND($C$4>=rawdata[[#This Row],[KDmin]],$J$11=rawdata[[#This Row],[FHq]],rawdata[[#This Row],[FW]]>=rawdata[[#This Row],[FWmin]],rawdata[[#This Row],[FW]]<=rawdata[[#This Row],[FWmax]]),\"YES\",\" - \")","v":" - "},{"$f":"IF(rawdata[[#This Row],[Fhmatch 1]]=\"YES\",((1-rawdata[[#This Row],[FWmin]]/rawdata[[#This Row],[FW]])+(1-rawdata[[#This Row],[FW]]/rawdata[[#This Row],[FWmax]]))/2,\"\")","v":""},{"$f":"IF(AND($C$4>=rawdata[[#This Row],[KDmin]],$J$11=rawdata[[#This Row],[FHq]],rawdata[[#This Row],[FW]]/2>=rawdata[[#This Row],[FWmin]],rawdata[[#This Row],[FW]]/2<=rawdata[[#This Row],[FWmax]]),\"YES\",\" - \")","v":" - "},{"$f":"IFERROR(rawdata[[#This Row],[FWmin]]*2,\" - \")","v":{"v":11,"d":"11.0"}},{"$f":"IFERROR(rawdata[[#This Row],[FWmax]]*2,\" - \")","v":19.4},{"$f":"IF(rawdata[[#This Row],[Fhmatch 2]]=\"YES\",((1-rawdata[[#This Row],[Fwmin 2]]/rawdata[[#This Row],[FW]])+(1-rawdata[[#This Row],[FW]]/rawdata[[#This Row],[FWmax 2]]))/2,\"\")","v":""}]
[null,"Standard",75,500,165,"A",{"$f":"IF(rawdata[[#This Row],[Opening type]]=\"Standard\",$C$10,$C$9)","v":{"v":4.539,"d":"4.54"}},1.7,2.8,{"v":1,"d":"1.00"},{"$f":"IF(AND($C$4>=rawdata[[#This Row],[KDmin]],$J$11=rawdata[[#This Row],[FHq]],rawdata[[#This Row],[FW]]>=rawdata[[#This Row],[FWmin]],rawdata[[#This Row],[FW]]<=rawdata[[#This Row],[FWmax]]),\"YES\",\" - \")","v":" - "},{"$f":"IF(rawdata[[#This Row],[Fhmatch 1]]=\"YES\",((1-rawdata[[#This Row],[FWmin]]/rawdata[[#This Row],[FW]])+(1-rawdata[[#This Row],[FW]]/rawdata[[#This Row],[FWmax]]))/2,\"\")","v":""},{"$f":"IF(AND($C$4>=rawdata[[#This Row],[KDmin]],$J$11=rawdata[[#This Row],[FHq]],rawdata[[#This Row],[FW]]/2>=rawdata[[#This Row],[FWmin]],rawdata[[#This Row],[FW]]/2<=rawdata[[#This Row],[FWmax]]),\"YES\",\" - \")","v":"YES"},{"$f":"IFERROR(rawdata[[#This Row],[FWmin]]*2,\" - \")","v":3.4},{"$f":"IFERROR(rawdata[[#This Row],[FWmax]]*2,\" - \")","v":5.6},{"$f":"IF(rawdata[[#This Row],[Fhmatch 2]]=\"YES\",((1-rawdata[[#This Row],[Fwmin 2]]/rawdata[[#This Row],[FW]])+(1-rawdata[[#This Row],[FW]]/rawdata[[#This Row],[FWmax 2]]))/2,\"\")","v":{"v":0.22020030765115034,"d":"22.02%"}}]
[null,"Standard",75,500,165,"B",{"$f":"IF(rawdata[[#This Row],[Opening type]]=\"Standard\",$C$10,$C$9)","v":{"v":4.539,"d":"4.54"}},2.3,4.6,{"v":1,"d":"1.00"},{"$f":"IF(AND($C$4>=rawdata[[#This Row],[KDmin]],$J$11=rawdata[[#This Row],[FHq]],rawdata[[#This Row],[FW]]>=rawdata[[#This Row],[FWmin]],rawdata[[#This Row],[FW]]<=rawdata[[#This Row],[FWmax]]),\"YES\",\" - \")","v":"YES"},{"$f":"IF(rawdata[[#This Row],[Fhmatch 1]]=\"YES\",((1-rawdata[[#This Row],[FWmin]]/rawdata[[#This Row],[FW]])+(1-rawdata[[#This Row],[FW]]/rawdata[[#This Row],[FWmax]]))/2,\"\")","v":{"v":0.25327066390796665,"d":"25.33%"}},{"$f":"IF(AND($C$4>=rawdata[[#This Row],[KDmin]],$J$11=rawdata[[#This Row],[FHq]],rawdata[[#This Row],[FW]]/2>=rawdata[[#This Row],[FWmin]],rawdata[[#This Row],[FW]]/2<=rawdata[[#This Row],[FWmax]]),\"YES\",\" - \")","v":" - "},{"$f":"IFERROR(rawdata[[#This Row],[FWmin]]*2,\" - \")","v":4.6},{"$f":"IFERROR(rawdata[[#This Row],[FWmax]]*2,\" - \")","v":9.2},{"$f":"IF(rawdata[[#This Row],[Fhmatch 2]]=\"YES\",((1-rawdata[[#This Row],[Fwmin 2]]/rawdata[[#This Row],[FW]])+(1-rawdata[[#This Row],[FW]]/rawdata[[#This Row],[FWmax 2]]))/2,\"\")","v":""}]
[null,"Standard",75,500,165,"D",{"$f":"IF(rawdata[[#This Row],[Opening type]]=\"Standard\",$C$10,$C$9)","v":{"v":4.539,"d":"4.54"}},4.6,8.5,{"v":1,"d":"1.00"},{"$f":"IF(AND($C$4>=rawdata[[#This Row],[KDmin]],$J$11=rawdata[[#This Row],[FHq]],rawdata[[#This Row],[FW]]>=rawdata[[#This Row],[FWmin]],rawdata[[#This Row],[FW]]<=rawdata[[#This Row],[FWmax]]),\"YES\",\" - \")","v":" - "},{"$f":"IF(rawdata[[#This Row],[Fhmatch 1]]=\"YES\",((1-rawdata[[#This Row],[FWmin]]/rawdata[[#This Row],[FW]])+(1-rawdata[[#This Row],[FW]]/rawdata[[#This Row],[FWmax]]))/2,\"\")","v":""},{"$f":"IF(AND($C$4>=rawdata[[#This Row],[KDmin]],$J$11=rawdata[[#This Row],[FHq]],rawdata[[#This Row],[FW]]/2>=rawdata[[#This Row],[FWmin]],rawdata[[#This Row],[FW]]/2<=rawdata[[#This Row],[FWmax]]),\"YES\",\" - \")","v":" - "},{"$f":"IFERROR(rawdata[[#This Row],[FWmin]]*2,\" - \")","v":9.2},{"$f":"IFERROR(rawdata[[#This Row],[FWmax]]*2,\" - \")","v":{"v":17,"d":"17.0"}},{"$f":"IF(rawdata[[#This Row],[Fhmatch 2]]=\"YES\",((1-rawdata[[#This Row],[Fwmin 2]]/rawdata[[#This Row],[FW]])+(1-rawdata[[#This Row],[FW]]/rawdata[[#This Row],[FWmax 2]]))/2,\"\")","v":""}]
[null,"Standard",75,550,165,"A",{"$f":"IF(rawdata[[#This Row],[Opening type]]=\"Standard\",$C$10,$C$9)","v":{"v":4.539,"d":"4.54"}},1.6,2.6,{"v":0.9090909090909091,"d":"0.91"},{"$f":"IF(AND($C$4>=rawdata[[#This Row],[KDmin]],$J$11=rawdata[[#This Row],[FHq]],rawdata[[#This Row],[FW]]>=rawdata[[#This Row],[FWmin]],rawdata[[#This Row],[FW]]<=rawdata[[#This Row],[FWmax]]),\"YES\",\" - \")","v":" - "},{"$f":"IF(rawdata[[#This Row],[Fhmatch 1]]=\"YES\",((1-rawdata[[#This Row],[FWmin]]/rawdata[[#This Row],[FW]])+(1-rawdata[[#This Row],[FW]]/rawdata[[#This Row],[FWmax]]))/2,\"\")","v":""},{"$f":"IF(AND($C$4>=rawdata[[#This Row],[KDmin]],$J$11=rawdata[[#This Row],[FHq]],rawdata[[#This Row],[FW]]/2>=rawdata[[#This Row],[FWmin]],rawdata[[#This Row],[FW]]/2<=rawdata[[#This Row],[FWmax]]),\"YES\",\" - \")","v":" - "},{"$f":"IFERROR(rawdata[[#This Row],[FWmin]]*2,\" - \")","v":3.2},{"$f":"IFERROR(rawdata[[#This Row],[FWmax]]*2,\" - \")","v":5.2},{"$f":"IF(rawdata[[#This Row],[Fhmatch 2]]=\"YES\",((1-rawdata[[#This Row],[Fwmin 2]]/rawdata[[#This Row],[FW]])+(1-rawdata[[#This Row],[FW]]/rawdata[[#This Row],[FWmax 2]]))/2,\"\")","v":""}]
[null,"Standard",75,550,165,"B",{"$f":"IF(rawdata[[#This Row],[Opening type]]=\"Standard\",$C$10,$C$9)","v":{"v":4.539,"d":"4.54"}},2.2,4.2,{"v":0.9090909090909091,"d":"0.91"},{"$f":"IF(AND($C$4>=rawdata[[#This Row],[KDmin]],$J$11=rawdata[[#This Row],[FHq]],rawdata[[#This Row],[FW]]>=rawdata[[#This Row],[FWmin]],rawdata[[#This Row],[FW]]<=rawdata[[#This Row],[FWmax]]),\"YES\",\" - \")","v":" - "},{"$f":"IF(rawdata[[#This Row],[Fhmatch 1]]=\"YES\",((1-rawdata[[#This Row],[FWmin]]/rawdata[[#This Row],[FW]])+(1-rawdata[[#This Row],[FW]]/rawdata[[#This Row],[FWmax]]))/2,\"\")","v":""},{"$f":"IF(AND($C$4>=rawdata[[#This Row],[KDmin]],$J$11=rawdata[[#This Row],[FHq]],rawdata[[#This Row],[FW]]/2>=rawdata[[#This Row],[FWmin]],rawdata[[#This Row],[FW]]/2<=rawdata[[#This Row],[FWmax]]),\"YES\",\" - \")","v":" - "},{"$f":"IFERROR(rawdata[[#This Row],[FWmin]]*2,\" - \")","v":4.4},{"$f":"IFERROR(rawdata[[#This Row],[FWmax]]*2,\" - \")","v":8.4},{"$f":"IF(rawdata[[#This Row],[Fhmatch 2]]=\"YES\",((1-rawdata[[#This Row],[Fwmin 2]]/rawdata[[#This Row],[FW]])+(1-rawdata[[#This Row],[FW]]/rawdata[[#This Row],[FWmax 2]]))/2,\"\")","v":""}]
[null,"Standard",75,550,165,"D",{"$f":"IF(rawdata[[#This Row],[Opening type]]=\"Standard\",$C$10,$C$9)","v":{"v":4.539,"d":"4.54"}},4.1,6.6,{"v":0.9090909090909091,"d":"0.91"},{"$f":"IF(AND($C$4>=rawdata[[#This Row],[KDmin]],$J$11=rawdata[[#This Row],[FHq]],rawdata[[#This Row],[FW]]>=rawdata[[#This Row],[FWmin]],rawdata[[#This Row],[FW]]<=rawdata[[#This Row],[FWmax]]),\"YES\",\" - \")","v":" - "},{"$f":"IF(rawdata[[#This Row],[Fhmatch 1]]=\"YES\",((1-rawdata[[#This Row],[FWmin]]/rawdata[[#This Row],[FW]])+(1-rawdata[[#This Row],[FW]]/rawdata[[#This Row],[FWmax]]))/2,\"\")","v":""},{"$f":"IF(AND($C$4>=rawdata[[#This Row],[KDmin]],$J$11=rawdata[[#This Row],[FHq]],rawdata[[#This Row],[FW]]/2>=rawdata[[#This Row],[FWmin]],rawdata[[#This Row],[FW]]/2<=rawdata[[#This Row],[FWmax]]),\"YES\",\" - \")","v":" - "},{"$f":"IFERROR(rawdata[[#This Row],[FWmin]]*2,\" - \")","v":8.2},{"$f":"IFERROR(rawdata[[#This Row],[FWmax]]*2,\" - \")","v":13.2},{"$f":"IF(rawdata[[#This Row],[Fhmatch 2]]=\"YES\",((1-rawdata[[#This Row],[Fwmin 2]]/rawdata[[#This Row],[FW]])+(1-rawdata[[#This Row],[FW]]/rawdata[[#This Row],[FWmax 2]]))/2,\"\")","v":""}]
[null,"Standard",75,600,165,"A",{"$f":"IF(rawdata[[#This Row],[Opening type]]=\"Standard\",$C$10,$C$9)","v":{"v":4.539,"d":"4.54"}},1.2,2.3,{"v":0.8333333333333334,"d":"0.83"},{"$f":"IF(AND($C$4>=rawdata[[#This Row],[KDmin]],$J$11=rawdata[[#This Row],[FHq]],rawdata[[#This Row],[FW]]>=rawdata[[#This Row],[FWmin]],rawdata[[#This Row],[FW]]<=rawdata[[#This Row],[FWmax]]),\"YES\",\" - \")","v":" - "},{"$f":"IF(rawdata[[#This Row],[Fhmatch 1]]=\"YES\",((1-rawdata[[#This Row],[FWmin]]/rawdata[[#This Row],[FW]])+(1-rawdata[[#This Row],[FW]]/rawdata[[#This Row],[FWmax]]))/2,\"\")","v":""},{"$f":"IF(AND($C$4>=rawdata[[#This Row],[KDmin]],$J$11=rawdata[[#This Row],[FHq]],rawdata[[#This Row],[FW]]/2>=rawdata[[#This Row],[FWmin]],rawdata[[#This Row],[FW]]/2<=rawdata[[#This Row],[FWmax]]),\"YES\",\" - \")","v":" - "},{"$f":"IFERROR(rawdata[[#This Row],[FWmin]]*2,\" - \")","v":2.4},{"$f":"IFERROR(rawdata[[#This Row],[FWmax]]*2,\" - \")","v":4.6},{"$f":"IF(rawdata[[#This Row],[Fhmatch 2]]=\"YES\",((1-rawdata[[#This Row],[Fwmin 2]]/rawdata[[#This Row],[FW]])+(1-rawdata[[#This Row],[FW]]/rawdata[[#This Row],[FWmax 2]]))/2,\"\")","v":""}]
[null,"Standard",75,600,165,"B",{"$f":"IF(rawdata[[#This Row],[Opening type]]=\"Standard\",$C$10,$C$9)","v":{"v":4.539,"d":"4.54"}},2.1,3.9,{"v":0.8333333333333334,"d":"0.83"},{"$f":"IF(AND($C$4>=rawdata[[#This Row],[KDmin]],$J$11=rawdata[[#This Row],[FHq]],rawdata[[#This Row],[FW]]>=rawdata[[#This Row],[FWmin]],rawdata[[#This Row],[FW]]<=rawdata[[#This Row],[FWmax]]),\"YES\",\" - \")","v":" - "},{"$f":"IF(rawdata[[#This Row],[Fhmatch 1]]=\"YES\",((1-rawdata[[#This Row],[FWmin]]/rawdata[[#This Row],[FW]])+(1-rawdata[[#This Row],[FW]]/rawdata[[#This Row],[FWmax]]))/2,\"\")","v":""},{"$f":"IF(AND($C$4>=rawdata[[#This Row],[KDmin]],$J$11=rawdata[[#This Row],[FHq]],rawdata[[#This Row],[FW]]/2>=rawdata[[#This Row],[FWmin]],rawdata[[#This Row],[FW]]/2<=rawdata[[#This Row],[FWmax]]),\"YES\",\" - \")","v":" - "},{"$f":"IFERROR(rawdata[[#This Row],[FWmin]]*2,\" - \")","v":4.2},{"$f":"IFERROR(rawdata[[#This Row],[FWmax]]*2,\" - \")","v":7.8},{"$f":"IF(rawdata[[#This Row],[Fhmatch 2]]=\"YES\",((1-rawdata[[#This Row],[Fwmin 2]]/rawdata[[#This Row],[FW]])+(1-rawdata[[#This Row],[FW]]/rawdata[[#This Row],[FWmax 2]]))/2,\"\")","v":""}]
[null,"Standard",75,600,165,"D",{"$f":"IF(rawdata[[#This Row],[Opening type]]=\"Standard\",$C$10,$C$9)","v":{"v":4.539,"d":"4.54"}},3.9,{"v":6,"d":"6.0"},{"v":0.8333333333333334,"d":"0.83"},{"$f":"IF(AND($C$4>=rawdata[[#This Row],[KDmin]],$J$11=rawdata[[#This Row],[FHq]],rawdata[[#This Row],[FW]]>=rawdata[[#This Row],[FWmin]],rawdata[[#This Row],[FW]]<=rawdata[[#This Row],[FWmax]]),\"YES\",\" - \")","v":" - "},{"$f":"IF(rawdata[[#This Row],[Fhmatch 1]]=\"YES\",((1-rawdata[[#This Row],[FWmin]]/rawdata[[#This Row],[FW]])+(1-rawdata[[#This Row],[FW]]/rawdata[[#This Row],[FWmax]]))/2,\"\")","v":""},{"$f":"IF(AND($C$4>=rawdata[[#This Row],[KDmin]],$J$11=rawdata[[#This Row],[FHq]],rawdata[[#This Row],[FW]]/2>=rawdata[[#This Row],[FWmin]],rawdata[[#This Row],[FW]]/2<=rawdata[[#This Row],[FWmax]]),\"YES\",\" - \")","v":" - "},{"$f":"IFERROR(rawdata[[#This Row],[FWmin]]*2,\" - \")","v":7.8},{"$f":"IFERROR(rawdata[[#This Row],[FWmax]]*2,\" - \")","v":{"v":12,"d":"12.0"}},{"$f":"IF(rawdata[[#This Row],[Fhmatch 2]]=\"YES\",((1-rawdata[[#This Row],[Fwmin 2]]/rawdata[[#This Row],[FW]])+(1-rawdata[[#This Row],[FW]]/rawdata[[#This Row],[FWmax 2]]))/2,\"\")","v":""}]
[null,"Standard",90,275,149,"A",{"$f":"IF(rawdata[[#This Row],[Opening type]]=\"Standard\",$C$10,$C$9)","v":{"v":4.539,"d":"4.54"}},2.8,3.8,{"v":1.8181818181818181,"d":"1.82"},{"$f":"IF(AND($C$4>=rawdata[[#This Row],[KDmin]],$J$11=rawdata[[#This Row],[FHq]],rawdata[[#This Row],[FW]]>=rawdata[[#This Row],[FWmin]],rawdata[[#This Row],[FW]]<=rawdata[[#This Row],[FWmax]]),\"YES\",\" - \")","v":" - "},{"$f":"IF(rawdata[[#This Row],[Fhmatch 1]]=\"YES\",((1-rawdata[[#This Row],[FWmin]]/rawdata[[#This Row],[FW]])+(1-rawdata[[#This Row],[FW]]/rawdata[[#This Row],[FWmax]]))/2,\"\")","v":""},{"$f":"IF(AND($C$4>=rawdata[[#This Row],[KDmin]],$J$11=rawdata[[#This Row],[FHq]],rawdata[[#This Row],[FW]]/2>=rawdata[[#This Row],[FWmin]],rawdata[[#This Row],[FW]]/2<=rawdata[[#This Row],[FWmax]]),\"YES\",\" - \")","v":" - "},{"$f":"IFERROR(rawdata[[#This Row],[FWmin]]*2,\" - \")","v":5.6},{"$f":"IFERROR(rawdata[[#This Row],[FWmax]]*2,\" - \")","v":7.6},{"$f":"IF(rawdata[[#This Row],[Fhmatch 2]]=\"YES\",((1-rawdata[[#This Row],[Fwmin 2]]/rawdata[[#This Row],[FW]])+(1-rawdata[[#This Row],[FW]]/rawdata[[#This Row],[FWmax 2]]))/2,\"\")","v":""}]
[null,"Standard",90,275,149,"B",{"$f":"IF(rawdata[[#This Row],[Opening type]]=\"Standard\",$C$10,$C$9)","v":{"v":4.539,"d":"4.54"}},3.5,{"v":6,"d":"6.0"},{"v":1.8181818181818181,"d":"1.82"},{"$f":"IF(AND($C$4>=rawdata[[#This Row],[KDmin]],$J$11=rawdata[[#This Row],[FHq]],rawdata[[#This Row],[FW]]>=rawdata[[#This Row],[FWmin]],rawdata[[#This Row],[FW]]<=rawdata[[#This Row],[FWmax]]),\"YES\",\" - \")","v":" - "},{"$f":"IF(rawdata[[#This Row],[Fhmatch 1]]=\"YES\",((1-rawdata[[#This Row],[FWmin]]/rawdata[[#This Row],[FW]])+(1-rawdata[[#This Row],[FW]]/rawdata[[#This Row],[FWmax]]))/2,\"\")","v":""},{"$f":"IF(AND($C$4>=rawdata[[#This Row],[KDmin]],$J$11=rawdata[[#This Row],[FHq]],rawdata[[#This Row],[FW]]/2>=rawdata[[#This Row],[FWmin]],rawdata[[#This Row],[FW]]/2<=rawdata[[#This Row],[FWmax]]),\"YES\",\" - \")","v":" - "},{"$f":"IFERROR(rawdata[[#This Row],[FWmin]]*2,\" - \")","v":{"v":7,"d":"7.0"}},{"$f":"IFERROR(rawdata[[#This Row],[FWmax]]*2,\" - \")","v":{"v":12,"d":"12.0"}},{"$f":"IF(rawdata[[#This Row],[Fhmatch 2]]=\"YES\",((1-rawdata[[#This Row],[Fwmin 2]]/rawdata[[#This Row],[FW]])+(1-rawdata[[#This Row],[FW]]/rawdata[[#This Row],[FWmax 2]]))/2,\"\")","v":""}]
[null,"Standard",90,275,149,"D",{"$f":"IF(rawdata[[#This Row],[Opening type]]=\"Standard\",$C$10,$C$9)","v":{"v":4.539,"d":"4.54"}},5.8,10.5,{"v":1.8181818181818181,"d":"1.82"},{"$f":"IF(AND($C$4>=rawdata[[#This Row],[KDmin]],$J$11=rawdata[[#This Row],[FHq]],rawdata[[#This Row],[FW]]>=rawdata[[#This Row],[FWmin]],rawdata[[#This Row],[FW]]<=rawdata[[#This Row],[FWmax]]),\"YES\",\" - \")","v":" - "},{"$f":"IF(rawdata[[#This Row],[Fhmatch 1]]=\"YES\",((1-rawdata[[#This Row],[FWmin]]/rawdata[[#This Row],[FW]])+(1-rawdata[[#This Row],[FW]]/rawdata[[#This Row],[FWmax]]))/2,\"\")","v":""},{"$f":"IF(AND($C$4>=rawdata[[#This Row],[KDmin]],$J$11=rawdata[[#This Row],[FHq]],rawdata[[#This Row],[FW]]/2>=rawdata[[#This Row],[FWmin]],rawdata[[#This Row],[FW]]/2<=rawdata[[#This Row],[FWmax]]),\"YES\",\" - \")","v":" - "},{"$f":"IFERROR(rawdata[[#This Row],[FWmin]]*2,\" - \")","v":11.6},{"$f":"IFERROR(rawdata[[#This Row],[FWmax]]*2,\" - \")","v":{"v":21,"d":"21.0"}},{"$f":"IF(rawdata[[#This Row],[Fhmatch 2]]=\"YES\",((1-rawdata[[#This Row],[Fwmin 2]]/rawdata[[#This Row],[FW]])+(1-rawdata[[#This Row],[FW]]/rawdata[[#This Row],[FWmax 2]]))/2,\"\")","v":""}]
[null,"Standard",90,300,149,"A",{"$f":"IF(rawdata[[#This Row],[Opening type]]=\"Standard\",$C$10,$C$9)","v":{"v":4.539,"d":"4.54"}},2.2,3.8,{"v":1.6666666666666667,"d":"1.67"},{"$f":"IF(AND($C$4>=rawdata[[#This Row],[KDmin]],$J$11=rawdata[[#This Row],[FHq]],rawdata[[#This Row],[FW]]>=rawdata[[#This Row],[FWmin]],rawdata[[#This Row],[FW]]<=rawdata[[#This Row],[FWmax]]),\"YES\",\" - \")","v":" - "},{"$f":"IF(rawdata[[#This Row],[Fhmatch 1]]=\"YES\",((1-rawdata[[#This Row],[FWmin]]/rawdata[[#This Row],[FW]])+(1-rawdata[[#This Row],[FW]]/rawdata[[#This Row],[FWmax]]))/2,\"\")","v":""},{"$f":"IF(AND($C$4>=rawdata[[#This Row],[KDmin]],$J$11=rawdata[[#This Row],[FHq]],rawdata[[#This Row],[FW]]/2>=rawdata[[#This Row],[FWmin]],rawdata[[#This Row],[FW]]/2<=rawdata[[#This Row],[FWmax]]),\"YES\",\" - \")","v":" - "},{"$f":"IFERROR(rawdata[[#This Row],[FWmin]]*2,\" - \")","v":4.4},{"$f":"IFERROR(rawdata[[#This Row],[FWmax]]*2,\" - \")","v":7.6},{"$f":"IF(rawdata[[#This Row],[Fhmatch 2]]=\"YES\",((1-rawdata[[#This Row],[Fwmin 2]]/rawdata[[#This Row],[FW]])+(1-rawdata[[#This Row],[FW]]/rawdata[[#This Row],[FWmax 2]]))/2,\"\")","v":""}]
[null,"Standard",90,300,149,"B",{"$f":"IF(rawdata[[#This Row],[Opening type]]=\"Standard\",$C$10,$C$9)","v":{"v":4.539,"d":"4.54"}},3.3,5.7,{"v":1.6666666666666667,"d":"1.67"},{"$f":"IF(AND($C$4>=rawdata[[#This Row],[KDmin]],$J$11=rawdata[[#This Row],[FHq]],rawdata[[#This Row],[FW]]>=rawdata[[#This Row],[FWmin]],rawdata[[#This Row],[FW]]<=rawdata[[#This Row],[FWmax]]),\"YES\",\" - \")","v":" - "},{"$f":"IF(rawdata[[#This Row],[Fhmatch 1]]=\"YES\",((1-rawdata[[#This Row],[FWmin]]/rawdata[[#This Row],[FW]])+(1-rawdata[[#This Row],[FW]]/rawdata[[#This Row],[FWmax]]))/2,\"\")","v":""},{"$f":"IF(AND($C$4>=rawdata[[#This Row],[KDmin]],$J$11=rawdata[[#This Row],[FHq]],rawdata[[#This Row],[FW]]/2>=rawdata[[#This Row],[FWmin]],rawdata[[#This Row],[FW]]/2<=rawdata[[#This Row],[FWmax]]),\"YES\",\" - \")","v":" - "},{"$f":"IFERROR(rawdata[[#This Row],[FWmin]]*2,\" - \")","v":6.6},{"$f":"IFERROR(rawdata[[#This Row],[FWmax]]*2,\" - \")","v":11.4},{"$f":"IF(rawdata[[#This Row],[Fhmatch 2]]=\"YES\",((1-rawdata[[#This Row],[Fwmin 2]]/rawdata[[#This Row],[FW]])+(1-rawdata[[#This Row],[FW]]/rawdata[[#This Row],[FWmax 2]]))/2,\"\")","v":""}]
[null,"Standard",90,300,149,"D",{"$f":"IF(rawdata[[#This Row],[Opening type]]=\"Standard\",$C$10,$C$9)","v":{"v":4.539,"d":"4.54"}},5.2,{"v":9,"d":"9.0"},{"v":1.6666666666666667,"d":"1.67"},{"$f":"IF(AND($C$4>=rawdata[[#This Row],[KDmin]],$J$11=rawdata[[#This Row],[FHq]],rawdata[[#This Row],[FW]]>=rawdata[[#This Row],[FWmin]],rawdata[[#This Row],[FW]]<=rawdata[[#This Row],[FWmax]]),\"YES\",\" - \")","v":" - "},{"$f":"IF(rawdata[[#This Row],[Fhmatch 1]]=\"YES\",((1-rawdata[[#This Row],[FWmin]]/rawdata[[#This Row],[FW]])+(1-rawdata[[#This Row],[FW]]/rawdata[[#This Row],[FWmax]]))/2,\"\")","v":""},{"$f":"IF(AND($C$4>=rawdata[[#This Row],[KDmin]],$J$11=rawdata[[#This Row],[FHq]],rawdata[[#This Row],[FW]]/2>=rawdata[[#This Row],[FWmin]],rawdata[[#This Row],[FW]]/2<=rawdata[[#This Row],[FWmax]]),\"YES\",\" - \")","v":" - "},{"$f":"IFERROR(rawdata[[#This Row],[FWmin]]*2,\" - \")","v":10.4},{"$f":"IFERROR(rawdata[[#This Row],[FWmax]]*2,\" - \")","v":{"v":18,"d":"18.0"}},{"$f":"IF(rawdata[[#This Row],[Fhmatch 2]]=\"YES\",((1-rawdata[[#This Row],[Fwmin 2]]/rawdata[[#This Row],[FW]])+(1-rawdata[[#This Row],[FW]]/rawdata[[#This Row],[FWmax 2]]))/2,\"\")","v":""}]
[null,"Standard",90,350,149,"A",{"$f":"IF(rawdata[[#This Row],[Opening type]]=\"Standard\",$C$10,$C$9)","v":{"v":4.539,"d":"4.54"}},2.1,2.9,{"v":1.4285714285714286,"d":"1.43"},{"$f":"IF(AND($C$4>=rawdata[[#This Row],[KDmin]],$J$11=rawdata[[#This Row],[FHq]],rawdata[[#This Row],[FW]]>=rawdata[[#This Row],[FWmin]],rawdata[[#This Row],[FW]]<=rawdata[[#This Row],[FWmax]]),\"YES\",\" - \")","v":" - "},{"$f":"IF(rawdata[[#This Row],[Fhmatch 1]]=\"YES\",((1-rawdata[[#This Row],[FWmin]]/rawdata[[#This Row],[FW]])+(1-rawdata[[#This Row],[FW]]/rawdata[[#This Row],[FWmax]]))/2,\"\")","v":""},{"$f":"IF(AND($C$4>=rawdata[[#This Row],[KDmin]],$J$11=rawdata[[#This Row],[FHq]],rawdata[[#This Row],[FW]]/2>=rawdata[[#This Row],[FWmin]],rawdata[[#This Row],[FW]]/2<=rawdata[[#This Row],[FWmax]]),\"YES\",\" - \")","v":" - "},{"$f":"IFERROR(rawdata[[#This Row],[FWmin]]*2,\" - \")","v":4.2},{"$f":"IFERROR(rawdata[[#This Row],[FWmax]]*2,\" - \")","v":5.8},{"$f":"IF(rawdata[[#This Row],[Fhmatch 2]]=\"YES\",((1-rawdata[[#This Row],[Fwmin 2]]/rawdata[[#This Row],[FW]])+(1-rawdata[[#This Row],[FW]]/rawdata[[#This Row],[FWmax 2]]))/2,\"\")","v":""}]
[null,"Standard",90,350,149,"B",{"$f":"IF(rawdata[[#This Row],[Opening type]]=\"Standard\",$C$10,$C$9)","v":{"v":4.539,"d":"4.54"}},2.7,4.9,{"v":1.4285714285714286,"d":"1.43"},{"$f":"IF(AND($C$4>=rawdata[[#This Row],[KDmin]],$J$11=rawdata[[#This Row],[FHq]],rawdata[[#This Row],[FW]]>=rawdata[[#This Row],[FWmin]],rawdata[[#This Row],[FW]]<=rawdata[[#This Row],[FWmax]]),\"YES\",\" - \")","v":" - "},{"$f":"IF(rawdata[[#This Row],[Fhmatch 1]]=\"YES\",((1-rawdata[[#This Row],[FWmin]]/rawdata[[#This Row],[FW]])+(1-rawdata[[#This Row],[FW]]/rawdata[[#This Row],[FWmax]]))/2,\"\")","v":""},{"$f":"IF(AND($C$4>=rawdata[[#This Row],[KDmin]],$J$11=rawdata[[#This Row],[FHq]],rawdata[[#This Row],[FW]]/2>=rawdata[[#This Row],[FWmin]],rawdata[[#This Row],[FW]]/2<=rawdata[[#This Row],[FWmax]]),\"YES\",\" - \")","v":" - "},{"$f":"IFERROR(rawdata[[#This Row],[FWmin]]*2,\" - \")","v":5.4},{"$f":"IFERROR(rawdata[[#This Row],[FWmax]]*2,\" - \")","v":9.8},{"$f":"IF(rawdata[[#This Row],[Fhmatch 2]]=\"YES\",((1-rawdata[[#This Row],[Fwmin 2]]/rawdata[[#This Row],[FW]])+(1-rawdata[[#This Row],[FW]]/rawdata[[#This Row],[FWmax 2]]))/2,\"\")","v":""}]
[null,"Standard",90,350,149,"D",{"$f":"IF(rawdata[[#This Row],[Opening type]]=\"Standard\",$C$10,$C$9)","v":{"v":4.539,"d":"4.54"}},4.8,{"v":8,"d":"8.0"},{"v":1.4285714285714286,"d":"1.43"},{"$f":"IF(AND($C$4>=rawdata[[#This Row],[KDmin]],$J$11=rawdata[[#This Row],[FHq]],rawdata[[#This Row],[FW]]>=rawdata[[#This Row],[FWmin]],rawdata[[#This Row],[FW]]<=rawdata[[#This Row],[FWmax]]),\"YES\",\" - \")","v":" - "},{"$f":"IF(rawdata[[#This Row],[Fhmatch 1]]=\"YES\",((1-rawdata[[#This Row],[FWmin]]/rawdata[[#This Row],[FW]])+(1-rawdata[[#This Row],[FW]]/rawdata[[#This Row],[FWmax]]))/2,\"\")","v":""},{"$f":"IF(AND($C$4>=rawdata[[#This Row],[KDmin]],$J$11=rawdata[[#This Row],[FHq]],rawdata[[#This Row],[FW]]/2>=rawdata[[#This Row],[FWmin]],rawdata[[#This Row],[FW]]/2<=rawdata[[#This Row],[FWmax]]),\"YES\",\" - \")","v":" - "},{"$f":"IFERROR(rawdata[[#This Row],[FWmin]]*2,\" - \")","v":9.6},{"$f":"IFERROR(rawdata[[#This Row],[FWmax]]*2,\" - \")","v":{"v":16,"d":"16.0"}},{"$f":"IF(rawdata[[#This Row],[Fhmatch 2]]=\"YES\",((1-rawdata[[#This Row],[Fwmin 2]]/rawdata[[#This Row],[FW]])+(1-rawdata[[#This Row],[FW]]/rawdata[[#This Row],[FWmax 2]]))/2,\"\")","v":""}]
[null,"Standard",90,400,149,"A",{"$f":"IF(rawdata[[#This Row],[Opening type]]=\"Standard\",$C$10,$C$9)","v":{"v":4.539,"d":"4.54"}},1.6,2.3,1.25,{"$f":"IF(AND($C$4>=rawdata[[#This Row],[KDmin]],$J$11=rawdata[[#This Row],[FHq]],rawdata[[#This Row],[FW]]>=rawdata[[#This Row],[FWmin]],rawdata[[#This Row],[FW]]<=rawdata[[#This Row],[FWmax]]),\"YES\",\" - \")","v":" - "},{"$f":"IF(rawdata[[#This Row],[Fhmatch 1]]=\"YES\",((1-rawdata[[#This Row],[FWmin]]/rawdata[[#This Row],[FW]])+(1-rawdata[[#This Row],[FW]]/rawdata[[#This Row],[FWmax]]))/2,\"\")","v":""},{"$f":"IF(AND($C$4>=rawdata[[#This Row],[KDmin]],$J$11=rawdata[[#This Row],[FHq]],rawdata[[#This Row],[FW]]/2>=rawdata[[#This Row],[FWmin]],rawdata[[#This Row],[FW]]/2<=rawdata[[#This Row],[FWmax]]),\"YES\",\" - \")","v":" - "},{"$f":"IFERROR(rawdata[[#This Row],[FWmin]]*2,\" - \")","v":3.2},{"$f":"IFERROR(rawdata[[#This Row],[FWmax]]*2,\" - \")","v":4.6},{"$f":"IF(rawdata[[#This Row],[Fhmatch 2]]=\"YES\",((1-rawdata[[#This Row],[Fwmin 2]]/rawdata[[#This Row],[FW]])+(1-rawdata[[#This Row],[FW]]/rawdata[[#This Row],[FWmax 2]]))/2,\"\")","v":""}]
[null,"Standard",90,400,149,"B",{"$f":"IF(rawdata[[#This Row],[Opening type]]=\"Standard\",$C$10,$C$9)","v":{"v":4.539,"d":"4.54"}},2.3,4.6,1.25,{"$f":"IF(AND($C$4>=rawdata[[#This Row],[KDmin]],$J$11=rawdata[[#This Row],[FHq]],rawdata[[#This Row],[FW]]>=rawdata[[#This Row],[FWmin]],rawdata[[#This Row],[FW]]<=rawdata[[#This Row],[FWmax]]),\"YES\",\" - \")","v":" - "},{"$f":"IF(rawdata[[#This Row],[Fhmatch 1]]=\"YES\",((1-rawdata[[#This Row],[FWmin]]/rawdata[[#This Row],[FW]])+(1-rawdata[[#This Row],[FW]]/rawdata[[#This Row],[FWmax]]))/2,\"\")","v":""},{"$f":"IF(AND($C$4>=rawdata[[#This Row],[KDmin]],$J$11=rawdata[[#This Row],[FHq]],rawdata[[#This Row],[FW]]/2>=rawdata[[#This Row],[FWmin]],rawdata[[#This Row],[FW]]/2<=rawdata[[#This Row],[FWmax]]),\"YES\",\" - \")","v":" - "},{"$f":"IFERROR(rawdata[[#This Row],[FWmin]]*2,\" - \")","v":4.6},{"$f":"IFERROR(rawdata[[#This Row],[FWmax]]*2,\" - \")","v":9.2},{"$f":"IF(rawdata[[#This Row],[Fhmatch 2]]=\"YES\",((1-rawdata[[#This Row],[Fwmin 2]]/rawdata[[#This Row],[FW]])+(1-rawdata[[#This Row],[FW]]/rawdata[[#This Row],[FWmax 2]]))/2,\"\")","v":""}]
[null,"Standard",90,400,149,"D",{"$f":"IF(rawdata[[#This Row],[Opening type]]=\"Standard\",$C$10,$C$9)","v":{"v":4.539,"d":"4.54"}},4.3,7.9,1.25,{"$f":"IF(AND($C$4>=rawdata[[#This Row],[KDmin]],$J$11=rawdata[[#This Row],[FHq]],rawdata[[#This Row],[FW]]>=rawdata[[#This Row],[FWmin]],rawdata[[#This Row],[FW]]<=rawdata[[#This Row],[FWmax]]),\"YES\",\" - \")","v":" - "},{"$f":"IF(rawdata[[#This Row],[Fhmatch 1]]=\"YES\",((1-rawdata[[#This Row],[FWmin]]/rawdata[[#This Row],[FW]])+(1-rawdata[[#This Row],[FW]]/rawdata[[#This Row],[FWmax]]))/2,\"\")","v":""},{"$f":"IF(AND($C$4>=rawdata[[#This Row],[KDmin]],$J$11=rawdata[[#This Row],[FHq]],rawdata[[#This Row],[FW]]/2>=rawdata[[#This Row],[FWmin]],rawdata[[#This Row],[FW]]/2<=rawdata[[#This Row],[FWmax]]),\"YES\",\" - \")","v":" - "},{"$f":"IFERROR(rawdata[[#This Row],[FWmin]]*2,\" - \")","v":8.6},{"$f":"IFERROR(rawdata[[#This Row],[FWmax]]*2,\" - \")","v":15.8},{"$f":"IF(rawdata[[#This Row],[Fhmatch 2]]=\"YES\",((1-rawdata[[#This Row],[Fwmin 2]]/rawdata[[#This Row],[FW]])+(1-rawdata[[#This Row],[FW]]/rawdata[[#This Row],[FWmax 2]]))/2,\"\")","v":""}]
[null,"Standard",90,450,149,"A",{"$f":"IF(rawdata[[#This Row],[Opening type]]=\"Standard\",$C$10,$C$9)","v":{"v":4.539,"d":"4.54"}},1.3,2.2,{"v":1.1111111111111112,"d":"1.11"},{"$f":"IF(AND($C$4>=rawdata[[#This Row],[KDmin]],$J$11=rawdata[[#This Row],[FHq]],rawdata[[#This Row],[FW]]>=rawdata[[#This Row],[FWmin]],rawdata[[#This Row],[FW]]<=rawdata[[#This Row],[FWmax]]),\"YES\",\" - \")","v":" - "},{"$f":"IF(rawdata[[#This Row],[Fhmatch 1]]=\"YES\",((1-rawdata[[#This Row],[FWmin]]/rawdata[[#This Row],[FW]])+(1-rawdata[[#This Row],[FW]]/rawdata[[#This Row],[FWmax]]))/2,\"\")","v":""},{"$f":"IF(AND($C$4>=rawdata[[#This Row],[KDmin]],$J$11=rawdata[[#This Row],[FHq]],rawdata[[#This Row],[FW]]/2>=rawdata[[#This Row],[FWmin]],rawdata[[#This Row],[FW]]/2<=rawdata[[#This Row],[FWmax]]),\"YES\",\" - \")","v":" - "},{"$f":"IFERROR(rawdata[[#This Row],[FWmin]]*2,\" - \")","v":2.6},{"$f":"IFERROR(rawdata[[#This Row],[FWmax]]*2,\" - \")","v":4.4},{"$f":"IF(rawdata[[#This Row],[Fhmatch 2]]=\"YES\",((1-rawdata[[#This Row],[Fwmin 2]]/rawdata[[#This Row],[FW]])+(1-rawdata[[#This Row],[FW]]/rawdata[[#This Row],[FWmax 2]]))/2,\"\")","v":""}]
[null,"Standard",90,450,149,"B",{"$f":"IF(rawdata[[#This Row],[Opening type]]=\"Standard\",$C$10,$C$9)","v":{"v":4.539,"d":"4.54"}},{"v":2,"d":"2.0"},3.8,{"v":1.1111111111111112,"d":"1.11"},{"$f":"IF(AND($C$4>=rawdata[[#This Row],[KDmin]],$J$11=rawdata[[#This Row],[FHq]],rawdata[[#This Row],[FW]]>=rawdata[[#This Row],[FWmin]],rawdata[[#This Row],[FW]]<=rawdata[[#This Row],[FWmax]]),\"YES\",\" - \")","v":" - "},{"$f":"IF(rawdata[[#This Row],[Fhmatch 1]]=\"YES\",((1-rawdata[[#This Row],[FWmin]]/rawdata[[#This Row],[FW]])+(1-rawdata[[#This Row],[FW]]/rawdata[[#This Row],[FWmax]]))/2,\"\")","v":""},{"$f":"IF(AND($C$4>=rawdata[[#This Row],[KDmin]],$J$11=rawdata[[#This Row],[FHq]],rawdata[[#This Row],[FW]]/2>=rawdata[[#This Row],[FWmin]],rawdata[[#This Row],[FW]]/2<=rawdata[[#This Row],[FWmax]]),\"YES\",\" - \")","v":" - "},{"$f":"IFERROR(rawdata[[#This Row],[FWmin]]*2,\" - \")","v":{"v":4,"d":"4.0"}},{"$f":"IFERROR(rawdata[[#This Row],[FWmax]]*2,\" - \")","v":7.6},{"$f":"IF(rawdata[[#This Row],[Fhmatch 2]]=\"YES\",((1-rawdata[[#This Row],[Fwmin 2]]/rawdata[[#This Row],[FW]])+(1-rawdata[[#This Row],[FW]]/rawdata[[#This Row],[FWmax 2]]))/2,\"\")","v":""}]
[null,"Standard",90,450,149,"D",{"$f":"IF(rawdata[[#This Row],[Opening type]]=\"Standard\",$C$10,$C$9)","v":{"v":4.539,"d":"4.54"}},3.8,6.3,{"$f":"$C$2/D45","v":{"v":1.1111111111111112,"d":"1.11"}},{"$f":"IF(AND($C$4>=rawdata[[#This Row],[KDmin]],$J$11=rawdata[[#This Row],[FHq]],rawdata[[#This Row],[FW]]>=rawdata[[#This Row],[FWmin]],rawdata[[#This Row],[FW]]<=rawdata[[#This Row],[FWmax]]),\"YES\",\" - \")","v":" - "},{"$f":"IF(rawdata[[#This Row],[Fhmatch 1]]=\"YES\",((1-rawdata[[#This Row],[FWmin]]/rawdata[[#This Row],[FW]])+(1-rawdata[[#This Row],[FW]]/rawdata[[#This Row],[FWmax]]))/2,\"\")","v":""},{"$f":"IF(AND($C$4>=rawdata[[#This Row],[KDmin]],$J$11=rawdata[[#This Row],[FHq]],rawdata[[#This Row],[FW]]/2>=rawdata[[#This Row],[FWmin]],rawdata[[#This Row],[FW]]/2<=rawdata[[#This Row],[FWmax]]),\"YES\",\" - \")","v":" - "},{"$f":"IFERROR(rawdata[[#This Row],[FWmin]]*2,\" - \")","v":7.6},{"$f":"IFERROR(rawdata[[#This Row],[FWmax]]*2,\" - \")","v":12.6},{"$f":"IF(rawdata[[#This Row],[Fhmatch 2]]=\"YES\",((1-rawdata[[#This Row],[Fwmin 2]]/rawdata[[#This Row],[FW]])+(1-rawdata[[#This Row],[FW]]/rawdata[[#This Row],[FWmax 2]]))/2,\"\")","v":""}]
[null,"Standard",90,500,149,"A",{"$f":"IF(rawdata[[#This Row],[Opening type]]=\"Standard\",$C$10,$C$9)","v":{"v":4.539,"d":"4.54"}},1.2,{"v":2,"d":"2.0"},{"v":1,"d":"1.00"},{"$f":"IF(AND($C$4>=rawdata[[#This Row],[KDmin]],$J$11=rawdata[[#This Row],[FHq]],rawdata[[#This Row],[FW]]>=rawdata[[#This Row],[FWmin]],rawdata[[#This Row],[FW]]<=rawdata[[#This Row],[FWmax]]),\"YES\",\" - \")","v":" - "},{"$f":"IF(rawdata[[#This Row],[Fhmatch 1]]=\"YES\",((1-rawdata[[#This Row],[FWmin]]/rawdata[[#This Row],[FW]])+(1-rawdata[[#This Row],[FW]]/rawdata[[#This Row],[FWmax]]))/2,\"\")","v":""},{"$f":"IF(AND($C$4>=rawdata[[#This Row],[KDmin]],$J$11=rawdata[[#This Row],[FHq]],rawdata[[#This Row],[FW]]/2>=rawdata[[#This Row],[FWmin]],rawdata[[#This Row],[FW]]/2<=rawdata[[#This Row],[FWmax]]),\"YES\",\" - \")","v":" - "},{"$f":"IFERROR(rawdata[[#This Row],[FWmin]]*2,\" - \")","v":2.4},{"$f":"IFERROR(rawdata[[#This Row],[FWmax]]*2,\" - \")","v":{"v":4,"d":"4.0"}},{"$f":"IF(rawdata[[#This Row],[Fhmatch 2]]=\"YES\",((1-rawdata[[#This Row],[Fwmin 2]]/rawdata[[#This Row],[FW]])+(1-rawdata[[#This Row],[FW]]/rawdata[[#This Row],[FWmax 2]]))/2,\"\")","v":""}]
[null,"Standard",90,500,149,"B",{"$f":"IF(rawdata[[#This Row],[Opening type]]=\"Standard\",$C$10,$C$9)","v":{"v":4.539,"d":"4.54"}},1.7,3.4,{"v":1,"d":"1.00"},{"$f":"IF(AND($C$4>=rawdata[[#This Row],[KDmin]],$J$11=rawdata[[#This Row],[FHq]],rawdata[[#This Row],[FW]]>=rawdata[[#This Row],[FWmin]],rawdata[[#This Row],[FW]]<=rawdata[[#This Row],[FWmax]]),\"YES\",\" - \")","v":" - "},{"$f":"IF(rawdata[[#This Row],[Fhmatch 1]]=\"YES\",((1-rawdata[[#This Row],[FWmin]]/rawdata[[#This Row],[FW]])+(1-rawdata[[#This Row],[FW]]/rawdata[[#This Row],[FWmax]]))/2,\"\")","v":""},{"$f":"IF(AND($C$4>=rawdata[[#This Row],[KDmin]],$J$11=rawdata[[#This Row],[FHq]],rawdata[[#This Row],[FW]]/2>=rawdata[[#This Row],[FWmin]],rawdata[[#This Row],[FW]]/2<=rawdata[[#This Row],[FWmax]]),\"YES\",\" - \")","v":"YES"},{"$f":"IFERROR(rawdata[[#This Row],[FWmin]]*2,\" - \")","v":3.4},{"$f":"IFERROR(rawdata[[#This Row],[FWmax]]*2,\" - \")","v":6.8},{"$f":"IF(rawdata[[#This Row],[Fhmatch 2]]=\"YES\",((1-rawdata[[#This Row],[Fwmin 2]]/rawdata[[#This Row],[FW]])+(1-rawdata[[#This Row],[FW]]/rawdata[[#This Row],[FWmax 2]]))/2,\"\")","v":{"v":0.2917181647940075,"d":"29.17%"}}]
[null,"Standard",90,500,149,"D",{"$f":"IF(rawdata[[#This Row],[Opening type]]=\"Standard\",$C$10,$C$9)","v":{"v":4.539,"d":"4.54"}},3.4,{"v":6,"d":"6.0"},{"v":1,"d":"1.00"},{"$f":"IF(AND($C$4>=rawdata[[#This Row],[KDmin]],$J$11=rawdata[[#This Row],[FHq]],rawdata[[#This Row],[FW]]>=rawdata[[#This Row],[FWmin]],rawdata[[#This Row],[FW]]<=rawdata[[#This Row],[FWmax]]),\"YES\",\" - \")","v":"YES"},{"$f":"IF(rawdata[[#This Row],[Fhmatch 1]]=\"YES\",((1-rawdata[[#This Row],[FWmin]]/rawdata[[#This Row],[FW]])+(1-rawdata[[#This Row],[FW]]/rawdata[[#This Row],[FWmax]]))/2,\"\")","v":{"v":0.2472181647940075,"d":"24.72%"}},{"$f":"IF(AND($C$4>=rawdata[[#This Row],[KDmin]],$J$11=rawdata[[#This Row],[FHq]],rawdata[[#This Row],[FW]]/2>=rawdata[[#This Row],[FWmin]],rawdata[[#This Row],[FW]]/2<=rawdata[[#This Row],[FWmax]]),\"YES\",\" - \")","v":" - "},{"$f":"IFERROR(rawdata[[#This Row],[FWmin]]*2,\" - \")","v":6.8},{"$f":"IFERROR(rawdata[[#This Row],[FWmax]]*2,\" - \")","v":{"v":12,"d":"12.0"}},{"$f":"IF(rawdata[[#This Row],[Fhmatch 2]]=\"YES\",((1-rawdata[[#This Row],[Fwmin 2]]/rawdata[[#This Row],[FW]])+(1-rawdata[[#This Row],[FW]]/rawdata[[#This Row],[FWmax 2]]))/2,\"\")","v":""}]
[null,"Standard",90,550,149,"A",{"$f":"IF(rawdata[[#This Row],[Opening type]]=\"Standard\",$C$10,$C$9)","v":{"v":4.539,"d":"4.54"}},1.2,1.9,{"v":0.9090909090909091,"d":"0.91"},{"$f":"IF(AND($C$4>=rawdata[[#This Row],[KDmin]],$J$11=rawdata[[#This Row],[FHq]],rawdata[[#This Row],[FW]]>=rawdata[[#This Row],[FWmin]],rawdata[[#This Row],[FW]]<=rawdata[[#This Row],[FWmax]]),\"YES\",\" - \")","v":" - "},{"$f":"IF(rawdata[[#This Row],[Fhmatch 1]]=\"YES\",((1-rawdata[[#This Row],[FWmin]]/rawdata[[#This Row],[FW]])+(1-rawdata[[#This Row],[FW]]/rawdata[[#This Row],[FWmax]]))/2,\"\")","v":""},{"$f":"IF(AND($C$4>=rawdata[[#This Row],[KDmin]],$J$11=rawdata[[#This Row],[FHq]],rawdata[[#This Row],[FW]]/2>=rawdata[[#This Row],[FWmin]],rawdata[[#This Row],[FW]]/2<=rawdata[[#This Row],[FWmax]]),\"YES\",\" - \")","v":" - "},{"$f":"IFERROR(rawdata[[#This Row],[FWmin]]*2,\" - \")","v":2.4},{"$f":"IFERROR(rawdata[[#This Row],[FWmax]]*2,\" - \")","v":3.8},{"$f":"IF(rawdata[[#This Row],[Fhmatch 2]]=\"YES\",((1-rawdata[[#This Row],[Fwmin 2]]/rawdata[[#This Row],[FW]])+(1-rawdata[[#This Row],[FW]]/rawdata[[#This Row],[FWmax 2]]))/2,\"\")","v":""}]
[null,"Standard",90,550,149,"B",{"$f":"IF(rawdata[[#This Row],[Opening type]]=\"Standard\",$C$10,$C$9)","v":{"v":4.539,"d":"4.54"}},1.7,{"v":3,"d":"3.0"},{"v":0.9090909090909091,"d":"0.91"},{"$f":"IF(AND($C$4>=rawdata[[#This Row],[KDmin]],$J$11=rawdata[[#This Row],[FHq]],rawdata[[#This Row],[FW]]>=rawdata[[#This Row],[FWmin]],rawdata[[#This Row],[FW]]<=rawdata[[#This Row],[FWmax]]),\"YES\",\" - \")","v":" - "},{"$f":"IF(rawdata[[#This Row],[Fhmatch 1]]=\"YES\",((1-rawdata[[#This Row],[FWmin]]/rawdata[[#This Row],[FW]])+(1-rawdata[[#This Row],[FW]]/rawdata[[#This Row],[FWmax]]))/2,\"\")","v":""},{"$f":"IF(AND($C$4>=rawdata[[#This Row],[KDmin]],$J$11=rawdata[[#This Row],[FHq]],rawdata[[#This Row],[FW]]/2>=rawdata[[#This Row],[FWmin]],rawdata[[#This Row],[FW]]/2<=rawdata[[#This Row],[FWmax]]),\"YES\",\" - \")","v":" - "},{"$f":"IFERROR(rawdata[[#This Row],[FWmin]]*2,\" - \")","v":3.4},{"$f":"IFERROR(rawdata[[#This Row],[FWmax]]*2,\" - \")","v":{"v":6,"d":"6.0"}},{"$f":"IF(rawdata[[#This Row],[Fhmatch 2]]=\"YES\",((1-rawdata[[#This Row],[Fwmin 2]]/rawdata[[#This Row],[FW]])+(1-rawdata[[#This Row],[FW]]/rawdata[[#This Row],[FWmax 2]]))/2,\"\")","v":""}]
[null,"Standard",90,550,149,"D",{"$f":"IF(rawdata[[#This Row],[Opening type]]=\"Standard\",$C$10,$C$9)","v":{"v":4.539,"d":"4.54"}},{"v":3,"d":"3.0"},5.1,{"v":0.9090909090909091,"d":"0.91"},{"$f":"IF(AND($C$4>=rawdata[[#This Row],[KDmin]],$J$11=rawdata[[#This Row],[FHq]],rawdata[[#This Row],[FW]]>=rawdata[[#This Row],[FWmin]],rawdata[[#This Row],[FW]]<=rawdata[[#This Row],[FWmax]]),\"YES\",\" - \")","v":" - "},{"$f":"IF(rawdata[[#This Row],[Fhmatch 1]]=\"YES\",((1-rawdata[[#This Row],[FWmin]]/rawdata[[#This Row],[FW]])+(1-rawdata[[#This Row],[FW]]/rawdata[[#This Row],[FWmax]]))/2,\"\")","v":""},{"$f":"IF(AND($C$4>=rawdata[[#This Row],[KDmin]],$J$11=rawdata[[#This Row],[FHq]],rawdata[[#This Row],[FW]]/2>=rawdata[[#This Row],[FWmin]],rawdata[[#This Row],[FW]]/2<=rawdata[[#This Row],[FWmax]]),\"YES\",\" - \")","v":" - "},{"$f":"IFERROR(rawdata[[#This Row],[FWmin]]*2,\" - \")","v":{"v":6,"d":"6.0"}},{"$f":"IFERROR(rawdata[[#This Row],[FWmax]]*2,\" - \")","v":10.2},{"$f":"IF(rawdata[[#This Row],[Fhmatch 2]]=\"YES\",((1-rawdata[[#This Row],[Fwmin 2]]/rawdata[[#This Row],[FW]])+(1-rawdata[[#This Row],[FW]]/rawdata[[#This Row],[FWmax 2]]))/2,\"\")","v":""}]
[null,"Standard",90,600,149,"A",{"$f":"IF(rawdata[[#This Row],[Opening type]]=\"Standard\",$C$10,$C$9)","v":{"v":4.539,"d":"4.54"}},0.9,1.6,{"v":0.8333333333333334,"d":"0.83"},{"$f":"IF(AND($C$4>=rawdata[[#This Row],[KDmin]],$J$11=rawdata[[#This Row],[FHq]],rawdata[[#This Row],[FW]]>=rawdata[[#This Row],[FWmin]],rawdata[[#This Row],[FW]]<=rawdata[[#This Row],[FWmax]]),\"YES\",\" - \")","v":" - "},{"$f":"IF(rawdata[[#This Row],[Fhmatch 1]]=\"YES\",((1-rawdata[[#This Row],[FWmin]]/rawdata[[#This Row],[FW]])+(1-rawdata[[#This Row],[FW]]/rawdata[[#This Row],[FWmax]]))/2,\"\")","v":""},{"$f":"IF(AND($C$4>=rawdata[[#This Row],[KDmin]],$J$11=rawdata[[#This Row],[FHq]],rawdata[[#This Row],[FW]]/2>=rawdata[[#This Row],[FWmin]],rawdata[[#This Row],[FW]]/2<=rawdata[[#This Row],[FWmax]]),\"YES\",\" - \")","v":" - "},{"$f":"IFERROR(rawdata[[#This Row],[FWmin]]*2,\" - \")","v":1.8},{"$f":"IFERROR(rawdata[[#This Row],[FWmax]]*2,\" - \")","v":3.2},{"$f":"IF(rawdata[[#This Row],[Fhmatch 2]]=\"YES\",((1-rawdata[[#This Row],[Fwmin 2]]/rawdata[[#This Row],[FW]])+(1-rawdata[[#This Row],[FW]]/rawdata[[#This Row],[FWmax 2]]))/2,\"\")","v":""}]
[null,"Standard",90,600,149,"B",{"$f":"IF(rawdata[[#This Row],[Opening type]]=\"Standard\",$C$10,$C$9)","v":{"v":4.539,"d":"4.54"}},1.6,{"v":3,"d":"3.0"},{"v":0.8333333333333334,"d":"0.83"},{"$f":"IF(AND($C$4>=rawdata[[#This Row],[KDmin]],$J$11=rawdata[[#This Row],[FHq]],rawdata[[#This Row],[FW]]>=rawdata[[#This Row],[FWmin]],rawdata[[#This Row],[FW]]<=rawdata[[#This Row],[FWmax]]),\"YES\",\" - \")","v":" - "},{"$f":"IF(rawdata[[#This Row],[Fhmatch 1]]=\"YES\",((1-rawdata[[#This Row],[FWmin]]/rawdata[[#This Row],[FW]])+(1-rawdata[[#This Row],[FW]]/rawdata[[#This Row],[FWmax]]))/2,\"\")","v":""},{"$f":"IF(AND($C$4>=rawdata[[#This Row],[KDmin]],$J$11=rawdata[[#This Row],[FHq]],rawdata[[#This Row],[FW]]/2>=rawdata[[#This Row],[FWmin]],rawdata[[#This Row],[FW]]/2<=rawdata[[#This Row],[FWmax]]),\"YES\",\" - \")","v":" - "},{"$f":"IFERROR(rawdata[[#This Row],[FWmin]]*2,\" - \")","v":3.2},{"$f":"IFERROR(rawdata[[#This Row],[FWmax]]*2,\" - \")","v":{"v":6,"d":"6.0"}},{"$f":"IF(rawdata[[#This Row],[Fhmatch 2]]=\"YES\",((1-rawdata[[#This Row],[Fwmin 2]]/rawdata[[#This Row],[FW]])+(1-rawdata[[#This Row],[FW]]/rawdata[[#This Row],[FWmax 2]]))/2,\"\")","v":""}]
[null,"Standard",90,600,149,"D",{"$f":"IF(rawdata[[#This Row],[Opening type]]=\"Standard\",$C$10,$C$9)","v":{"v":4.539,"d":"4.54"}},{"v":3,"d":"3.0"},4.7,{"v":0.8333333333333334,"d":"0.83"},{"$f":"IF(AND($C$4>=rawdata[[#This Row],[KDmin]],$J$11=rawdata[[#This Row],[FHq]],rawdata[[#This Row],[FW]]>=rawdata[[#This Row],[FWmin]],rawdata[[#This Row],[FW]]<=rawdata[[#This Row],[FWmax]]),\"YES\",\" - \")","v":" - "},{"$f":"IF(rawdata[[#This Row],[Fhmatch 1]]=\"YES\",((1-rawdata[[#This Row],[FWmin]]/rawdata[[#This Row],[FW]])+(1-rawdata[[#This Row],[FW]]/rawdata[[#This Row],[FWmax]]))/2,\"\")","v":""},{"$f":"IF(AND($C$4>=rawdata[[#This Row],[KDmin]],$J$11=rawdata[[#This Row],[FHq]],rawdata[[#This Row],[FW]]/2>=rawdata[[#This Row],[FWmin]],rawdata[[#This Row],[FW]]/2<=rawdata[[#This Row],[FWmax]]),\"YES\",\" - \")","v":" - "},{"$f":"IFERROR(rawdata[[#This Row],[FWmin]]*2,\" - \")","v":{"v":6,"d":"6.0"}},{"$f":"IFERROR(rawdata[[#This Row],[FWmax]]*2,\" - \")","v":9.4},{"$f":"IF(rawdata[[#This Row],[Fhmatch 2]]=\"YES\",((1-rawdata[[#This Row],[Fwmin 2]]/rawdata[[#This Row],[FW]])+(1-rawdata[[#This Row],[FW]]/rawdata[[#This Row],[FWmax 2]]))/2,\"\")","v":""}]
[null,"Standard",110,275,188,"A",{"$f":"IF(rawdata[[#This Row],[Opening type]]=\"Standard\",$C$10,$C$9)","v":{"v":4.539,"d":"4.54"}},1.9,2.8,{"v":1.8181818181818181,"d":"1.82"},{"$f":"IF(AND($C$4>=rawdata[[#This Row],[KDmin]],$J$11=rawdata[[#This Row],[FHq]],rawdata[[#This Row],[FW]]>=rawdata[[#This Row],[FWmin]],rawdata[[#This Row],[FW]]<=rawdata[[#This Row],[FWmax]]),\"YES\",\" - \")","v":" - "},{"$f":"IF(rawdata[[#This Row],[Fhmatch 1]]=\"YES\",((1-rawdata[[#This Row],[FWmin]]/rawdata[[#This Row],[FW]])+(1-rawdata[[#This Row],[FW]]/rawdata[[#This Row],[FWmax]]))/2,\"\")","v":""},{"$f":"IF(AND($C$4>=rawdata[[#This Row],[KDmin]],$J$11=rawdata[[#This Row],[FHq]],rawdata[[#This Row],[FW]]/2>=rawdata[[#This Row],[FWmin]],rawdata[[#This Row],[FW]]/2<=rawdata[[#This Row],[FWmax]]),\"YES\",\" - \")","v":" - "},{"$f":"IFERROR(rawdata[[#This Row],[FWmin]]*2,\" - \")","v":3.8},{"$f":"IFERROR(rawdata[[#This Row],[FWmax]]*2,\" - \")","v":5.6},{"$f":"IF(rawdata[[#This Row],[Fhmatch 2]]=\"YES\",((1-rawdata[[#This Row],[Fwmin 2]]/rawdata[[#This Row],[FW]])+(1-rawdata[[#This Row],[FW]]/rawdata[[#This Row],[FWmax 2]]))/2,\"\")","v":""}]
[null,"Standard",110,275,188,"B",{"$f":"IF(rawdata[[#This Row],[Opening type]]=\"Standard\",$C$10,$C$9)","v":{"v":4.539,"d":"4.54"}},2.6,4.3,{"v":1.8181818181818181,"d":"1.82"},{"$f":"IF(AND($C$4>=rawdata[[#This Row],[KDmin]],$J$11=rawdata[[#This Row],[FHq]],rawdata[[#This Row],[FW]]>=rawdata[[#This Row],[FWmin]],rawdata[[#This Row],[FW]]<=rawdata[[#This Row],[FWmax]]),\"YES\",\" - \")","v":" - "},{"$f":"IF(rawdata[[#This Row],[Fhmatch 1]]=\"YES\",((1-rawdata[[#This Row],[FWmin]]/rawdata[[#This Row],[FW]])+(1-rawdata[[#This Row],[FW]]/rawdata[[#This Row],[FWmax]]))/2,\"\")","v":""},{"$f":"IF(AND($C$4>=rawdata[[#This Row],[KDmin]],$J$11=rawdata[[#This Row],[FHq]],rawdata[[#This Row],[FW]]/2>=rawdata[[#This Row],[FWmin]],rawdata[[#This Row],[FW]]/2<=rawdata[[#This Row],[FWmax]]),\"YES\",\" - \")","v":" - "},{"$f":"IFERROR(rawdata[[#This Row],[FWmin]]*2,\" - \")","v":5.2},{"$f":"IFERROR(rawdata[[#This Row],[FWmax]]*2,\" - \")","v":8.6},{"$f":"IF(rawdata[[#This Row],[Fhmatch 2]]=\"YES\",((1-rawdata[[#This Row],[Fwmin 2]]/rawdata[[#This Row],[FW]])+(1-rawdata[[#This Row],[FW]]/rawdata[[#This Row],[FWmax 2]]))/2,\"\")","v":""}]
[null,"Standard",110,275,188,"D",{"$f":"IF(rawdata[[#This Row],[Opening type]]=\"Standard\",$C$10,$C$9)","v":{"v":4.539,"d":"4.54"}},4.2,7.1,{"v":1.8181818181818181,"d":"1.82"},{"$f":"IF(AND($C$4>=rawdata[[#This Row],[KDmin]],$J$11=rawdata[[#This Row],[FHq]],rawdata[[#This Row],[FW]]>=rawdata[[#This Row],[FWmin]],rawdata[[#This Row],[FW]]<=rawdata[[#This Row],[FWmax]]),\"YES\",\" - \")","v":" - "},{"$f":"IF(rawdata[[#This Row],[Fhmatch 1]]=\"YES\",((1-rawdata[[#This Row],[FWmin]]/rawdata[[#This Row],[FW]])+(1-rawdata[[#This Row],[FW]]/rawdata[[#This Row],[FWmax]]))/2,\"\")","v":""},{"$f":"IF(AND($C$4>=rawdata[[#This Row],[KDmin]],$J$11=rawdata[[#This Row],[FHq]],rawdata[[#This Row],[FW]]/2>=rawdata[[#This Row],[FWmin]],rawdata[[#This Row],[FW]]/2<=rawdata[[#This Row],[FWmax]]),\"YES\",\" - \")","v":" - "},{"$f":"IFERROR(rawdata[[#This Row],[FWmin]]*2,\" - \")","v":8.4},{"$f":"IFERROR(rawdata[[#This Row],[FWmax]]*2,\" - \")","v":14.2},{"$f":"IF(rawdata[[#This Row],[Fhmatch 2]]=\"YES\",((1-rawdata[[#This Row],[Fwmin 2]]/rawdata[[#This Row],[FW]])+(1-rawdata[[#This Row],[FW]]/rawdata[[#This Row],[FWmax 2]]))/2,\"\")","v":""}]
[null,"Standard",110,300,188,"A",{"$f":"IF(rawdata[[#This Row],[Opening type]]=\"Standard\",$C$10,$C$9)","v":{"v":4.539,"d":"4.54"}},1.1,2.4,{"v":1.6666666666666667,"d":"1.67"},{"$f":"IF(AND($C$4>=rawdata[[#This Row],[KDmin]],$J$11=rawdata[[#This Row],[FHq]],rawdata[[#This Row],[FW]]>=rawdata[[#This Row],[FWmin]],rawdata[[#This Row],[FW]]<=rawdata[[#This Row],[FWmax]]),\"YES\",\" - \")","v":" - "},{"$f":"IF(rawdata[[#This Row],[Fhmatch 1]]=\"YES\",((1-rawdata[[#This Row],[FWmin]]/rawdata[[#This Row],[FW]])+(1-rawdata[[#This Row],[FW]]/rawdata[[#This Row],[FWmax]]))/2,\"\")","v":""},{"$f":"IF(AND($C$4>=rawdata[[#This Row],[KDmin]],$J$11=rawdata[[#This Row],[FHq]],rawdata[[#This Row],[FW]]/2>=rawdata[[#This Row],[FWmin]],rawdata[[#This Row],[FW]]/2<=rawdata[[#This Row],[FWmax]]),\"YES\",\" - \")","v":" - "},{"$f":"IFERROR(rawdata[[#This Row],[FWmin]]*2,\" - \")","v":2.2},{"$f":"IFERROR(rawdata[[#This Row],[FWmax]]*2,\" - \")","v":4.8},{"$f":"IF(rawdata[[#This Row],[Fhmatch 2]]=\"YES\",((1-rawdata[[#This Row],[Fwmin 2]]/rawdata[[#This Row],[FW]])+(1-rawdata[[#This Row],[FW]]/rawdata[[#This Row],[FWmax 2]]))/2,\"\")","v":""}]
[null,"Standard",110,300,188,"B",{"$f":"IF(rawdata[[#This Row],[Opening type]]=\"Standard\",$C$10,$C$9)","v":{"v":4.539,"d":"4.54"}},2.4,4.1,{"v":1.6666666666666667,"d":"1.67"},{"$f":"IF(AND($C$4>=rawdata[[#This Row],[KDmin]],$J$11=rawdata[[#This Row],[FHq]],rawdata[[#This Row],[FW]]>=rawdata[[#This Row],[FWmin]],rawdata[[#This Row],[FW]]<=rawdata[[#This Row],[FWmax]]),\"YES\",\" - \")","v":" - "},{"$f":"IF(rawdata[[#This Row],[Fhmatch 1]]=\"YES\",((1-rawdata[[#This Row],[FWmin]]/rawdata[[#This Row],[FW]])+(1-rawdata[[#This Row],[FW]]/rawdata[[#This Row],[FWmax]]))/2,\"\")","v":""},{"$f":"IF(AND($C$4>=rawdata[[#This Row],[KDmin]],$J$11=rawdata[[#This Row],[FHq]],rawdata[[#This Row],[FW]]/2>=rawdata[[#This Row],[FWmin]],rawdata[[#This Row],[FW]]/2<=rawdata[[#This Row],[FWmax]]),\"YES\",\" - \")","v":" - "},{"$f":"IFERROR(rawdata[[#This Row],[FWmin]]*2,\" - \")","v":4.8},{"$f":"IFERROR(rawdata[[#This Row],[FWmax]]*2,\" - \")","v":8.2},{"$f":"IF(rawdata[[#This Row],[Fhmatch 2]]=\"YES\",((1-rawdata[[#This Row],[Fwmin 2]]/rawdata[[#This Row],[FW]])+(1-rawdata[[#This Row],[FW]]/rawdata[[#This Row],[FWmax 2]]))/2,\"\")","v":""}]
[null,"Standard",110,300,188,"D",{"$f":"IF(rawdata[[#This Row],[Opening type]]=\"Standard\",$C$10,$C$9)","v":{"v":4.539,"d":"4.54"}},{"v":4,"d":"4.0"},{"v":7,"d":"7.0"},{"v":1.6666666666666667,"d":"1.67"},{"$f":"IF(AND($C$4>=rawdata[[#This Row],[KDmin]],$J$11=rawdata[[#This Row],[FHq]],rawdata[[#This Row],[FW]]>=rawdata[[#This Row],[FWmin]],rawdata[[#This Row],[FW]]<=rawdata[[#This Row],[FWmax]]),\"YES\",\" - \")","v":" - "},{"$f":"IF(rawdata[[#This Row],[Fhmatch 1]]=\"YES\",((1-rawdata[[#This Row],[FWmin]]/rawdata[[#This Row],[FW]])+(1-rawdata[[#This Row],[FW]]/rawdata[[#This Row],[FWmax]]))/2,\"\")","v":""},{"$f":"IF(AND($C$4>=rawdata[[#This Row],[KDmin]],$J$11=rawdata[[#This Row],[FHq]],rawdata[[#This Row],[FW]]/2>=rawdata[[#This Row],[FWmin]],rawdata[[#This Row],[FW]]/2<=rawdata[[#This Row],[FWmax]]),\"YES\",\" - \")","v":" - "},{"$f":"IFERROR(rawdata[[#This Row],[FWmin]]*2,\" - \")","v":{"v":8,"d":"8.0"}},{"$f":"IFERROR(rawdata[[#This Row],[FWmax]]*2,\" - \")","v":{"v":14,"d":"14.0"}},{"$f":"IF(rawdata[[#This Row],[Fhmatch 2]]=\"YES\",((1-rawdata[[#This Row],[Fwmin 2]]/rawdata[[#This Row],[FW]])+(1-rawdata[[#This Row],[FW]]/rawdata[[#This Row],[FWmax 2]]))/2,\"\")","v":""}]
[null,"Standard",110,350,188,"A",{"$f":"IF(rawdata[[#This Row],[Opening type]]=\"Standard\",$C$10,$C$9)","v":{"v":4.539,"d":"4.54"}},1.1,2.1,{"v":1.4285714285714286,"d":"1.43"},{"$f":"IF(AND($C$4>=rawdata[[#This Row],[KDmin]],$J$11=rawdata[[#This Row],[FHq]],rawdata[[#This Row],[FW]]>=rawdata[[#This Row],[FWmin]],rawdata[[#This Row],[FW]]<=rawdata[[#This Row],[FWmax]]),\"YES\",\" - \")","v":" - "},{"$f":"IF(rawdata[[#This Row],[Fhmatch 1]]=\"YES\",((1-rawdata[[#This Row],[FWmin]]/rawdata[[#This Row],[FW]])+(1-rawdata[[#This Row],[FW]]/rawdata[[#This Row],[FWmax]]))/2,\"\")","v":""},{"$f":"IF(AND($C$4>=rawdata[[#This Row],[KDmin]],$J$11=rawdata[[#This Row],[FHq]],rawdata[[#This Row],[FW]]/2>=rawdata[[#This Row],[FWmin]],rawdata[[#This Row],[FW]]/2<=rawdata[[#This Row],[FWmax]]),\"YES\",\" - \")","v":" - "},{"$f":"IFERROR(rawdata[[#This Row],[FWmin]]*2,\" - \")","v":2.2},{"$f":"IFERROR(rawdata[[#This Row],[FWmax]]*2,\" - \")","v":4.2},{"$f":"IF(rawdata[[#This Row],[Fhmatch 2]]=\"YES\",((1-rawdata[[#This Row],[Fwmin 2]]/rawdata[[#This Row],[FW]])+(1-rawdata[[#This Row],[FW]]/rawdata[[#This Row],[FWmax 2]]))/2,\"\")","v":""}]
[null,"Standard",110,350,188,"B",{"$f":"IF(rawdata[[#This Row],[Opening type]]=\"Standard\",$C$10,$C$9)","v":{"v":4.539,"d":"4.54"}},2.1,3.7,{"v":1.4285714285714286,"d":"1.43"},{"$f":"IF(AND($C$4>=rawdata[[#This Row],[KDmin]],$J$11=rawdata[[#This Row],[FHq]],rawdata[[#This Row],[FW]]>=rawdata[[#This Row],[FWmin]],rawdata[[#This Row],[FW]]<=rawdata[[#This Row],[FWmax]]),\"YES\",\" - \")","v":" - "},{"$f":"IF(rawdata[[#This Row],[Fhmatch 1]]=\"YES\",((1-rawdata[[#This Row],[FWmin]]/rawdata[[#This Row],[FW]])+(1-rawdata[[#This Row],[FW]]/rawdata[[#This Row],[FWmax]]))/2,\"\")","v":""},{"$f":"IF(AND($C$4>=rawdata[[#This Row],[KDmin]],$J$11=rawdata[[#This Row],[FHq]],rawdata[[#This Row],[FW]]/2>=rawdata[[#This Row],[FWmin]],rawdata[[#This Row],[FW]]/2<=rawdata[[#This Row],[FWmax]]),\"YES\",\" - \")","v":" - "},{"$f":"IFERROR(rawdata[[#This Row],[FWmin]]*2,\" - \")","v":4.2},{"$f":"IFERROR(rawdata[[#This Row],[FWmax]]*2,\" - \")","v":7.4},{"$f":"IF(rawdata[[#This Row],[Fhmatch 2]]=\"YES\",((1-rawdata[[#This Row],[Fwmin 2]]/rawdata[[#This Row],[FW]])+(1-rawdata[[#This Row],[FW]]/rawdata[[#This Row],[FWmax 2]]))/2,\"\")","v":""}]
[null,"Standard",110,350,188,"D",{"$f":"IF(rawdata[[#This Row],[Opening type]]=\"Standard\",$C$10,$C$9)","v":{"v":4.539,"d":"4.54"}},3.6,6.4,{"v":1.4285714285714286,"d":"1.43"},{"$f":"IF(AND($C$4>=rawdata[[#This Row],[KDmin]],$J$11=rawdata[[#This Row],[FHq]],rawdata[[#This Row],[FW]]>=rawdata[[#This Row],[FWmin]],rawdata[[#This Row],[FW]]<=rawdata[[#This Row],[FWmax]]),\"YES\",\" - \")","v":" - "},{"$f":"IF(rawdata[[#This Row],[Fhmatch 1]]=\"YES\",((1-rawdata[[#This Row],[FWmin]]/rawdata[[#This Row],[FW]])+(1-rawdata[[#This Row],[FW]]/rawdata[[#This Row],[FWmax]]))/2,\"\")","v":""},{"$f":"IF(AND($C$4>=rawdata[[#This Row],[KDmin]],$J$11=rawdata[[#This Row],[FHq]],rawdata[[#This Row],[FW]]/2>=rawdata[[#This Row],[FWmin]],rawdata[[#This Row],[FW]]/2<=rawdata[[#This Row],[FWmax]]),\"YES\",\" - \")","v":" - "},{"$f":"IFERROR(rawdata[[#This Row],[FWmin]]*2,\" - \")","v":7.2},{"$f":"IFERROR(rawdata[[#This Row],[FWmax]]*2,\" - \")","v":12.8},{"$f":"IF(rawdata[[#This Row],[Fhmatch 2]]=\"YES\",((1-rawdata[[#This Row],[Fwmin 2]]/rawdata[[#This Row],[FW]])+(1-rawdata[[#This Row],[FW]]/rawdata[[#This Row],[FWmax 2]]))/2,\"\")","v":""}]
[null,"Standard",110,400,188,"A",{"$f":"IF(rawdata[[#This Row],[Opening type]]=\"Standard\",$C$10,$C$9)","v":{"v":4.539,"d":"4.54"}},1.1,1.7,1.25,{"$f":"IF(AND($C$4>=rawdata[[#This Row],[KDmin]],$J$11=rawdata[[#This Row],[FHq]],rawdata[[#This Row],[FW]]>=rawdata[[#This Row],[FWmin]],rawdata[[#This Row],[FW]]<=rawdata[[#This Row],[FWmax]]),\"YES\",\" - \")","v":" - "},{"$f":"IF(rawdata[[#This Row],[Fhmatch 1]]=\"YES\",((1-rawdata[[#This Row],[FWmin]]/rawdata[[#This Row],[FW]])+(1-rawdata[[#This Row],[FW]]/rawdata[[#This Row],[FWmax]]))/2,\"\")","v":""},{"$f":"IF(AND($C$4>=rawdata[[#This Row],[KDmin]],$J$11=rawdata[[#This Row],[FHq]],rawdata[[#This Row],[FW]]/2>=rawdata[[#This Row],[FWmin]],rawdata[[#This Row],[FW]]/2<=rawdata[[#This Row],[FWmax]]),\"YES\",\" - \")","v":" - "},{"$f":"IFERROR(rawdata[[#This Row],[FWmin]]*2,\" - \")","v":2.2},{"$f":"IFERROR(rawdata[[#This Row],[FWmax]]*2,\" - \")","v":3.4},{"$f":"IF(rawdata[[#This Row],[Fhmatch 2]]=\"YES\",((1-rawdata[[#This Row],[Fwmin 2]]/rawdata[[#This Row],[FW]])+(1-rawdata[[#This Row],[FW]]/rawdata[[#This Row],[FWmax 2]]))/2,\"\")","v":""}]
[null,"Standard",110,400,188,"B",{"$f":"IF(rawdata[[#This Row],[Opening type]]=\"Standard\",$C$10,$C$9)","v":{"v":4.539,"d":"4.54"}},1.7,3.2,1.25,{"$f":"IF(AND($C$4>=rawdata[[#This Row],[KDmin]],$J$11=rawdata[[#This Row],[FHq]],rawdata[[#This Row],[FW]]>=rawdata[[#This Row],[FWmin]],rawdata[[#This Row],[FW]]<=rawdata[[#This Row],[FWmax]]),\"YES\",\" - \")","v":" - "},{"$f":"IF(rawdata[[#This Row],[Fhmatch 1]]=\"YES\",((1-rawdata[[#This Row],[FWmin]]/rawdata[[#This Row],[FW]])+(1-rawdata[[#This Row],[FW]]/rawdata[[#This Row],[FWmax]]))/2,\"\")","v":""},{"$f":"IF(AND($C$4>=rawdata[[#This Row],[KDmin]],$J$11=rawdata[[#This Row],[FHq]],rawdata[[#This Row],[FW]]/2>=rawdata[[#This Row],[FWmin]],rawdata[[#This Row],[FW]]/2<=rawdata[[#This Row],[FWmax]]),\"YES\",\" - \")","v":" - "},{"$f":"IFERROR(rawdata[[#This Row],[FWmin]]*2,\" - \")","v":3.4},{"$f":"IFERROR(rawdata[[#This Row],[FWmax]]*2,\" - \")","v":6.4},{"$f":"IF(rawdata[[#This Row],[Fhmatch 2]]=\"YES\",((1-rawdata[[#This Row],[Fwmin 2]]/rawdata[[#This Row],[FW]])+(1-rawdata[[#This Row],[FW]]/rawdata[[#This Row],[FWmax 2]]))/2,\"\")","v":""}]
[null,"Standard",110,400,188,"D",{"$f":"IF(rawdata[[#This Row],[Opening type]]=\"Standard\",$C$10,$C$9)","v":{"v":4.539,"d":"4.54"}},3.2,5.5,1.25,{"$f":"IF(AND($C$4>=rawdata[[#This Row],[KDmin]],$J$11=rawdata[[#This Row],[FHq]],rawdata[[#This Row],[FW]]>=rawdata[[#This Row],[FWmin]],rawdata[[#This Row],[FW]]<=rawdata[[#This Row],[FWmax]]),\"YES\",\" - \")","v":" - "},{"$f":"IF(rawdata[[#This Row],[Fhmatch 1]]=\"YES\",((1-rawdata[[#This Row],[FWmin]]/rawdata[[#This Row],[FW]])+(1-rawdata[[#This Row],[FW]]/rawdata[[#This Row],[FWmax]]))/2,\"\")","v":""},{"$f":"IF(AND($C$4>=rawdata[[#This Row],[KDmin]],$J$11=rawdata[[#This Row],[FHq]],rawdata[[#This Row],[FW]]/2>=rawdata[[#This Row],[FWmin]],rawdata[[#This Row],[FW]]/2<=rawdata[[#This Row],[FWmax]]),\"YES\",\" - \")","v":" - "},{"$f":"IFERROR(rawdata[[#This Row],[FWmin]]*2,\" - \")","v":6.4},{"$f":"IFERROR(rawdata[[#This Row],[FWmax]]*2,\" - \")","v":{"v":11,"d":"11.0"}},{"$f":"IF(rawdata[[#This Row],[Fhmatch 2]]=\"YES\",((1-rawdata[[#This Row],[Fwmin 2]]/rawdata[[#This Row],[FW]])+(1-rawdata[[#This Row],[FW]]/rawdata[[#This Row],[FWmax 2]]))/2,\"\")","v":""}]
[null,"Standard",110,450,188,"A",{"$f":"IF(rawdata[[#This Row],[Opening type]]=\"Standard\",$C$10,$C$9)","v":{"v":4.539,"d":"4.54"}},{"v":1,"d":"1.0"},1.6,{"v":1.1111111111111112,"d":"1.11"},{"$f":"IF(AND($C$4>=rawdata[[#This Row],[KDmin]],$J$11=rawdata[[#This Row],[FHq]],rawdata[[#This Row],[FW]]>=rawdata[[#This Row],[FWmin]],rawdata[[#This Row],[FW]]<=rawdata[[#This Row],[FWmax]]),\"YES\",\" - \")","v":" - "},{"$f":"IF(rawdata[[#This Row],[Fhmatch 1]]=\"YES\",((1-rawdata[[#This Row],[FWmin]]/rawdata[[#This Row],[FW]])+(1-rawdata[[#This Row],[FW]]/rawdata[[#This Row],[FWmax]]))/2,\"\")","v":""},{"$f":"IF(AND($C$4>=rawdata[[#This Row],[KDmin]],$J$11=rawdata[[#This Row],[FHq]],rawdata[[#This Row],[FW]]/2>=rawdata[[#This Row],[FWmin]],rawdata[[#This Row],[FW]]/2<=rawdata[[#This Row],[FWmax]]),\"YES\",\" - \")","v":" - "},{"$f":"IFERROR(rawdata[[#This Row],[FWmin]]*2,\" - \")","v":{"v":2,"d":"2.0"}},{"$f":"IFERROR(rawdata[[#This Row],[FWmax]]*2,\" - \")","v":3.2},{"$f":"IF(rawdata[[#This Row],[Fhmatch 2]]=\"YES\",((1-rawdata[[#This Row],[Fwmin 2]]/rawdata[[#This Row],[FW]])+(1-rawdata[[#This Row],[FW]]/rawdata[[#This Row],[FWmax 2]]))/2,\"\")","v":""}]
[null,"Standard",110,450,188,"B",{"$f":"IF(rawdata[[#This Row],[Opening type]]=\"Standard\",$C$10,$C$9)","v":{"v":4.539,"d":"4.54"}},1.6,2.8,{"v":1.1111111111111112,"d":"1.11"},{"$f":"IF(AND($C$4>=rawdata[[#This Row],[KDmin]],$J$11=rawdata[[#This Row],[FHq]],rawdata[[#This Row],[FW]]>=rawdata[[#This Row],[FWmin]],rawdata[[#This Row],[FW]]<=rawdata[[#This Row],[FWmax]]),\"YES\",\" - \")","v":" - "},{"$f":"IF(rawdata[[#This Row],[Fhmatch 1]]=\"YES\",((1-rawdata[[#This Row],[FWmin]]/rawdata[[#This Row],[FW]])+(1-rawdata[[#This Row],[FW]]/rawdata[[#This Row],[FWmax]]))/2,\"\")","v":""},{"$f":"IF(AND($C$4>=rawdata[[#This Row],[KDmin]],$J$11=rawdata[[#This Row],[FHq]],rawdata[[#This Row],[FW]]/2>=rawdata[[#This Row],[FWmin]],rawdata[[#This Row],[FW]]/2<=rawdata[[#This Row],[FWmax]]),\"YES\",\" - \")","v":" - "},{"$f":"IFERROR(rawdata[[#This Row],[FWmin]]*2,\" - \")","v":3.2},{"$f":"IFERROR(rawdata[[#This Row],[FWmax]]*2,\" - \")","v":5.6},{"$f":"IF(rawdata[[#This Row],[Fhmatch 2]]=\"YES\",((1-rawdata[[#This Row],[Fwmin 2]]/rawdata[[#This Row],[FW]])+(1-rawdata[[#This Row],[FW]]/rawdata[[#This Row],[FWmax 2]]))/2,\"\")","v":""}]
[null,"Standard",110,450,188,"D",{"$f":"IF(rawdata[[#This Row],[Opening type]]=\"Standard\",$C$10,$C$9)","v":{"v":4.539,"d":"4.54"}},2.8,5.5,{"v":1.1111111111111112,"d":"1.11"},{"$f":"IF(AND($C$4>=rawdata[[#This Row],[KDmin]],$J$11=rawdata[[#This Row],[FHq]],rawdata[[#This Row],[FW]]>=rawdata[[#This Row],[FWmin]],rawdata[[#This Row],[FW]]<=rawdata[[#This Row],[FWmax]]),\"YES\",\" - \")","v":" - "},{"$f":"IF(rawdata[[#This Row],[Fhmatch 1]]=\"YES\",((1-rawdata[[#This Row],[FWmin]]/rawdata[[#This Row],[FW]])+(1-rawdata[[#This Row],[FW]]/rawdata[[#This Row],[FWmax]]))/2,\"\")","v":""},{"$f":"IF(AND($C$4>=rawdata[[#This Row],[KDmin]],$J$11=rawdata[[#This Row],[FHq]],rawdata[[#This Row],[FW]]/2>=rawdata[[#This Row],[FWmin]],rawdata[[#This Row],[FW]]/2<=rawdata[[#This Row],[FWmax]]),\"YES\",\" - \")","v":" - "},{"$f":"IFERROR(rawdata[[#This Row],[FWmin]]*2,\" - \")","v":5.6},{"$f":"IFERROR(rawdata[[#This Row],[FWmax]]*2,\" - \")","v":{"v":11,"d":"11.0"}},{"$f":"IF(rawdata[[#This Row],[Fhmatch 2]]=\"YES\",((1-rawdata[[#This Row],[Fwmin 2]]/rawdata[[#This Row],[FW]])+(1-rawdata[[#This Row],[FW]]/rawdata[[#This Row],[FWmax 2]]))/2,\"\")","v":""}]
[null,"Standard",110,500,188,"A",{"$f":"IF(rawdata[[#This Row],[Opening type]]=\"Standard\",$C$10,$C$9)","v":{"v":4.539,"d":"4.54"}},{"v":1,"d":"1.0"},1.4,{"v":1,"d":"1.00"},{"$f":"IF(AND($C$4>=rawdata[[#This Row],[KDmin]],$J$11=rawdata[[#This Row],[FHq]],rawdata[[#This Row],[FW]]>=rawdata[[#This Row],[FWmin]],rawdata[[#This Row],[FW]]<=rawdata[[#This Row],[FWmax]]),\"YES\",\" - \")","v":" - "},{"$f":"IF(rawdata[[#This Row],[Fhmatch 1]]=\"YES\",((1-rawdata[[#This Row],[FWmin]]/rawdata[[#This Row],[FW]])+(1-rawdata[[#This Row],[FW]]/rawdata[[#This Row],[FWmax]]))/2,\"\")","v":""},{"$f":"IF(AND($C$4>=rawdata[[#This Row],[KDmin]],$J$11=rawdata[[#This Row],[FHq]],rawdata[[#This Row],[FW]]/2>=rawdata[[#This Row],[FWmin]],rawdata[[#This Row],[FW]]/2<=rawdata[[#This Row],[FWmax]]),\"YES\",\" - \")","v":" - "},{"$f":"IFERROR(rawdata[[#This Row],[FWmin]]*2,\" - \")","v":{"v":2,"d":"2.0"}},{"$f":"IFERROR(rawdata[[#This Row],[FWmax]]*2,\" - \")","v":2.8},{"$f":"IF(rawdata[[#This Row],[Fhmatch 2]]=\"YES\",((1-rawdata[[#This Row],[Fwmin 2]]/rawdata[[#This Row],[FW]])+(1-rawdata[[#This Row],[FW]]/rawdata[[#This Row],[FWmax 2]]))/2,\"\")","v":""}]
[null,"Standard",110,500,188,"B",{"$f":"IF(rawdata[[#This Row],[Opening type]]=\"Standard\",$C$10,$C$9)","v":{"v":4.539,"d":"4.54"}},1.3,2.5,{"v":1,"d":"1.00"},{"$f":"IF(AND($C$4>=rawdata[[#This Row],[KDmin]],$J$11=rawdata[[#This Row],[FHq]],rawdata[[#This Row],[FW]]>=rawdata[[#This Row],[FWmin]],rawdata[[#This Row],[FW]]<=rawdata[[#This Row],[FWmax]]),\"YES\",\" - \")","v":" - "},{"$f":"IF(rawdata[[#This Row],[Fhmatch 1]]=\"YES\",((1-rawdata[[#This Row],[FWmin]]/rawdata[[#This Row],[FW]])+(1-rawdata[[#This Row],[FW]]/rawdata[[#This Row],[FWmax]]))/2,\"\")","v":""},{"$f":"IF(AND($C$4>=rawdata[[#This Row],[KDmin]],$J$11=rawdata[[#This Row],[FHq]],rawdata[[#This Row],[FW]]/2>=rawdata[[#This Row],[FWmin]],rawdata[[#This Row],[FW]]/2<=rawdata[[#This Row],[FWmax]]),\"YES\",\" - \")","v":"YES"},{"$f":"IFERROR(rawdata[[#This Row],[FWmin]]*2,\" - \")","v":2.6},{"$f":"IFERROR(rawdata[[#This Row],[FWmax]]*2,\" - \")","v":{"v":5,"d":"5.0"}},{"$f":"IF(rawdata[[#This Row],[Fhmatch 2]]=\"YES\",((1-rawdata[[#This Row],[Fwmin 2]]/rawdata[[#This Row],[FW]])+(1-rawdata[[#This Row],[FW]]/rawdata[[#This Row],[FWmax 2]]))/2,\"\")","v":{"v":0.25969330248953515,"d":"25.97%"}}]
[null,"Standard",110,500,188,"D",{"$f":"IF(rawdata[[#This Row],[Opening type]]=\"Standard\",$C$10,$C$9)","v":{"v":4.539,"d":"4.54"}},2.5,4.5,{"v":1,"d":"1.00"},{"$f":"IF(AND($C$4>=rawdata[[#This Row],[KDmin]],$J$11=rawdata[[#This Row],[FHq]],rawdata[[#This Row],[FW]]>=rawdata[[#This Row],[FWmin]],rawdata[[#This Row],[FW]]<=rawdata[[#This Row],[FWmax]]),\"YES\",\" - \")","v":" - "},{"$f":"IF(rawdata[[#This Row],[Fhmatch 1]]=\"YES\",((1-rawdata[[#This Row],[FWmin]]/rawdata[[#This Row],[FW]])+(1-rawdata[[#This Row],[FW]]/rawdata[[#This Row],[FWmax]]))/2,\"\")","v":""},{"$f":"IF(AND($C$4>=rawdata[[#This Row],[KDmin]],$J$11=rawdata[[#This Row],[FHq]],rawdata[[#This Row],[FW]]/2>=rawdata[[#This Row],[FWmin]],rawdata[[#This Row],[FW]]/2<=rawdata[[#This Row],[FWmax]]),\"YES\",\" - \")","v":" - "},{"$f":"IFERROR(rawdata[[#This Row],[FWmin]]*2,\" - \")","v":{"v":5,"d":"5.0"}},{"$f":"IFERROR(rawdata[[#This Row],[FWmax]]*2,\" - \")","v":{"v":9,"d":"9.0"}},{"$f":"IF(rawdata[[#This Row],[Fhmatch 2]]=\"YES\",((1-rawdata[[#This Row],[Fwmin 2]]/rawdata[[#This Row],[FW]])+(1-rawdata[[#This Row],[FW]]/rawdata[[#This Row],[FWmax 2]]))/2,\"\")","v":""}]
[null,"Standard",110,550,188,"A",{"$f":"IF(rawdata[[#This Row],[Opening type]]=\"Standard\",$C$10,$C$9)","v":{"v":4.539,"d":"4.54"}},0.8,1.3,{"v":0.9090909090909091,"d":"0.91"},{"$f":"IF(AND($C$4>=rawdata[[#This Row],[KDmin]],$J$11=rawdata[[#This Row],[FHq]],rawdata[[#This Row],[FW]]>=rawdata[[#This Row],[FWmin]],rawdata[[#This Row],[FW]]<=rawdata[[#This Row],[FWmax]]),\"YES\",\" - \")","v":" - "},{"$f":"IF(rawdata[[#This Row],[Fhmatch 1]]=\"YES\",((1-rawdata[[#This Row],[FWmin]]/rawdata[[#This Row],[FW]])+(1-rawdata[[#This Row],[FW]]/rawdata[[#This Row],[FWmax]]))/2,\"\")","v":""},{"$f":"IF(AND($C$4>=rawdata[[#This Row],[KDmin]],$J$11=rawdata[[#This Row],[FHq]],rawdata[[#This Row],[FW]]/2>=rawdata[[#This Row],[FWmin]],rawdata[[#This Row],[FW]]/2<=rawdata[[#This Row],[FWmax]]),\"YES\",\" - \")","v":" - "},{"$f":"IFERROR(rawdata[[#This Row],[FWmin]]*2,\" - \")","v":1.6},{"$f":"IFERROR(rawdata[[#This Row],[FWmax]]*2,\" - \")","v":2.6},{"$f":"IF(rawdata[[#This Row],[Fhmatch 2]]=\"YES\",((1-rawdata[[#This Row],[Fwmin 2]]/rawdata[[#This Row],[FW]])+(1-rawdata[[#This Row],[FW]]/rawdata[[#This Row],[FWmax 2]]))/2,\"\")","v":""}]
[null,"Standard",110,550,188,"B",{"$f":"IF(rawdata[[#This Row],[Opening type]]=\"Standard\",$C$10,$C$9)","v":{"v":4.539,"d":"4.54"}},1.3,2.2,{"v":0.9090909090909091,"d":"0.91"},{"$f":"IF(AND($C$4>=rawdata[[#This Row],[KDmin]],$J$11=rawdata[[#This Row],[FHq]],rawdata[[#This Row],[FW]]>=rawdata[[#This Row],[FWmin]],rawdata[[#This Row],[FW]]<=rawdata[[#This Row],[FWmax]]),\"YES\",\" - \")","v":" - "},{"$f":"IF(rawdata[[#This Row],[Fhmatch 1]]=\"YES\",((1-rawdata[[#This Row],[FWmin]]/rawdata[[#This Row],[FW]])+(1-rawdata[[#This Row],[FW]]/rawdata[[#This Row],[FWmax]]))/2,\"\")","v":""},{"$f":"IF(AND($C$4>=rawdata[[#This Row],[KDmin]],$J$11=rawdata[[#This Row],[FHq]],rawdata[[#This Row],[FW]]/2>=rawdata[[#This Row],[FWmin]],rawdata[[#This Row],[FW]]/2<=rawdata[[#This Row],[FWmax]]),\"YES\",\" - \")","v":" - "},{"$f":"IFERROR(rawdata[[#This Row],[FWmin]]*2,\" - \")","v":2.6},{"$f":"IFERROR(rawdata[[#This Row],[FWmax]]*2,\" - \")","v":4.4},{"$f":"IF(rawdata[[#This Row],[Fhmatch 2]]=\"YES\",((1-rawdata[[#This Row],[Fwmin 2]]/rawdata[[#This Row],[FW]])+(1-rawdata[[#This Row],[FW]]/rawdata[[#This Row],[FWmax 2]]))/2,\"\")","v":""}]
[null,"Standard",110,550,188,"D",{"$f":"IF(rawdata[[#This Row],[Opening type]]=\"Standard\",$C$10,$C$9)","v":{"v":4.539,"d":"4.54"}},2.2,3.9,{"v":0.9090909090909091,"d":"0.91"},{"$f":"IF(AND($C$4>=rawdata[[#This Row],[KDmin]],$J$11=rawdata[[#This Row],[FHq]],rawdata[[#This Row],[FW]]>=rawdata[[#This Row],[FWmin]],rawdata[[#This Row],[FW]]<=rawdata[[#This Row],[FWmax]]),\"YES\",\" - \")","v":" - "},{"$f":"IF(rawdata[[#This Row],[Fhmatch 1]]=\"YES\",((1-rawdata[[#This Row],[FWmin]]/rawdata[[#This Row],[FW]])+(1-rawdata[[#This Row],[FW]]/rawdata[[#This Row],[FWmax]]))/2,\"\")","v":""},{"$f":"IF(AND($C$4>=rawdata[[#This Row],[KDmin]],$J$11=rawdata[[#This Row],[FHq]],rawdata[[#This Row],[FW]]/2>=rawdata[[#This Row],[FWmin]],rawdata[[#This Row],[FW]]/2<=rawdata[[#This Row],[FWmax]]),\"YES\",\" - \")","v":" - "},{"$f":"IFERROR(rawdata[[#This Row],[FWmin]]*2,\" - \")","v":4.4},{"$f":"IFERROR(rawdata[[#This Row],[FWmax]]*2,\" - \")","v":7.8},{"$f":"IF(rawdata[[#This Row],[Fhmatch 2]]=\"YES\",((1-rawdata[[#This Row],[Fwmin 2]]/rawdata[[#This Row],[FW]])+(1-rawdata[[#This Row],[FW]]/rawdata[[#This Row],[FWmax 2]]))/2,\"\")","v":""}]
[null,"Standard",110,600,188,"A",{"$f":"IF(rawdata[[#This Row],[Opening type]]=\"Standard\",$C$10,$C$9)","v":{"v":4.539,"d":"4.54"}},0.7,1.2,{"v":0.8333333333333334,"d":"0.83"},{"$f":"IF(AND($C$4>=rawdata[[#This Row],[KDmin]],$J$11=rawdata[[#This Row],[FHq]],rawdata[[#This Row],[FW]]>=rawdata[[#This Row],[FWmin]],rawdata[[#This Row],[FW]]<=rawdata[[#This Row],[FWmax]]),\"YES\",\" - \")","v":" - "},{"$f":"IF(rawdata[[#This Row],[Fhmatch 1]]=\"YES\",((1-rawdata[[#This Row],[FWmin]]/rawdata[[#This Row],[FW]])+(1-rawdata[[#This Row],[FW]]/rawdata[[#This Row],[FWmax]]))/2,\"\")","v":""},{"$f":"IF(AND($C$4>=rawdata[[#This Row],[KDmin]],$J$11=rawdata[[#This Row],[FHq]],rawdata[[#This Row],[FW]]/2>=rawdata[[#This Row],[FWmin]],rawdata[[#This Row],[FW]]/2<=rawdata[[#This Row],[FWmax]]),\"YES\",\" - \")","v":" - "},{"$f":"IFERROR(rawdata[[#This Row],[FWmin]]*2,\" - \")","v":1.4},{"$f":"IFERROR(rawdata[[#This Row],[FWmax]]*2,\" - \")","v":2.4},{"$f":"IF(rawdata[[#This Row],[Fhmatch 2]]=\"YES\",((1-rawdata[[#This Row],[Fwmin 2]]/rawdata[[#This Row],[FW]])+(1-rawdata[[#This Row],[FW]]/rawdata[[#This Row],[FWmax 2]]))/2,\"\")","v":""}]
[null,"Standard",110,600,188,"B",{"$f":"IF(rawdata[[#This Row],[Opening type]]=\"Standard\",$C$10,$C$9)","v":{"v":4.539,"d":"4.54"}},1.2,2.2,{"$f":"$C$2/D77","v":{"v":0.8333333333333334,"d":"0.83"}},{"$f":"IF(AND($C$4>=rawdata[[#This Row],[KDmin]],$J$11=rawdata[[#This Row],[FHq]],rawdata[[#This Row],[FW]]>=rawdata[[#This Row],[FWmin]],rawdata[[#This Row],[FW]]<=rawdata[[#This Row],[FWmax]]),\"YES\",\" - \")","v":" - "},{"$f":"IF(rawdata[[#This Row],[Fhmatch 1]]=\"YES\",((1-rawdata[[#This Row],[FWmin]]/rawdata[[#This Row],[FW]])+(1-rawdata[[#This Row],[FW]]/rawdata[[#This Row],[FWmax]]))/2,\"\")","v":""},{"$f":"IF(AND($C$4>=rawdata[[#This Row],[KDmin]],$J$11=rawdata[[#This Row],[FHq]],rawdata[[#This Row],[FW]]/2>=rawdata[[#This Row],[FWmin]],rawdata[[#This Row],[FW]]/2<=rawdata[[#This Row],[FWmax]]),\"YES\",\" - \")","v":" - "},{"$f":"IFERROR(rawdata[[#This Row],[FWmin]]*2,\" - \")","v":2.4},{"$f":"IFERROR(rawdata[[#This Row],[FWmax]]*2,\" - \")","v":4.4},{"$f":"IF(rawdata[[#This Row],[Fhmatch 2]]=\"YES\",((1-rawdata[[#This Row],[Fwmin 2]]/rawdata[[#This Row],[FW]])+(1-rawdata[[#This Row],[FW]]/rawdata[[#This Row],[FWmax 2]]))/2,\"\")","v":""}]
[null,"Standard",110,600,188,"D",{"$f":"IF(rawdata[[#This Row],[Opening type]]=\"Standard\",$C$10,$C$9)","v":{"v":4.539,"d":"4.54"}},2.2,4.3,{"v":0.8333333333333334,"d":"0.83"},{"$f":"IF(AND($C$4>=rawdata[[#This Row],[KDmin]],$J$11=rawdata[[#This Row],[FHq]],rawdata[[#This Row],[FW]]>=rawdata[[#This Row],[FWmin]],rawdata[[#This Row],[FW]]<=rawdata[[#This Row],[FWmax]]),\"YES\",\" - \")","v":" - "},{"$f":"IF(rawdata[[#This Row],[Fhmatch 1]]=\"YES\",((1-rawdata[[#This Row],[FWmin]]/rawdata[[#This Row],[FW]])+(1-rawdata[[#This Row],[FW]]/rawdata[[#This Row],[FWmax]]))/2,\"\")","v":""},{"$f":"IF(AND($C$4>=rawdata[[#This Row],[KDmin]],$J$11=rawdata[[#This Row],[FHq]],rawdata[[#This Row],[FW]]/2>=rawdata[[#This Row],[FWmin]],rawdata[[#This Row],[FW]]/2<=rawdata[[#This Row],[FWmax]]),\"YES\",\" - \")","v":" - "},{"$f":"IFERROR(rawdata[[#This Row],[FWmin]]*2,\" - \")","v":4.4},{"$f":"IFERROR(rawdata[[#This Row],[FWmax]]*2,\" - \")","v":8.6},{"$f":"IF(rawdata[[#This Row],[Fhmatch 2]]=\"YES\",((1-rawdata[[#This Row],[Fwmin 2]]/rawdata[[#This Row],[FW]])+(1-rawdata[[#This Row],[FW]]/rawdata[[#This Row],[FWmax 2]]))/2,\"\")","v":""}]
[null,"Touch opening",75,350,192,"B",{"$f":"IF(rawdata[[#This Row],[Opening type]]=\"Standard\",$C$10,$C$9)","v":{"v":4.388999999999999,"d":"4.39"}},4.6,5.3,{"v":1.4285714285714286,"d":"1.43"},{"$f":"IF(AND($C$4>=rawdata[[#This Row],[KDmin]],$J$11=rawdata[[#This Row],[FHq]],rawdata[[#This Row],[FW]]>=rawdata[[#This Row],[FWmin]],rawdata[[#This Row],[FW]]<=rawdata[[#This Row],[FWmax]]),\"YES\",\" - \")","v":" - "},{"$f":"IF(rawdata[[#This Row],[Fhmatch 1]]=\"YES\",((1-rawdata[[#This Row],[FWmin]]/rawdata[[#This Row],[FW]])+(1-rawdata[[#This Row],[FW]]/rawdata[[#This Row],[FWmax]]))/2,\"\")","v":""},{"$f":"IF(AND($C$4>=rawdata[[#This Row],[KDmin]],$J$11=rawdata[[#This Row],[FHq]],rawdata[[#This Row],[FW]]/2>=rawdata[[#This Row],[FWmin]],rawdata[[#This Row],[FW]]/2<=rawdata[[#This Row],[FWmax]]),\"YES\",\" - \")","v":" - "},{"$f":"IFERROR(rawdata[[#This Row],[FWmin]]*2,\" - \")","v":9.2},{"$f":"IFERROR(rawdata[[#This Row],[FWmax]]*2,\" - \")","v":10.6},{"$f":"IF(rawdata[[#This Row],[Fhmatch 2]]=\"YES\",((1-rawdata[[#This Row],[Fwmin 2]]/rawdata[[#This Row],[FW]])+(1-rawdata[[#This Row],[FW]]/rawdata[[#This Row],[FWmax 2]]))/2,\"\")","v":""}]
[null,"Touch opening",75,350,192,"C",{"$f":"IF(rawdata[[#This Row],[Opening type]]=\"Standard\",$C$10,$C$9)","v":{"v":4.388999999999999,"d":"4.39"}},"-","-",{"v":1.4285714285714286,"d":"1.43"},{"$f":"IF(AND($C$4>=rawdata[[#This Row],[KDmin]],$J$11=rawdata[[#This Row],[FHq]],rawdata[[#This Row],[FW]]>=rawdata[[#This Row],[FWmin]],rawdata[[#This Row],[FW]]<=rawdata[[#This Row],[FWmax]]),\"YES\",\" - \")","v":" - "},{"$f":"IF(rawdata[[#This Row],[Fhmatch 1]]=\"YES\",((1-rawdata[[#This Row],[FWmin]]/rawdata[[#This Row],[FW]])+(1-rawdata[[#This Row],[FW]]/rawdata[[#This Row],[FWmax]]))/2,\"\")","v":""},{"$f":"IF(AND($C$4>=rawdata[[#This Row],[KDmin]],$J$11=rawdata[[#This Row],[FHq]],rawdata[[#This Row],[FW]]/2>=rawdata[[#This Row],[FWmin]],rawdata[[#This Row],[FW]]/2<=rawdata[[#This Row],[FWmax]]),\"YES\",\" - \")","v":" - "},{"$f":"IFERROR(rawdata[[#This Row],[FWmin]]*2,\" - \")","v":" - "},{"$f":"IFERROR(rawdata[[#This Row],[FWmax]]*2,\" - \")","v":" - "},{"$f":"IF(rawdata[[#This Row],[Fhmatch 2]]=\"YES\",((1-rawdata[[#This Row],[Fwmin 2]]/rawdata[[#This Row],[FW]])+(1-rawdata[[#This Row],[FW]]/rawdata[[#This Row],[FWmax 2]]))/2,\"\")","v":""}]
[null,"Touch opening",75,350,192,"D",{"$f":"IF(rawdata[[#This Row],[Opening type]]=\"Standard\",$C$10,$C$9)","v":{"v":4.388999999999999,"d":"4.39"}},"-","-",{"v":1.4285714285714286,"d":"1.43"},{"$f":"IF(AND($C$4>=rawdata[[#This Row],[KDmin]],$J$11=rawdata[[#This Row],[FHq]],rawdata[[#This Row],[FW]]>=rawdata[[#This Row],[FWmin]],rawdata[[#This Row],[FW]]<=rawdata[[#This Row],[FWmax]]),\"YES\",\" - \")","v":" - "},{"$f":"IF(rawdata[[#This Row],[Fhmatch 1]]=\"YES\",((1-rawdata[[#This Row],[FWmin]]/rawdata[[#This Row],[FW]])+(1-rawdata[[#This Row],[FW]]/rawdata[[#This Row],[FWmax]]))/2,\"\")","v":""},{"$f":"IF(AND($C$4>=rawdata[[#This Row],[KDmin]],$J$11=rawdata[[#This Row],[FHq]],rawdata[[#This Row],[FW]]/2>=rawdata[[#This Row],[FWmin]],rawdata[[#This Row],[FW]]/2<=rawdata[[#This Row],[FWmax]]),\"YES\",\" - \")","v":" - "},{"$f":"IFERROR(rawdata[[#This Row],[FWmin]]*2,\" - \")","v":" - "},{"$f":"IFERROR(rawdata[[#This Row],[FWmax]]*2,\" - \")","v":" - "},{"$f":"IF(rawdata[[#This Row],[Fhmatch 2]]=\"YES\",((1-rawdata[[#This Row],[Fwmin 2]]/rawdata[[#This Row],[FW]])+(1-rawdata[[#This Row],[FW]]/rawdata[[#This Row],[FWmax 2]]))/2,\"\")","v":""}]
[null,"Touch opening",75,400,192,"B",{"$f":"IF(rawdata[[#This Row],[Opening type]]=\"Standard\",$C$10,$C$9)","v":{"v":4.388999999999999,"d":"4.39"}},3.2,4.8,1.25,{"$f":"IF(AND($C$4>=rawdata[[#This Row],[KDmin]],$J$11=rawdata[[#This Row],[FHq]],rawdata[[#This Row],[FW]]>=rawdata[[#This Row],[FWmin]],rawdata[[#This Row],[FW]]<=rawdata[[#This Row],[FWmax]]),\"YES\",\" - \")","v":" - "},{"$f":"IF(rawdata[[#This Row],[Fhmatch 1]]=\"YES\",((1-rawdata[[#This Row],[FWmin]]/rawdata[[#This Row],[FW]])+(1-rawdata[[#This Row],[FW]]/rawdata[[#This Row],[FWmax]]))/2,\"\")","v":""},{"$f":"IF(AND($C$4>=rawdata[[#This Row],[KDmin]],$J$11=rawdata[[#This Row],[FHq]],rawdata[[#This Row],[FW]]/2>=rawdata[[#This Row],[FWmin]],rawdata[[#This Row],[FW]]/2<=rawdata[[#This Row],[FWmax]]),\"YES\",\" - \")","v":" - "},{"$f":"IFERROR(rawdata[[#This Row],[FWmin]]*2,\" - \")","v":6.4},{"$f":"IFERROR(rawdata[[#This Row],[FWmax]]*2,\" - \")","v":9.6},{"$f":"IF(rawdata[[#This Row],[Fhmatch 2]]=\"YES\",((1-rawdata[[#This Row],[Fwmin 2]]/rawdata[[#This Row],[FW]])+(1-rawdata[[#This Row],[FW]]/rawdata[[#This Row],[FWmax 2]]))/2,\"\")","v":""}]
[null,"Touch opening",75,400,192,"C*",{"$f":"IF(rawdata[[#This Row],[Opening type]]=\"Standard\",$C$10,$C$9)","v":{"v":4.388999999999999,"d":"4.39"}},4.3,{"v":7,"d":"7.0"},1.25,{"$f":"IF(AND($C$4>=rawdata[[#This Row],[KDmin]],$J$11=rawdata[[#This Row],[FHq]],rawdata[[#This Row],[FW]]>=rawdata[[#This Row],[FWmin]],rawdata[[#This Row],[FW]]<=rawdata[[#This Row],[FWmax]]),\"YES\",\" - \")","v":" - "},{"$f":"IF(rawdata[[#This Row],[Fhmatch 1]]=\"YES\",((1-rawdata[[#This Row],[FWmin]]/rawdata[[#This Row],[FW]])+(1-rawdata[[#This Row],[FW]]/rawdata[[#This Row],[FWmax]]))/2,\"\")","v":""},{"$f":"IF(AND($C$4>=rawdata[[#This Row],[KDmin]],$J$11=rawdata[[#This Row],[FHq]],rawdata[[#This Row],[FW]]/2>=rawdata[[#This Row],[FWmin]],rawdata[[#This Row],[FW]]/2<=rawdata[[#This Row],[FWmax]]),\"YES\",\" - \")","v":" - "},{"$f":"IFERROR(rawdata[[#This Row],[FWmin]]*2,\" - \")","v":8.6},{"$f":"IFERROR(rawdata[[#This Row],[FWmax]]*2,\" - \")","v":{"v":14,"d":"14.0"}},{"$f":"IF(rawdata[[#This Row],[Fhmatch 2]]=\"YES\",((1-rawdata[[#This Row],[Fwmin 2]]/rawdata[[#This Row],[FW]])+(1-rawdata[[#This Row],[FW]]/rawdata[[#This Row],[FWmax 2]]))/2,\"\")","v":""}]
[null,"Touch opening",75,400,192,"D*",{"$f":"IF(rawdata[[#This Row],[Opening type]]=\"Standard\",$C$10,$C$9)","v":{"v":4.388999999999999,"d":"4.39"}},5.5,{"v":8,"d":"8.0"},1.25,{"$f":"IF(AND($C$4>=rawdata[[#This Row],[KDmin]],$J$11=rawdata[[#This Row],[FHq]],rawdata[[#This Row],[FW]]>=rawdata[[#This Row],[FWmin]],rawdata[[#This Row],[FW]]<=rawdata[[#This Row],[FWmax]]),\"YES\",\" - \")","v":" - "},{"$f":"IF(rawdata[[#This Row],[Fhmatch 1]]=\"YES\",((1-rawdata[[#This Row],[FWmin]]/rawdata[[#This Row],[FW]])+(1-rawdata[[#This Row],[FW]]/rawdata[[#This Row],[FWmax]]))/2,\"\")","v":""},{"$f":"IF(AND($C$4>=rawdata[[#This Row],[KDmin]],$J$11=rawdata[[#This Row],[FHq]],rawdata[[#This Row],[FW]]/2>=rawdata[[#This Row],[FWmin]],rawdata[[#This Row],[FW]]/2<=rawdata[[#This Row],[FWmax]]),\"YES\",\" - \")","v":" - "},{"$f":"IFERROR(rawdata[[#This Row],[FWmin]]*2,\" - \")","v":{"v":11,"d":"11.0"}},{"$f":"IFERROR(rawdata[[#This Row],[FWmax]]*2,\" - \")","v":{"v":16,"d":"16.0"}},{"$f":"IF(rawdata[[#This Row],[Fhmatch 2]]=\"YES\",((1-rawdata[[#This Row],[Fwmin 2]]/rawdata[[#This Row],[FW]])+(1-rawdata[[#This Row],[FW]]/rawdata[[#This Row],[FWmax 2]]))/2,\"\")","v":""}]
[null,"Touch opening",75,450,192,"B",{"$f":"IF(rawdata[[#This Row],[Opening type]]=\"Standard\",$C$10,$C$9)","v":{"v":4.388999999999999,"d":"4.39"}},2.5,{"v":4,"d":"4.0"},{"v":1.1111111111111112,"d":"1.11"},{"$f":"IF(AND($C$4>=rawdata[[#This Row],[KDmin]],$J$11=rawdata[[#This Row],[FHq]],rawdata[[#This Row],[FW]]>=rawdata[[#This Row],[FWmin]],rawdata[[#This Row],[FW]]<=rawdata[[#This Row],[FWmax]]),\"YES\",\" - \")","v":" - "},{"$f":"IF(rawdata[[#This Row],[Fhmatch 1]]=\"YES\",((1-rawdata[[#This Row],[FWmin]]/rawdata[[#This Row],[FW]])+(1-rawdata[[#This Row],[FW]]/rawdata[[#This Row],[FWmax]]))/2,\"\")","v":""},{"$f":"IF(AND($C$4>=rawdata[[#This Row],[KDmin]],$J$11=rawdata[[#This Row],[FHq]],rawdata[[#This Row],[FW]]/2>=rawdata[[#This Row],[FWmin]],rawdata[[#This Row],[FW]]/2<=rawdata[[#This Row],[FWmax]]),\"YES\",\" - \")","v":" - "},{"$f":"IFERROR(rawdata[[#This Row],[FWmin]]*2,\" - \")","v":{"v":5,"d":"5.0"}},{"$f":"IFERROR(rawdata[[#This Row],[FWmax]]*2,\" - \")","v":{"v":8,"d":"8.0"}},{"$f":"IF(rawdata[[#This Row],[Fhmatch 2]]=\"YES\",((1-rawdata[[#This Row],[Fwmin 2]]/rawdata[[#This Row],[FW]])+(1-rawdata[[#This Row],[FW]]/rawdata[[#This Row],[FWmax 2]]))/2,\"\")","v":""}]
[null,"Touch opening",75,450,192,"C*",{"$f":"IF(rawdata[[#This Row],[Opening type]]=\"Standard\",$C$10,$C$9)","v":{"v":4.388999999999999,"d":"4.39"}},{"v":4,"d":"4.0"},6.3,{"v":1.1111111111111112,"d":"1.11"},{"$f":"IF(AND($C$4>=rawdata[[#This Row],[KDmin]],$J$11=rawdata[[#This Row],[FHq]],rawdata[[#This Row],[FW]]>=rawdata[[#This Row],[FWmin]],rawdata[[#This Row],[FW]]<=rawdata[[#This Row],[FWmax]]),\"YES\",\" - \")","v":" - "},{"$f":"IF(rawdata[[#This Row],[Fhmatch 1]]=\"YES\",((1-rawdata[[#This Row],[FWmin]]/rawdata[[#This Row],[FW]])+(1-rawdata[[#This Row],[FW]]/rawdata[[#This Row],[FWmax]]))/2,\"\")","v":""},{"$f":"IF(AND($C$4>=rawdata[[#This Row],[KDmin]],$J$11=rawdata[[#This Row],[FHq]],rawdata[[#This Row],[FW]]/2>=rawdata[[#This Row],[FWmin]],rawdata[[#This Row],[FW]]/2<=rawdata[[#This Row],[FWmax]]),\"YES\",\" - \")","v":" - "},{"$f":"IFERROR(rawdata[[#This Row],[FWmin]]*2,\" - \")","v":{"v":8,"d":"8.0"}},{"$f":"IFERROR(rawdata[[#This Row],[FWmax]]*2,\" - \")","v":12.6},{"$f":"IF(rawdata[[#This Row],[Fhmatch 2]]=\"YES\",((1-rawdata[[#This Row],[Fwmin 2]]/rawdata[[#This Row],[FW]])+(1-rawdata[[#This Row],[FW]]/rawdata[[#This Row],[FWmax 2]]))/2,\"\")","v":""}]
[null,"Touch opening",75,450,192,"D*",{"$f":"IF(rawdata[[#This Row],[Opening type]]=\"Standard\",$C$10,$C$9)","v":{"v":4.388999999999999,"d":"4.39"}},{"v":5,"d":"5.0"},7.6,{"v":1.1111111111111112,"d":"1.11"},{"$f":"IF(AND($C$4>=rawdata[[#This Row],[KDmin]],$J$11=rawdata[[#This Row],[FHq]],rawdata[[#This Row],[FW]]>=rawdata[[#This Row],[FWmin]],rawdata[[#This Row],[FW]]<=rawdata[[#This Row],[FWmax]]),\"YES\",\" - \")","v":" - "},{"$f":"IF(rawdata[[#This Row],[Fhmatch 1]]=\"YES\",((1-rawdata[[#This Row],[FWmin]]/rawdata[[#This Row],[FW]])+(1-rawdata[[#This Row],[FW]]/rawdata[[#This Row],[FWmax]]))/2,\"\")","v":""},{"$f":"IF(AND($C$4>=rawdata[[#This Row],[KDmin]],$J$11=rawdata[[#This Row],[FHq]],rawdata[[#This Row],[FW]]/2>=rawdata[[#This Row],[FWmin]],rawdata[[#This Row],[FW]]/2<=rawdata[[#This Row],[FWmax]]),\"YES\",\" - \")","v":" - "},{"$f":"IFERROR(rawdata[[#This Row],[FWmin]]*2,\" - \")","v":{"v":10,"d":"10.0"}},{"$f":"IFERROR(rawdata[[#This Row],[FWmax]]*2,\" - \")","v":15.2},{"$f":"IF(rawdata[[#This Row],[Fhmatch 2]]=\"YES\",((1-rawdata[[#This Row],[Fwmin 2]]/rawdata[[#This Row],[FW]])+(1-rawdata[[#This Row],[FW]]/rawdata[[#This Row],[FWmax 2]]))/2,\"\")","v":""}]
[null,"Touch opening",75,500,192,"B",{"$f":"IF(rawdata[[#This Row],[Opening type]]=\"Standard\",$C$10,$C$9)","v":{"v":4.388999999999999,"d":"4.39"}},2.2,3.5,{"v":1,"d":"1.00"},{"$f":"IF(AND($C$4>=rawdata[[#This Row],[KDmin]],$J$11=rawdata[[#This Row],[FHq]],rawdata[[#This Row],[FW]]>=rawdata[[#This Row],[FWmin]],rawdata[[#This Row],[FW]]<=rawdata[[#This Row],[FWmax]]),\"YES\",\" - \")","v":" - "},{"$f":"IF(rawdata[[#This Row],[Fhmatch 1]]=\"YES\",((1-rawdata[[#This Row],[FWmin]]/rawdata[[#This Row],[FW]])+(1-rawdata[[#This Row],[FW]]/rawdata[[#This Row],[FWmax]]))/2,\"\")","v":""},{"$f":"IF(AND($C$4>=rawdata[[#This Row],[KDmin]],$J$11=rawdata[[#This Row],[FHq]],rawdata[[#This Row],[FW]]/2>=rawdata[[#This Row],[FWmin]],rawdata[[#This Row],[FW]]/2<=rawdata[[#This Row],[FWmax]]),\"YES\",\" - \")","v":" - "},{"$f":"IFERROR(rawdata[[#This Row],[FWmin]]*2,\" - \")","v":4.4},{"$f":"IFERROR(rawdata[[#This Row],[FWmax]]*2,\" - \")","v":{"v":7,"d":"7.0"}},{"$f":"IF(rawdata[[#This Row],[Fhmatch 2]]=\"YES\",((1-rawdata[[#This Row],[Fwmin 2]]/rawdata[[#This Row],[FW]])+(1-rawdata[[#This Row],[FW]]/rawdata[[#This Row],[FWmax 2]]))/2,\"\")","v":""}]
[null,"Touch opening",75,500,192,"C*",{"$f":"IF(rawdata[[#This Row],[Opening type]]=\"Standard\",$C$10,$C$9)","v":{"v":4.388999999999999,"d":"4.39"}},3.5,5.4,{"v":1,"d":"1.00"},{"$f":"IF(AND($C$4>=rawdata[[#This Row],[KDmin]],$J$11=rawdata[[#This Row],[FHq]],rawdata[[#This Row],[FW]]>=rawdata[[#This Row],[FWmin]],rawdata[[#This Row],[FW]]<=rawdata[[#This Row],[FWmax]]),\"YES\",\" - \")","v":"YES"},{"$f":"IF(rawdata[[#This Row],[Fhmatch 1]]=\"YES\",((1-rawdata[[#This Row],[FWmin]]/rawdata[[#This Row],[FW]])+(1-rawdata[[#This Row],[FW]]/rawdata[[#This Row],[FWmax]]))/2,\"\")","v":{"v":0.1948870281765019,"d":"19.49%"}},{"$f":"IF(AND($C$4>=rawdata[[#This Row],[KDmin]],$J$11=rawdata[[#This Row],[FHq]],rawdata[[#This Row],[FW]]/2>=rawdata[[#This Row],[FWmin]],rawdata[[#This Row],[FW]]/2<=rawdata[[#This Row],[FWmax]]),\"YES\",\" - \")","v":" - "},{"$f":"IFERROR(rawdata[[#This Row],[FWmin]]*2,\" - \")","v":{"v":7,"d":"7.0"}},{"$f":"IFERROR(rawdata[[#This Row],[FWmax]]*2,\" - \")","v":10.8},{"$f":"IF(rawdata[[#This Row],[Fhmatch 2]]=\"YES\",((1-rawdata[[#This Row],[Fwmin 2]]/rawdata[[#This Row],[FW]])+(1-rawdata[[#This Row],[FW]]/rawdata[[#This Row],[FWmax 2]]))/2,\"\")","v":""}]
[null,"Touch opening",75,500,192,"D*",{"$f":"IF(rawdata[[#This Row],[Opening type]]=\"Standard\",$C$10,$C$9)","v":{"v":4.388999999999999,"d":"4.39"}},4.7,7.3,{"v":1,"d":"1.00"},{"$f":"IF(AND($C$4>=rawdata[[#This Row],[KDmin]],$J$11=rawdata[[#This Row],[FHq]],rawdata[[#This Row],[FW]]>=rawdata[[#This Row],[FWmin]],rawdata[[#This Row],[FW]]<=rawdata[[#This Row],[FWmax]]),\"YES\",\" - \")","v":" - "},{"$f":"IF(rawdata[[#This Row],[Fhmatch 1]]=\"YES\",((1-rawdata[[#This Row],[FWmin]]/rawdata[[#This Row],[FW]])+(1-rawdata[[#This Row],[FW]]/rawdata[[#This Row],[FWmax]]))/2,\"\")","v":""},{"$f":"IF(AND($C$4>=rawdata[[#This Row],[KDmin]],$J$11=rawdata[[#This Row],[FHq]],rawdata[[#This Row],[FW]]/2>=rawdata[[#This Row],[FWmin]],rawdata[[#This Row],[FW]]/2<=rawdata[[#This Row],[FWmax]]),\"YES\",\" - \")","v":" - "},{"$f":"IFERROR(rawdata[[#This Row],[FWmin]]*2,\" - \")","v":9.4},{"$f":"IFERROR(rawdata[[#This Row],[FWmax]]*2,\" - \")","v":14.6},{"$f":"IF(rawdata[[#This Row],[Fhmatch 2]]=\"YES\",((1-rawdata[[#This Row],[Fwmin 2]]/rawdata[[#This Row],[FW]])+(1-rawdata[[#This Row],[FW]]/rawdata[[#This Row],[FWmax 2]]))/2,\"\")","v":""}]
[null,"Touch opening",75,550,192,"B",{"$f":"IF(rawdata[[#This Row],[Opening type]]=\"Standard\",$C$10,$C$9)","v":{"v":4.388999999999999,"d":"4.39"}},{"v":2,"d":"2.0"},3.3,{"v":0.9090909090909091,"d":"0.91"},{"$f":"IF(AND($C$4>=rawdata[[#This Row],[KDmin]],$J$11=rawdata[[#This Row],[FHq]],rawdata[[#This Row],[FW]]>=rawdata[[#This Row],[FWmin]],rawdata[[#This Row],[FW]]<=rawdata[[#This Row],[FWmax]]),\"YES\",\" - \")","v":" - "},{"$f":"IF(rawdata[[#This Row],[Fhmatch 1]]=\"YES\",((1-rawdata[[#This Row],[FWmin]]/rawdata[[#This Row],[FW]])+(1-rawdata[[#This Row],[FW]]/rawdata[[#This Row],[FWmax]]))/2,\"\")","v":""},{"$f":"IF(AND($C$4>=rawdata[[#This Row],[KDmin]],$J$11=rawdata[[#This Row],[FHq]],rawdata[[#This Row],[FW]]/2>=rawdata[[#This Row],[FWmin]],rawdata[[#This Row],[FW]]/2<=rawdata[[#This Row],[FWmax]]),\"YES\",\" - \")","v":" - "},{"$f":"IFERROR(rawdata[[#This Row],[FWmin]]*2,\" - \")","v":{"v":4,"d":"4.0"}},{"$f":"IFERROR(rawdata[[#This Row],[FWmax]]*2,\" - \")","v":6.6},{"$f":"IF(rawdata[[#This Row],[Fhmatch 2]]=\"YES\",((1-rawdata[[#This Row],[Fwmin 2]]/rawdata[[#This Row],[FW]])+(1-rawdata[[#This Row],[FW]]/rawdata[[#This Row],[FWmax 2]]))/2,\"\")","v":""}]
[null,"Touch opening",75,550,192,"C",{"$f":"IF(rawdata[[#This Row],[Opening type]]=\"Standard\",$C$10,$C$9)","v":{"v":4.388999999999999,"d":"4.39"}},2.6,5.1,{"v":0.9090909090909091,"d":"0.91"},{"$f":"IF(AND($C$4>=rawdata[[#This Row],[KDmin]],$J$11=rawdata[[#This Row],[FHq]],rawdata[[#This Row],[FW]]>=rawdata[[#This Row],[FWmin]],rawdata[[#This Row],[FW]]<=rawdata[[#This Row],[FWmax]]),\"YES\",\" - \")","v":" - "},{"$f":"IF(rawdata[[#This Row],[Fhmatch 1]]=\"YES\",((1-rawdata[[#This Row],[FWmin]]/rawdata[[#This Row],[FW]])+(1-rawdata[[#This Row],[FW]]/rawdata[[#This Row],[FWmax]]))/2,\"\")","v":""},{"$f":"IF(AND($C$4>=rawdata[[#This Row],[KDmin]],$J$11=rawdata[[#This Row],[FHq]],rawdata[[#This Row],[FW]]/2>=rawdata[[#This Row],[FWmin]],rawdata[[#This Row],[FW]]/2<=rawdata[[#This Row],[FWmax]]),\"YES\",\" - \")","v":" - "},{"$f":"IFERROR(rawdata[[#This Row],[FWmin]]*2,\" - \")","v":5.2},{"$f":"IFERROR(rawdata[[#This Row],[FWmax]]*2,\" - \")","v":10.2},{"$f":"IF(rawdata[[#This Row],[Fhmatch 2]]=\"YES\",((1-rawdata[[#This Row],[Fwmin 2]]/rawdata[[#This Row],[FW]])+(1-rawdata[[#This Row],[FW]]/rawdata[[#This Row],[FWmax 2]]))/2,\"\")","v":""}]
[null,"Touch opening",75,550,192,"D",{"$f":"IF(rawdata[[#This Row],[Opening type]]=\"Standard\",$C$10,$C$9)","v":{"v":4.388999999999999,"d":"4.39"}},{"v":4,"d":"4.0"},6.9,{"v":0.9090909090909091,"d":"0.91"},{"$f":"IF(AND($C$4>=rawdata[[#This Row],[KDmin]],$J$11=rawdata[[#This Row],[FHq]],rawdata[[#This Row],[FW]]>=rawdata[[#This Row],[FWmin]],rawdata[[#This Row],[FW]]<=rawdata[[#This Row],[FWmax]]),\"YES\",\" - \")","v":" - "},{"$f":"IF(rawdata[[#This Row],[Fhmatch 1]]=\"YES\",((1-rawdata[[#This Row],[FWmin]]/rawdata[[#This Row],[FW]])+(1-rawdata[[#This Row],[FW]]/rawdata[[#This Row],[FWmax]]))/2,\"\")","v":""},{"$f":"IF(AND($C$4>=rawdata[[#This Row],[KDmin]],$J$11=rawdata[[#This Row],[FHq]],rawdata[[#This Row],[FW]]/2>=rawdata[[#This Row],[FWmin]],rawdata[[#This Row],[FW]]/2<=rawdata[[#This Row],[FWmax]]),\"YES\",\" - \")","v":" - "},{"$f":"IFERROR(rawdata[[#This Row],[FWmin]]*2,\" - \")","v":{"v":8,"d":"8.0"}},{"$f":"IFERROR(rawdata[[#This Row],[FWmax]]*2,\" - \")","v":13.8},{"$f":"IF(rawdata[[#This Row],[Fhmatch 2]]=\"YES\",((1-rawdata[[#This Row],[Fwmin 2]]/rawdata[[#This Row],[FW]])+(1-rawdata[[#This Row],[FW]]/rawdata[[#This Row],[FWmax 2]]))/2,\"\")","v":""}]
[null,"Touch opening",75,600,192,"B",{"$f":"IF(rawdata[[#This Row],[Opening type]]=\"Standard\",$C$10,$C$9)","v":{"v":4.388999999999999,"d":"4.39"}},"-","-",{"v":0.8333333333333334,"d":"0.83"},{"$f":"IF(AND($C$4>=rawdata[[#This Row],[KDmin]],$J$11=rawdata[[#This Row],[FHq]],rawdata[[#This Row],[FW]]>=rawdata[[#This Row],[FWmin]],rawdata[[#This Row],[FW]]<=rawdata[[#This Row],[FWmax]]),\"YES\",\" - \")","v":" - "},{"$f":"IF(rawdata[[#This Row],[Fhmatch 1]]=\"YES\",((1-rawdata[[#This Row],[FWmin]]/rawdata[[#This Row],[FW]])+(1-rawdata[[#This Row],[FW]]/rawdata[[#This Row],[FWmax]]))/2,\"\")","v":""},{"$f":"IF(AND($C$4>=rawdata[[#This Row],[KDmin]],$J$11=rawdata[[#This Row],[FHq]],rawdata[[#This Row],[FW]]/2>=rawdata[[#This Row],[FWmin]],rawdata[[#This Row],[FW]]/2<=rawdata[[#This Row],[FWmax]]),\"YES\",\" - \")","v":" - "},{"$f":"IFERROR(rawdata[[#This Row],[FWmin]]*2,\" - \")","v":" - "},{"$f":"IFERROR(rawdata[[#This Row],[FWmax]]*2,\" - \")","v":" - "},{"$f":"IF(rawdata[[#This Row],[Fhmatch 2]]=\"YES\",((1-rawdata[[#This Row],[Fwmin 2]]/rawdata[[#This Row],[FW]])+(1-rawdata[[#This Row],[FW]]/rawdata[[#This Row],[FWmax 2]]))/2,\"\")","v":""}]
[null,"Touch opening",75,600,192,"C",{"$f":"IF(rawdata[[#This Row],[Opening type]]=\"Standard\",$C$10,$C$9)","v":{"v":4.388999999999999,"d":"4.39"}},2.6,4.7,{"v":0.8333333333333334,"d":"0.83"},{"$f":"IF(AND($C$4>=rawdata[[#This Row],[KDmin]],$J$11=rawdata[[#This Row],[FHq]],rawdata[[#This Row],[FW]]>=rawdata[[#This Row],[FWmin]],rawdata[[#This Row],[FW]]<=rawdata[[#This Row],[FWmax]]),\"YES\",\" - \")","v":" - "},{"$f":"IF(rawdata[[#This Row],[Fhmatch 1]]=\"YES\",((1-rawdata[[#This Row],[FWmin]]/rawdata[[#This Row],[FW]])+(1-rawdata[[#This Row],[FW]]/rawdata[[#This Row],[FWmax]]))/2,\"\")","v":""},{"$f":"IF(AND($C$4>=rawdata[[#This Row],[KDmin]],$J$11=rawdata[[#This Row],[FHq]],rawdata[[#This Row],[FW]]/2>=rawdata[[#This Row],[FWmin]],rawdata[[#This Row],[FW]]/2<=rawdata[[#This Row],[FWmax]]),\"YES\",\" - \")","v":" - "},{"$f":"IFERROR(rawdata[[#This Row],[FWmin]]*2,\" - \")","v":5.2},{"$f":"IFERROR(rawdata[[#This Row],[FWmax]]*2,\" - \")","v":9.4},{"$f":"IF(rawdata[[#This Row],[Fhmatch 2]]=\"YES\",((1-rawdata[[#This Row],[Fwmin 2]]/rawdata[[#This Row],[FW]])+(1-rawdata[[#This Row],[FW]]/rawdata[[#This Row],[FWmax 2]]))/2,\"\")","v":""}]
[null,"Touch opening",75,600,192,"D",{"$f":"IF(rawdata[[#This Row],[Opening type]]=\"Standard\",$C$10,$C$9)","v":{"v":4.388999999999999,"d":"4.39"}},3.6,6.3,{"v":0.8333333333333334,"d":"0.83"},{"$f":"IF(AND($C$4>=rawdata[[#This Row],[KDmin]],$J$11=rawdata[[#This Row],[FHq]],rawdata[[#This Row],[FW]]>=rawdata[[#This Row],[FWmin]],rawdata[[#This Row],[FW]]<=rawdata[[#This Row],[FWmax]]),\"YES\",\" - \")","v":" - "},{"$f":"IF(rawdata[[#This Row],[Fhmatch 1]]=\"YES\",((1-rawdata[[#This Row],[FWmin]]/rawdata[[#This Row],[FW]])+(1-rawdata[[#This Row],[FW]]/rawdata[[#This Row],[FWmax]]))/2,\"\")","v":""},{"$f":"IF(AND($C$4>=rawdata[[#This Row],[KDmin]],$J$11=rawdata[[#This Row],[FHq]],rawdata[[#This Row],[FW]]/2>=rawdata[[#This Row],[FWmin]],rawdata[[#This Row],[FW]]/2<=rawdata[[#This Row],[FWmax]]),\"YES\",\" - \")","v":" - "},{"$f":"IFERROR(rawdata[[#This Row],[FWmin]]*2,\" - \")","v":7.2},{"$f":"IFERROR(rawdata[[#This Row],[FWmax]]*2,\" - \")","v":12.6},{"$f":"IF(rawdata[[#This Row],[Fhmatch 2]]=\"YES\",((1-rawdata[[#This Row],[Fwmin 2]]/rawdata[[#This Row],[FW]])+(1-rawdata[[#This Row],[FW]]/rawdata[[#This Row],[FWmax 2]]))/2,\"\")","v":""}]
[null,"Touch opening",90,350,191,"B",{"$f":"IF(rawdata[[#This Row],[Opening type]]=\"Standard\",$C$10,$C$9)","v":{"v":4.388999999999999,"d":"4.39"}},2.4,4.2,{"v":1.4285714285714286,"d":"1.43"},{"$f":"IF(AND($C$4>=rawdata[[#This Row],[KDmin]],$J$11=rawdata[[#This Row],[FHq]],rawdata[[#This Row],[FW]]>=rawdata[[#This Row],[FWmin]],rawdata[[#This Row],[FW]]<=rawdata[[#This Row],[FWmax]]),\"YES\",\" - \")","v":" - "},{"$f":"IF(rawdata[[#This Row],[Fhmatch 1]]=\"YES\",((1-rawdata[[#This Row],[FWmin]]/rawdata[[#This Row],[FW]])+(1-rawdata[[#This Row],[FW]]/rawdata[[#This Row],[FWmax]]))/2,\"\")","v":""},{"$f":"IF(AND($C$4>=rawdata[[#This Row],[KDmin]],$J$11=rawdata[[#This Row],[FHq]],rawdata[[#This Row],[FW]]/2>=rawdata[[#This Row],[FWmin]],rawdata[[#This Row],[FW]]/2<=rawdata[[#This Row],[FWmax]]),\"YES\",\" - \")","v":" - "},{"$f":"IFERROR(rawdata[[#This Row],[FWmin]]*2,\" - \")","v":4.8},{"$f":"IFERROR(rawdata[[#This Row],[FWmax]]*2,\" - \")","v":8.4},{"$f":"IF(rawdata[[#This Row],[Fhmatch 2]]=\"YES\",((1-rawdata[[#This Row],[Fwmin 2]]/rawdata[[#This Row],[FW]])+(1-rawdata[[#This Row],[FW]]/rawdata[[#This Row],[FWmax 2]]))/2,\"\")","v":""}]
[null,"Touch opening",90,350,191,"C*",{"$f":"IF(rawdata[[#This Row],[Opening type]]=\"Standard\",$C$10,$C$9)","v":{"v":4.388999999999999,"d":"4.39"}},3.4,5.2,{"v":1.4285714285714286,"d":"1.43"},{"$f":"IF(AND($C$4>=rawdata[[#This Row],[KDmin]],$J$11=rawdata[[#This Row],[FHq]],rawdata[[#This Row],[FW]]>=rawdata[[#This Row],[FWmin]],rawdata[[#This Row],[FW]]<=rawdata[[#This Row],[FWmax]]),\"YES\",\" - \")","v":" - "},{"$f":"IF(rawdata[[#This Row],[Fhmatch 1]]=\"YES\",((1-rawdata[[#This Row],[FWmin]]/rawdata[[#This Row],[FW]])+(1-rawdata[[#This Row],[FW]]/rawdata[[#This Row],[FWmax]]))/2,\"\")","v":""},{"$f":"IF(AND($C$4>=rawdata[[#This Row],[KDmin]],$J$11=rawdata[[#This Row],[FHq]],rawdata[[#This Row],[FW]]/2>=rawdata[[#This Row],[FWmin]],rawdata[[#This Row],[FW]]/2<=rawdata[[#This Row],[FWmax]]),\"YES\",\" - \")","v":" - "},{"$f":"IFERROR(rawdata[[#This Row],[FWmin]]*2,\" - \")","v":6.8},{"$f":"IFERROR(rawdata[[#This Row],[FWmax]]*2,\" - \")","v":10.4},{"$f":"IF(rawdata[[#This Row],[Fhmatch 2]]=\"YES\",((1-rawdata[[#This Row],[Fwmin 2]]/rawdata[[#This Row],[FW]])+(1-rawdata[[#This Row],[FW]]/rawdata[[#This Row],[FWmax 2]]))/2,\"\")","v":""}]
[null,"Touch opening",90,350,191,"D*",{"$f":"IF(rawdata[[#This Row],[Opening type]]=\"Standard\",$C$10,$C$9)","v":{"v":4.388999999999999,"d":"4.39"}},4.7,6.9,{"v":1.4285714285714286,"d":"1.43"},{"$f":"IF(AND($C$4>=rawdata[[#This Row],[KDmin]],$J$11=rawdata[[#This Row],[FHq]],rawdata[[#This Row],[FW]]>=rawdata[[#This Row],[FWmin]],rawdata[[#This Row],[FW]]<=rawdata[[#This Row],[FWmax]]),\"YES\",\" - \")","v":" - "},{"$f":"IF(rawdata[[#This Row],[Fhmatch 1]]=\"YES\",((1-rawdata[[#This Row],[FWmin]]/rawdata[[#This Row],[FW]])+(1-rawdata[[#This Row],[FW]]/rawdata[[#This Row],[FWmax]]))/2,\"\")","v":""},{"$f":"IF(AND($C$4>=rawdata[[#This Row],[KDmin]],$J$11=rawdata[[#This Row],[FHq]],rawdata[[#This Row],[FW]]/2>=rawdata[[#This Row],[FWmin]],rawdata[[#This Row],[FW]]/2<=rawdata[[#This Row],[FWmax]]),\"YES\",\" - \")","v":" - "},{"$f":"IFERROR(rawdata[[#This Row],[FWmin]]*2,\" - \")","v":9.4},{"$f":"IFERROR(rawdata[[#This Row],[FWmax]]*2,\" - \")","v":13.8},{"$f":"IF(rawdata[[#This Row],[Fhmatch 2]]=\"YES\",((1-rawdata[[#This Row],[Fwmin 2]]/rawdata[[#This Row],[FW]])+(1-rawdata[[#This Row],[FW]]/rawdata[[#This Row],[FWmax 2]]))/2,\"\")","v":""}]
[null,"Touch opening",90,400,191,"B",{"$f":"IF(rawdata[[#This Row],[Opening type]]=\"Standard\",$C$10,$C$9)","v":{"v":4.388999999999999,"d":"4.39"}},1.5,3.2,1.25,{"$f":"IF(AND($C$4>=rawdata[[#This Row],[KDmin]],$J$11=rawdata[[#This Row],[FHq]],rawdata[[#This Row],[FW]]>=rawdata[[#This Row],[FWmin]],rawdata[[#This Row],[FW]]<=rawdata[[#This Row],[FWmax]]),\"YES\",\" - \")","v":" - "},{"$f":"IF(rawdata[[#This Row],[Fhmatch 1]]=\"YES\",((1-rawdata[[#This Row],[FWmin]]/rawdata[[#This Row],[FW]])+(1-rawdata[[#This Row],[FW]]/rawdata[[#This Row],[FWmax]]))/2,\"\")","v":""},{"$f":"IF(AND($C$4>=rawdata[[#This Row],[KDmin]],$J$11=rawdata[[#This Row],[FHq]],rawdata[[#This Row],[FW]]/2>=rawdata[[#This Row],[FWmin]],rawdata[[#This Row],[FW]]/2<=rawdata[[#This Row],[FWmax]]),\"YES\",\" - \")","v":" - "},{"$f":"IFERROR(rawdata[[#This Row],[FWmin]]*2,\" - \")","v":{"v":3,"d":"3.0"}},{"$f":"IFERROR(rawdata[[#This Row],[FWmax]]*2,\" - \")","v":6.4},{"$f":"IF(rawdata[[#This Row],[Fhmatch 2]]=\"YES\",((1-rawdata[[#This Row],[Fwmin 2]]/rawdata[[#This Row],[FW]])+(1-rawdata[[#This Row],[FW]]/rawdata[[#This Row],[FWmax 2]]))/2,\"\")","v":""}]
[null,"Touch opening",90,400,191,"C*",{"$f":"IF(rawdata[[#This Row],[Opening type]]=\"Standard\",$C$10,$C$9)","v":{"v":4.388999999999999,"d":"4.39"}},3.1,4.9,1.25,{"$f":"IF(AND($C$4>=rawdata[[#This Row],[KDmin]],$J$11=rawdata[[#This Row],[FHq]],rawdata[[#This Row],[FW]]>=rawdata[[#This Row],[FWmin]],rawdata[[#This Row],[FW]]<=rawdata[[#This Row],[FWmax]]),\"YES\",\" - \")","v":" - "},{"$f":"IF(rawdata[[#This Row],[Fhmatch 1]]=\"YES\",((1-rawdata[[#This Row],[FWmin]]/rawdata[[#This Row],[FW]])+(1-rawdata[[#This Row],[FW]]/rawdata[[#This Row],[FWmax]]))/2,\"\")","v":""},{"$f":"IF(AND($C$4>=rawdata[[#This Row],[KDmin]],$J$11=rawdata[[#This Row],[FHq]],rawdata[[#This Row],[FW]]/2>=rawdata[[#This Row],[FWmin]],rawdata[[#This Row],[FW]]/2<=rawdata[[#This Row],[FWmax]]),\"YES\",\" - \")","v":" - "},{"$f":"IFERROR(rawdata[[#This Row],[FWmin]]*2,\" - \")","v":6.2},{"$f":"IFERROR(rawdata[[#This Row],[FWmax]]*2,\" - \")","v":9.8},{"$f":"IF(rawdata[[#This Row],[Fhmatch 2]]=\"YES\",((1-rawdata[[#This Row],[Fwmin 2]]/rawdata[[#This Row],[FW]])+(1-rawdata[[#This Row],[FW]]/rawdata[[#This Row],[FWmax 2]]))/2,\"\")","v":""}]
[null,"Touch opening",90,400,191,"D*",{"$f":"IF(rawdata[[#This Row],[Opening type]]=\"Standard\",$C$10,$C$9)","v":{"v":4.388999999999999,"d":"4.39"}},3.9,5.6,1.25,{"$f":"IF(AND($C$4>=rawdata[[#This Row],[KDmin]],$J$11=rawdata[[#This Row],[FHq]],rawdata[[#This Row],[FW]]>=rawdata[[#This Row],[FWmin]],rawdata[[#This Row],[FW]]<=rawdata[[#This Row],[FWmax]]),\"YES\",\" - \")","v":" - "},{"$f":"IF(rawdata[[#This Row],[Fhmatch 1]]=\"YES\",((1-rawdata[[#This Row],[FWmin]]/rawdata[[#This Row],[FW]])+(1-rawdata[[#This Row],[FW]]/rawdata[[#This Row],[FWmax]]))/2,\"\")","v":""},{"$f":"IF(AND($C$4>=rawdata[[#This Row],[KDmin]],$J$11=rawdata[[#This Row],[FHq]],rawdata[[#This Row],[FW]]/2>=rawdata[[#This Row],[FWmin]],rawdata[[#This Row],[FW]]/2<=rawdata[[#This Row],[FWmax]]),\"YES\",\" - \")","v":" - "},{"$f":"IFERROR(rawdata[[#This Row],[FWmin]]*2,\" - \")","v":7.8},{"$f":"IFERROR(rawdata[[#This Row],[FWmax]]*2,\" - \")","v":11.2},{"$f":"IF(rawdata[[#This Row],[Fhmatch 2]]=\"YES\",((1-rawdata[[#This Row],[Fwmin 2]]/rawdata[[#This Row],[FW]])+(1-rawdata[[#This Row],[FW]]/rawdata[[#This Row],[FWmax 2]]))/2,\"\")","v":""}]
[null,"Touch opening",90,450,191,"B",{"$f":"IF(rawdata[[#This Row],[Opening type]]=\"Standard\",$C$10,$C$9)","v":{"v":4.388999999999999,"d":"4.39"}},1.5,2.6,{"v":1.1111111111111112,"d":"1.11"},{"$f":"IF(AND($C$4>=rawdata[[#This Row],[KDmin]],$J$11=rawdata[[#This Row],[FHq]],rawdata[[#This Row],[FW]]>=rawdata[[#This Row],[FWmin]],rawdata[[#This Row],[FW]]<=rawdata[[#This Row],[FWmax]]),\"YES\",\" - \")","v":" - "},{"$f":"IF(rawdata[[#This Row],[Fhmatch 1]]=\"YES\",((1-rawdata[[#This Row],[FWmin]]/rawdata[[#This Row],[FW]])+(1-rawdata[[#This Row],[FW]]/rawdata[[#This Row],[FWmax]]))/2,\"\")","v":""},{"$f":"IF(AND($C$4>=rawdata[[#This Row],[KDmin]],$J$11=rawdata[[#This Row],[FHq]],rawdata[[#This Row],[FW]]/2>=rawdata[[#This Row],[FWmin]],rawdata[[#This Row],[FW]]/2<=rawdata[[#This Row],[FWmax]]),\"YES\",\" - \")","v":" - "},{"$f":"IFERROR(rawdata[[#This Row],[FWmin]]*2,\" - \")","v":{"v":3,"d":"3.0"}},{"$f":"IFERROR(rawdata[[#This Row],[FWmax]]*2,\" - \")","v":5.2},{"$f":"IF(rawdata[[#This Row],[Fhmatch 2]]=\"YES\",((1-rawdata[[#This Row],[Fwmin 2]]/rawdata[[#This Row],[FW]])+(1-rawdata[[#This Row],[FW]]/rawdata[[#This Row],[FWmax 2]]))/2,\"\")","v":""}]
[null,"Touch opening",90,450,191,"C*",{"$f":"IF(rawdata[[#This Row],[Opening type]]=\"Standard\",$C$10,$C$9)","v":{"v":4.388999999999999,"d":"4.39"}},2.6,4.2,{"v":1.1111111111111112,"d":"1.11"},{"$f":"IF(AND($C$4>=rawdata[[#This Row],[KDmin]],$J$11=rawdata[[#This Row],[FHq]],rawdata[[#This Row],[FW]]>=rawdata[[#This Row],[FWmin]],rawdata[[#This Row],[FW]]<=rawdata[[#This Row],[FWmax]]),\"YES\",\" - \")","v":" - "},{"$f":"IF(rawdata[[#This Row],[Fhmatch 1]]=\"YES\",((1-rawdata[[#This Row],[FWmin]]/rawdata[[#This Row],[FW]])+(1-rawdata[[#This Row],[FW]]/rawdata[[#This Row],[FWmax]]))/2,\"\")","v":""},{"$f":"IF(AND($C$4>=rawdata[[#This Row],[KDmin]],$J$11=rawdata[[#This Row],[FHq]],rawdata[[#This Row],[FW]]/2>=rawdata[[#This Row],[FWmin]],rawdata[[#This Row],[FW]]/2<=rawdata[[#This Row],[FWmax]]),\"YES\",\" - \")","v":" - "},{"$f":"IFERROR(rawdata[[#This Row],[FWmin]]*2,\" - \")","v":5.2},{"$f":"IFERROR(rawdata[[#This Row],[FWmax]]*2,\" - \")","v":8.4},{"$f":"IF(rawdata[[#This Row],[Fhmatch 2]]=\"YES\",((1-rawdata[[#This Row],[Fwmin 2]]/rawdata[[#This Row],[FW]])+(1-rawdata[[#This Row],[FW]]/rawdata[[#This Row],[FWmax 2]]))/2,\"\")","v":""}]
[null,"Touch opening",90,450,191,"D*",{"$f":"IF(rawdata[[#This Row],[Opening type]]=\"Standard\",$C$10,$C$9)","v":{"v":4.388999999999999,"d":"4.39"}},3.6,5.4,{"v":1.1111111111111112,"d":"1.11"},{"$f":"IF(AND($C$4>=rawdata[[#This Row],[KDmin]],$J$11=rawdata[[#This Row],[FHq]],rawdata[[#This Row],[FW]]>=rawdata[[#This Row],[FWmin]],rawdata[[#This Row],[FW]]<=rawdata[[#This Row],[FWmax]]),\"YES\",\" - \")","v":" - "},{"$f":"IF(rawdata[[#This Row],[Fhmatch 1]]=\"YES\",((1-rawdata[[#This Row],[FWmin]]/rawdata[[#This Row],[FW]])+(1-rawdata[[#This Row],[FW]]/rawdata[[#This Row],[FWmax]]))/2,\"\")","v":""},{"$f":"IF(AND($C$4>=rawdata[[#This Row],[KDmin]],$J$11=rawdata[[#This Row],[FHq]],rawdata[[#This Row],[FW]]/2>=rawdata[[#This Row],[FWmin]],rawdata[[#This Row],[FW]]/2<=rawdata[[#This Row],[FWmax]]),\"YES\",\" - \")","v":" - "},{"$f":"IFERROR(rawdata[[#This Row],[FWmin]]*2,\" - \")","v":7.2},{"$f":"IFERROR(rawdata[[#This Row],[FWmax]]*2,\" - \")","v":10.8},{"$f":"IF(rawdata[[#This Row],[Fhmatch 2]]=\"YES\",((1-rawdata[[#This Row],[Fwmin 2]]/rawdata[[#This Row],[FW]])+(1-rawdata[[#This Row],[FW]]/rawdata[[#This Row],[FWmax 2]]))/2,\"\")","v":""}]
[null,"Touch opening",90,500,191,"B",{"$f":"IF(rawdata[[#This Row],[Opening type]]=\"Standard\",$C$10,$C$9)","v":{"v":4.388999999999999,"d":"4.39"}},1.4,2.4,{"v":1,"d":"1.00"},{"$f":"IF(AND($C$4>=rawdata[[#This Row],[KDmin]],$J$11=rawdata[[#This Row],[FHq]],rawdata[[#This Row],[FW]]>=rawdata[[#This Row],[FWmin]],rawdata[[#This Row],[FW]]<=rawdata[[#This Row],[FWmax]]),\"YES\",\" - \")","v":" - "},{"$f":"IF(rawdata[[#This Row],[Fhmatch 1]]=\"YES\",((1-rawdata[[#This Row],[FWmin]]/rawdata[[#This Row],[FW]])+(1-rawdata[[#This Row],[FW]]/rawdata[[#This Row],[FWmax]]))/2,\"\")","v":""},{"$f":"IF(AND($C$4>=rawdata[[#This Row],[KDmin]],$J$11=rawdata[[#This Row],[FHq]],rawdata[[#This Row],[FW]]/2>=rawdata[[#This Row],[FWmin]],rawdata[[#This Row],[FW]]/2<=rawdata[[#This Row],[FWmax]]),\"YES\",\" - \")","v":"YES"},{"$f":"IFERROR(rawdata[[#This Row],[FWmin]]*2,\" - \")","v":2.8},{"$f":"IFERROR(rawdata[[#This Row],[FWmax]]*2,\" - \")","v":4.8},{"$f":"IF(rawdata[[#This Row],[Fhmatch 2]]=\"YES\",((1-rawdata[[#This Row],[Fwmin 2]]/rawdata[[#This Row],[FW]])+(1-rawdata[[#This Row],[FW]]/rawdata[[#This Row],[FWmax 2]]))/2,\"\")","v":{"v":0.2238332336523126,"d":"22.38%"}}]
[null,"Touch opening",90,500,191,"C",{"$f":"IF(rawdata[[#This Row],[Opening type]]=\"Standard\",$C$10,$C$9)","v":{"v":4.388999999999999,"d":"4.39"}},2.4,3.6,{"v":1,"d":"1.00"},{"$f":"IF(AND($C$4>=rawdata[[#This Row],[KDmin]],$J$11=rawdata[[#This Row],[FHq]],rawdata[[#This Row],[FW]]>=rawdata[[#This Row],[FWmin]],rawdata[[#This Row],[FW]]<=rawdata[[#This Row],[FWmax]]),\"YES\",\" - \")","v":" - "},{"$f":"IF(rawdata[[#This Row],[Fhmatch 1]]=\"YES\",((1-rawdata[[#This Row],[FWmin]]/rawdata[[#This Row],[FW]])+(1-rawdata[[#This Row],[FW]]/rawdata[[#This Row],[FWmax]]))/2,\"\")","v":""},{"$f":"IF(AND($C$4>=rawdata[[#This Row],[KDmin]],$J$11=rawdata[[#This Row],[FHq]],rawdata[[#This Row],[FW]]/2>=rawdata[[#This Row],[FWmin]],rawdata[[#This Row],[FW]]/2<=rawdata[[#This Row],[FWmax]]),\"YES\",\" - \")","v":" - "},{"$f":"IFERROR(rawdata[[#This Row],[FWmin]]*2,\" - \")","v":4.8},{"$f":"IFERROR(rawdata[[#This Row],[FWmax]]*2,\" - \")","v":7.2},{"$f":"IF(rawdata[[#This Row],[Fhmatch 2]]=\"YES\",((1-rawdata[[#This Row],[Fwmin 2]]/rawdata[[#This Row],[FW]])+(1-rawdata[[#This Row],[FW]]/rawdata[[#This Row],[FWmax 2]]))/2,\"\")","v":""}]
[null,"Touch opening",90,500,191,"D",{"$f":"IF(rawdata[[#This Row],[Opening type]]=\"Standard\",$C$10,$C$9)","v":{"v":4.388999999999999,"d":"4.39"}},3.4,{"v":5,"d":"5.0"},{"v":1,"d":"1.00"},{"$f":"IF(AND($C$4>=rawdata[[#This Row],[KDmin]],$J$11=rawdata[[#This Row],[FHq]],rawdata[[#This Row],[FW]]>=rawdata[[#This Row],[FWmin]],rawdata[[#This Row],[FW]]<=rawdata[[#This Row],[FWmax]]),\"YES\",\" - \")","v":"YES"},{"$f":"IF(rawdata[[#This Row],[Fhmatch 1]]=\"YES\",((1-rawdata[[#This Row],[FWmin]]/rawdata[[#This Row],[FW]])+(1-rawdata[[#This Row],[FW]]/rawdata[[#This Row],[FWmax]]))/2,\"\")","v":{"v":0.1737680337206653,"d":"17.38%"}},{"$f":"IF(AND($C$4>=rawdata[[#This Row],[KDmin]],$J$11=rawdata[[#This Row],[FHq]],rawdata[[#This Row],[FW]]/2>=rawdata[[#This Row],[FWmin]],rawdata[[#This Row],[FW]]/2<=rawdata[[#This Row],[FWmax]]),\"YES\",\" - \")","v":" - "},{"$f":"IFERROR(rawdata[[#This Row],[FWmin]]*2,\" - \")","v":6.8},{"$f":"IFERROR(rawdata[[#This Row],[FWmax]]*2,\" - \")","v":{"v":10,"d":"10.0"}},{"$f":"IF(rawdata[[#This Row],[Fhmatch 2]]=\"YES\",((1-rawdata[[#This Row],[Fwmin 2]]/rawdata[[#This Row],[FW]])+(1-rawdata[[#This Row],[FW]]/rawdata[[#This Row],[FWmax 2]]))/2,\"\")","v":""}]
[null,"Touch opening",90,550,191,"B",{"$f":"IF(rawdata[[#This Row],[Opening type]]=\"Standard\",$C$10,$C$9)","v":{"v":4.388999999999999,"d":"4.39"}},1.3,2.1,{"$f":"$C$2/D109","v":{"v":0.9090909090909091,"d":"0.91"}},{"$f":"IF(AND($C$4>=rawdata[[#This Row],[KDmin]],$J$11=rawdata[[#This Row],[FHq]],rawdata[[#This Row],[FW]]>=rawdata[[#This Row],[FWmin]],rawdata[[#This Row],[FW]]<=rawdata[[#This Row],[FWmax]]),\"YES\",\" - \")","v":" - "},{"$f":"IF(rawdata[[#This Row],[Fhmatch 1]]=\"YES\",((1-rawdata[[#This Row],[FWmin]]/rawdata[[#This Row],[FW]])+(1-rawdata[[#This Row],[FW]]/rawdata[[#This Row],[FWmax]]))/2,\"\")","v":""},{"$f":"IF(AND($C$4>=rawdata[[#This Row],[KDmin]],$J$11=rawdata[[#This Row],[FHq]],rawdata[[#This Row],[FW]]/2>=rawdata[[#This Row],[FWmin]],rawdata[[#This Row],[FW]]/2<=rawdata[[#This Row],[FWmax]]),\"YES\",\" - \")","v":" - "},{"$f":"IFERROR(rawdata[[#This Row],[FWmin]]*2,\" - \")","v":2.6},{"$f":"IFERROR(rawdata[[#This Row],[FWmax]]*2,\" - \")","v":4.2},{"$f":"IF(rawdata[[#This Row],[Fhmatch 2]]=\"YES\",((1-rawdata[[#This Row],[Fwmin 2]]/rawdata[[#This Row],[FW]])+(1-rawdata[[#This Row],[FW]]/rawdata[[#This Row],[FWmax 2]]))/2,\"\")","v":""}]
[null,"Touch opening",90,550,191,"C",{"$f":"IF(rawdata[[#This Row],[Opening type]]=\"Standard\",$C$10,$C$9)","v":{"v":4.388999999999999,"d":"4.39"}},1.9,3.2,{"v":0.9090909090909091,"d":"0.91"},{"$f":"IF(AND($C$4>=rawdata[[#This Row],[KDmin]],$J$11=rawdata[[#This Row],[FHq]],rawdata[[#This Row],[FW]]>=rawdata[[#This Row],[FWmin]],rawdata[[#This Row],[FW]]<=rawdata[[#This Row],[FWmax]]),\"YES\",\" - \")","v":" - "},{"$f":"IF(rawdata[[#This Row],[Fhmatch 1]]=\"YES\",((1-rawdata[[#This Row],[FWmin]]/rawdata[[#This Row],[FW]])+(1-rawdata[[#This Row],[FW]]/rawdata[[#This Row],[FWmax]]))/2,\"\")","v":""},{"$f":"IF(AND($C$4>=rawdata[[#This Row],[KDmin]],$J$11=rawdata[[#This Row],[FHq]],rawdata[[#This Row],[FW]]/2>=rawdata[[#This Row],[FWmin]],rawdata[[#This Row],[FW]]/2<=rawdata[[#This Row],[FWmax]]),\"YES\",\" - \")","v":" - "},{"$f":"IFERROR(rawdata[[#This Row],[FWmin]]*2,\" - \")","v":3.8},{"$f":"IFERROR(rawdata[[#This Row],[FWmax]]*2,\" - \")","v":6.4},{"$f":"IF(rawdata[[#This Row],[Fhmatch 2]]=\"YES\",((1-rawdata[[#This Row],[Fwmin 2]]/rawdata[[#This Row],[FW]])+(1-rawdata[[#This Row],[FW]]/rawdata[[#This Row],[FWmax 2]]))/2,\"\")","v":""}]
[null,"Touch opening",90,550,191,"D",{"$f":"IF(rawdata[[#This Row],[Opening type]]=\"Standard\",$C$10,$C$9)","v":{"v":4.388999999999999,"d":"4.39"}},2.6,4.6,{"v":0.9090909090909091,"d":"0.91"},{"$f":"IF(AND($C$4>=rawdata[[#This Row],[KDmin]],$J$11=rawdata[[#This Row],[FHq]],rawdata[[#This Row],[FW]]>=rawdata[[#This Row],[FWmin]],rawdata[[#This Row],[FW]]<=rawdata[[#This Row],[FWmax]]),\"YES\",\" - \")","v":" - "},{"$f":"IF(rawdata[[#This Row],[Fhmatch 1]]=\"YES\",((1-rawdata[[#This Row],[FWmin]]/rawdata[[#This Row],[FW]])+(1-rawdata[[#This Row],[FW]]/rawdata[[#This Row],[FWmax]]))/2,\"\")","v":""},{"$f":"IF(AND($C$4>=rawdata[[#This Row],[KDmin]],$J$11=rawdata[[#This Row],[FHq]],rawdata[[#This Row],[FW]]/2>=rawdata[[#This Row],[FWmin]],rawdata[[#This Row],[FW]]/2<=rawdata[[#This Row],[FWmax]]),\"YES\",\" - \")","v":" - "},{"$f":"IFERROR(rawdata[[#This Row],[FWmin]]*2,\" - \")","v":5.2},{"$f":"IFERROR(rawdata[[#This Row],[FWmax]]*2,\" - \")","v":9.2},{"$f":"IF(rawdata[[#This Row],[Fhmatch 2]]=\"YES\",((1-rawdata[[#This Row],[Fwmin 2]]/rawdata[[#This Row],[FW]])+(1-rawdata[[#This Row],[FW]]/rawdata[[#This Row],[FWmax 2]]))/2,\"\")","v":""}]
[null,"Touch opening",90,600,191,"B",{"$f":"IF(rawdata[[#This Row],[Opening type]]=\"Standard\",$C$10,$C$9)","v":{"v":4.388999999999999,"d":"4.39"}},1.3,1.9,{"v":0.8333333333333334,"d":"0.83"},{"$f":"IF(AND($C$4>=rawdata[[#This Row],[KDmin]],$J$11=rawdata[[#This Row],[FHq]],rawdata[[#This Row],[FW]]>=rawdata[[#This Row],[FWmin]],rawdata[[#This Row],[FW]]<=rawdata[[#This Row],[FWmax]]),\"YES\",\" - \")","v":" - "},{"$f":"IF(rawdata[[#This Row],[Fhmatch 1]]=\"YES\",((1-rawdata[[#This Row],[FWmin]]/rawdata[[#This Row],[FW]])+(1-rawdata[[#This Row],[FW]]/rawdata[[#This Row],[FWmax]]))/2,\"\")","v":""},{"$f":"IF(AND($C$4>=rawdata[[#This Row],[KDmin]],$J$11=rawdata[[#This Row],[FHq]],rawdata[[#This Row],[FW]]/2>=rawdata[[#This Row],[FWmin]],rawdata[[#This Row],[FW]]/2<=rawdata[[#This Row],[FWmax]]),\"YES\",\" - \")","v":" - "},{"$f":"IFERROR(rawdata[[#This Row],[FWmin]]*2,\" - \")","v":2.6},{"$f":"IFERROR(rawdata[[#This Row],[FWmax]]*2,\" - \")","v":3.8},{"$f":"IF(rawdata[[#This Row],[Fhmatch 2]]=\"YES\",((1-rawdata[[#This Row],[Fwmin 2]]/rawdata[[#This Row],[FW]])+(1-rawdata[[#This Row],[FW]]/rawdata[[#This Row],[FWmax 2]]))/2,\"\")","v":""}]
[null,"Touch opening",90,600,191,"C",{"$f":"IF(rawdata[[#This Row],[Opening type]]=\"Standard\",$C$10,$C$9)","v":{"v":4.388999999999999,"d":"4.39"}},1.8,3.1,{"v":0.8333333333333334,"d":"0.83"},{"$f":"IF(AND($C$4>=rawdata[[#This Row],[KDmin]],$J$11=rawdata[[#This Row],[FHq]],rawdata[[#This Row],[FW]]>=rawdata[[#This Row],[FWmin]],rawdata[[#This Row],[FW]]<=rawdata[[#This Row],[FWmax]]),\"YES\",\" - \")","v":" - "},{"$f":"IF(rawdata[[#This Row],[Fhmatch 1]]=\"YES\",((1-rawdata[[#This Row],[FWmin]]/rawdata[[#This Row],[FW]])+(1-rawdata[[#This Row],[FW]]/rawdata[[#This Row],[FWmax]]))/2,\"\")","v":""},{"$f":"IF(AND($C$4>=rawdata[[#This Row],[KDmin]],$J$11=rawdata[[#This Row],[FHq]],rawdata[[#This Row],[FW]]/2>=rawdata[[#This Row],[FWmin]],rawdata[[#This Row],[FW]]/2<=rawdata[[#This Row],[FWmax]]),\"YES\",\" - \")","v":" - "},{"$f":"IFERROR(rawdata[[#This Row],[FWmin]]*2,\" - \")","v":3.6},{"$f":"IFERROR(rawdata[[#This Row],[FWmax]]*2,\" - \")","v":6.2},{"$f":"IF(rawdata[[#This Row],[Fhmatch 2]]=\"YES\",((1-rawdata[[#This Row],[Fwmin 2]]/rawdata[[#This Row],[FW]])+(1-rawdata[[#This Row],[FW]]/rawdata[[#This Row],[FWmax 2]]))/2,\"\")","v":""}]
[null,"Touch opening",90,600,191,"D",{"$f":"IF(rawdata[[#This Row],[Opening type]]=\"Standard\",$C$10,$C$9)","v":{"v":4.388999999999999,"d":"4.39"}},"-","-",{"v":0.8333333333333334,"d":"0.83"},{"$f":"IF(AND($C$4>=rawdata[[#This Row],[KDmin]],$J$11=rawdata[[#This Row],[FHq]],rawdata[[#This Row],[FW]]>=rawdata[[#This Row],[FWmin]],rawdata[[#This Row],[FW]]<=rawdata[[#This Row],[FWmax]]),\"YES\",\" - \")","v":" - "},{"$f":"IF(rawdata[[#This Row],[Fhmatch 1]]=\"YES\",((1-rawdata[[#This Row],[FWmin]]/rawdata[[#This Row],[FW]])+(1-rawdata[[#This Row],[FW]]/rawdata[[#This Row],[FWmax]]))/2,\"\")","v":""},{"$f":"IF(AND($C$4>=rawdata[[#This Row],[KDmin]],$J$11=rawdata[[#This Row],[FHq]],rawdata[[#This Row],[FW]]/2>=rawdata[[#This Row],[FWmin]],rawdata[[#This Row],[FW]]/2<=rawdata[[#This Row],[FWmax]]),\"YES\",\" - \")","v":" - "},{"$f":"IFERROR(rawdata[[#This Row],[FWmin]]*2,\" - \")","v":" - "},{"$f":"IFERROR(rawdata[[#This Row],[FWmax]]*2,\" - \")","v":" - "},{"$f":"IF(rawdata[[#This Row],[Fhmatch 2]]=\"YES\",((1-rawdata[[#This Row],[Fwmin 2]]/rawdata[[#This Row],[FW]])+(1-rawdata[[#This Row],[FW]]/rawdata[[#This Row],[FWmax 2]]))/2,\"\")","v":""}]
[null,"Touch opening",110,300,191,"B",{"$f":"IF(rawdata[[#This Row],[Opening type]]=\"Standard\",$C$10,$C$9)","v":{"v":4.388999999999999,"d":"4.39"}},{"v":2,"d":"2.0"},3.6,{"v":1.6666666666666667,"d":"1.67"},{"$f":"IF(AND($C$4>=rawdata[[#This Row],[KDmin]],$J$11=rawdata[[#This Row],[FHq]],rawdata[[#This Row],[FW]]>=rawdata[[#This Row],[FWmin]],rawdata[[#This Row],[FW]]<=rawdata[[#This Row],[FWmax]]),\"YES\",\" - \")","v":" - "},{"$f":"IF(rawdata[[#This Row],[Fhmatch 1]]=\"YES\",((1-rawdata[[#This Row],[FWmin]]/rawdata[[#This Row],[FW]])+(1-rawdata[[#This Row],[FW]]/rawdata[[#This Row],[FWmax]]))/2,\"\")","v":""},{"$f":"IF(AND($C$4>=rawdata[[#This Row],[KDmin]],$J$11=rawdata[[#This Row],[FHq]],rawdata[[#This Row],[FW]]/2>=rawdata[[#This Row],[FWmin]],rawdata[[#This Row],[FW]]/2<=rawdata[[#This Row],[FWmax]]),\"YES\",\" - \")","v":" - "},{"$f":"IFERROR(rawdata[[#This Row],[FWmin]]*2,\" - \")","v":{"v":4,"d":"4.0"}},{"$f":"IFERROR(rawdata[[#This Row],[FWmax]]*2,\" - \")","v":7.2},{"$f":"IF(rawdata[[#This Row],[Fhmatch 2]]=\"YES\",((1-rawdata[[#This Row],[Fwmin 2]]/rawdata[[#This Row],[FW]])+(1-rawdata[[#This Row],[FW]]/rawdata[[#This Row],[FWmax 2]]))/2,\"\")","v":""}]
[null,"Touch opening",110,300,191,"C",{"$f":"IF(rawdata[[#This Row],[Opening type]]=\"Standard\",$C$10,$C$9)","v":{"v":4.388999999999999,"d":"4.39"}},2.8,5.3,{"v":1.6666666666666667,"d":"1.67"},{"$f":"IF(AND($C$4>=rawdata[[#This Row],[KDmin]],$J$11=rawdata[[#This Row],[FHq]],rawdata[[#This Row],[FW]]>=rawdata[[#This Row],[FWmin]],rawdata[[#This Row],[FW]]<=rawdata[[#This Row],[FWmax]]),\"YES\",\" - \")","v":" - "},{"$f":"IF(rawdata[[#This Row],[Fhmatch 1]]=\"YES\",((1-rawdata[[#This Row],[FWmin]]/rawdata[[#This Row],[FW]])+(1-rawdata[[#This Row],[FW]]/rawdata[[#This Row],[FWmax]]))/2,\"\")","v":""},{"$f":"IF(AND($C$4>=rawdata[[#This Row],[KDmin]],$J$11=rawdata[[#This Row],[FHq]],rawdata[[#This Row],[FW]]/2>=rawdata[[#This Row],[FWmin]],rawdata[[#This Row],[FW]]/2<=rawdata[[#This Row],[FWmax]]),\"YES\",\" - \")","v":" - "},{"$f":"IFERROR(rawdata[[#This Row],[FWmin]]*2,\" - \")","v":5.6},{"$f":"IFERROR(rawdata[[#This Row],[FWmax]]*2,\" - \")","v":10.6},{"$f":"IF(rawdata[[#This Row],[Fhmatch 2]]=\"YES\",((1-rawdata[[#This Row],[Fwmin 2]]/rawdata[[#This Row],[FW]])+(1-rawdata[[#This Row],[FW]]/rawdata[[#This Row],[FWmax 2]]))/2,\"\")","v":""}]
[null,"Touch opening",110,300,191,"D",{"$f":"IF(rawdata[[#This Row],[Opening type]]=\"Standard\",$C$10,$C$9)","v":{"v":4.388999999999999,"d":"4.39"}},"-","-",{"v":1.6666666666666667,"d":"1.67"},{"$f":"IF(AND($C$4>=rawdata[[#This Row],[KDmin]],$J$11=rawdata[[#This Row],[FHq]],rawdata[[#This Row],[FW]]>=rawdata[[#This Row],[FWmin]],rawdata[[#This Row],[FW]]<=rawdata[[#This Row],[FWmax]]),\"YES\",\" - \")","v":" - "},{"$f":"IF(rawdata[[#This Row],[Fhmatch 1]]=\"YES\",((1-rawdata[[#This Row],[FWmin]]/rawdata[[#This Row],[FW]])+(1-rawdata[[#This Row],[FW]]/rawdata[[#This Row],[FWmax]]))/2,\"\")","v":""},{"$f":"IF(AND($C$4>=rawdata[[#This Row],[KDmin]],$J$11=rawdata[[#This Row],[FHq]],rawdata[[#This Row],[FW]]/2>=rawdata[[#This Row],[FWmin]],rawdata[[#This Row],[FW]]/2<=rawdata[[#This Row],[FWmax]]),\"YES\",\" - \")","v":" - "},{"$f":"IFERROR(rawdata[[#This Row],[FWmin]]*2,\" - \")","v":" - "},{"$f":"IFERROR(rawdata[[#This Row],[FWmax]]*2,\" - \")","v":" - "},{"$f":"IF(rawdata[[#This Row],[Fhmatch 2]]=\"YES\",((1-rawdata[[#This Row],[Fwmin 2]]/rawdata[[#This Row],[FW]])+(1-rawdata[[#This Row],[FW]]/rawdata[[#This Row],[FWmax 2]]))/2,\"\")","v":""}]
[null,"Touch opening",110,350,191,"B",{"$f":"IF(rawdata[[#This Row],[Opening type]]=\"Standard\",$C$10,$C$9)","v":{"v":4.388999999999999,"d":"4.39"}},{"v":2,"d":"2.0"},3.4,{"v":1.4285714285714286,"d":"1.43"},{"$f":"IF(AND($C$4>=rawdata[[#This Row],[KDmin]],$J$11=rawdata[[#This Row],[FHq]],rawdata[[#This Row],[FW]]>=rawdata[[#This Row],[FWmin]],rawdata[[#This Row],[FW]]<=rawdata[[#This Row],[FWmax]]),\"YES\",\" - \")","v":" - "},{"$f":"IF(rawdata[[#This Row],[Fhmatch 1]]=\"YES\",((1-rawdata[[#This Row],[FWmin]]/rawdata[[#This Row],[FW]])+(1-rawdata[[#This Row],[FW]]/rawdata[[#This Row],[FWmax]]))/2,\"\")","v":""},{"$f":"IF(AND($C$4>=rawdata[[#This Row],[KDmin]],$J$11=rawdata[[#This Row],[FHq]],rawdata[[#This Row],[FW]]/2>=rawdata[[#This Row],[FWmin]],rawdata[[#This Row],[FW]]/2<=rawdata[[#This Row],[FWmax]]),\"YES\",\" - \")","v":" - "},{"$f":"IFERROR(rawdata[[#This Row],[FWmin]]*2,\" - \")","v":{"v":4,"d":"4.0"}},{"$f":"IFERROR(rawdata[[#This Row],[FWmax]]*2,\" - \")","v":6.8},{"$f":"IF(rawdata[[#This Row],[Fhmatch 2]]=\"YES\",((1-rawdata[[#This Row],[Fwmin 2]]/rawdata[[#This Row],[FW]])+(1-rawdata[[#This Row],[FW]]/rawdata[[#This Row],[FWmax 2]]))/2,\"\")","v":""}]
[null,"Touch opening",110,350,191,"C",{"$f":"IF(rawdata[[#This Row],[Opening type]]=\"Standard\",$C$10,$C$9)","v":{"v":4.388999999999999,"d":"4.39"}},2.7,4.6,{"v":1.4285714285714286,"d":"1.43"},{"$f":"IF(AND($C$4>=rawdata[[#This Row],[KDmin]],$J$11=rawdata[[#This Row],[FHq]],rawdata[[#This Row],[FW]]>=rawdata[[#This Row],[FWmin]],rawdata[[#This Row],[FW]]<=rawdata[[#This Row],[FWmax]]),\"YES\",\" - \")","v":" - "},{"$f":"IF(rawdata[[#This Row],[Fhmatch 1]]=\"YES\",((1-rawdata[[#This Row],[FWmin]]/rawdata[[#This Row],[FW]])+(1-rawdata[[#This Row],[FW]]/rawdata[[#This Row],[FWmax]]))/2,\"\")","v":""},{"$f":"IF(AND($C$4>=rawdata[[#This Row],[KDmin]],$J$11=rawdata[[#This Row],[FHq]],rawdata[[#This Row],[FW]]/2>=rawdata[[#This Row],[FWmin]],rawdata[[#This Row],[FW]]/2<=rawdata[[#This Row],[FWmax]]),\"YES\",\" - \")","v":" - "},{"$f":"IFERROR(rawdata[[#This Row],[FWmin]]*2,\" - \")","v":5.4},{"$f":"IFERROR(rawdata[[#This Row],[FWmax]]*2,\" - \")","v":9.2},{"$f":"IF(rawdata[[#This Row],[Fhmatch 2]]=\"YES\",((1-rawdata[[#This Row],[Fwmin 2]]/rawdata[[#This Row],[FW]])+(1-rawdata[[#This Row],[FW]]/rawdata[[#This Row],[FWmax 2]]))/2,\"\")","v":""}]
[null,"Touch opening",110,350,191,"D",{"$f":"IF(rawdata[[#This Row],[Opening type]]=\"Standard\",$C$10,$C$9)","v":{"v":4.388999999999999,"d":"4.39"}},3.6,5.6,{"v":1.4285714285714286,"d":"1.43"},{"$f":"IF(AND($C$4>=rawdata[[#This Row],[KDmin]],$J$11=rawdata[[#This Row],[FHq]],rawdata[[#This Row],[FW]]>=rawdata[[#This Row],[FWmin]],rawdata[[#This Row],[FW]]<=rawdata[[#This Row],[FWmax]]),\"YES\",\" - \")","v":" - "},{"$f":"IF(rawdata[[#This Row],[Fhmatch 1]]=\"YES\",((1-rawdata[[#This Row],[FWmin]]/rawdata[[#This Row],[FW]])+(1-rawdata[[#This Row],[FW]]/rawdata[[#This Row],[FWmax]]))/2,\"\")","v":""},{"$f":"IF(AND($C$4>=rawdata[[#This Row],[KDmin]],$J$11=rawdata[[#This Row],[FHq]],rawdata[[#This Row],[FW]]/2>=rawdata[[#This Row],[FWmin]],rawdata[[#This Row],[FW]]/2<=rawdata[[#This Row],[FWmax]]),\"YES\",\" - \")","v":" - "},{"$f":"IFERROR(rawdata[[#This Row],[FWmin]]*2,\" - \")","v":7.2},{"$f":"IFERROR(rawdata[[#This Row],[FWmax]]*2,\" - \")","v":11.2},{"$f":"IF(rawdata[[#This Row],[Fhmatch 2]]=\"YES\",((1-rawdata[[#This Row],[Fwmin 2]]/rawdata[[#This Row],[FW]])+(1-rawdata[[#This Row],[FW]]/rawdata[[#This Row],[FWmax 2]]))/2,\"\")","v":""}]
[null,"Touch opening",110,400,191,"B",{"$f":"IF(rawdata[[#This Row],[Opening type]]=\"Standard\",$C$10,$C$9)","v":{"v":4.388999999999999,"d":"4.39"}},1.8,2.9,1.25,{"$f":"IF(AND($C$4>=rawdata[[#This Row],[KDmin]],$J$11=rawdata[[#This Row],[FHq]],rawdata[[#This Row],[FW]]>=rawdata[[#This Row],[FWmin]],rawdata[[#This Row],[FW]]<=rawdata[[#This Row],[FWmax]]),\"YES\",\" - \")","v":" - "},{"$f":"IF(rawdata[[#This Row],[Fhmatch 1]]=\"YES\",((1-rawdata[[#This Row],[FWmin]]/rawdata[[#This Row],[FW]])+(1-rawdata[[#This Row],[FW]]/rawdata[[#This Row],[FWmax]]))/2,\"\")","v":""},{"$f":"IF(AND($C$4>=rawdata[[#This Row],[KDmin]],$J$11=rawdata[[#This Row],[FHq]],rawdata[[#This Row],[FW]]/2>=rawdata[[#This Row],[FWmin]],rawdata[[#This Row],[FW]]/2<=rawdata[[#This Row],[FWmax]]),\"YES\",\" - \")","v":" - "},{"$f":"IFERROR(rawdata[[#This Row],[FWmin]]*2,\" - \")","v":3.6},{"$f":"IFERROR(rawdata[[#This Row],[FWmax]]*2,\" - \")","v":5.8},{"$f":"IF(rawdata[[#This Row],[Fhmatch 2]]=\"YES\",((1-rawdata[[#This Row],[Fwmin 2]]/rawdata[[#This Row],[FW]])+(1-rawdata[[#This Row],[FW]]/rawdata[[#This Row],[FWmax 2]]))/2,\"\")","v":""}]
[null,"Touch opening",110,400,191,"C",{"$f":"IF(rawdata[[#This Row],[Opening type]]=\"Standard\",$C$10,$C$9)","v":{"v":4.388999999999999,"d":"4.39"}},2.6,3.9,1.25,{"$f":"IF(AND($C$4>=rawdata[[#This Row],[KDmin]],$J$11=rawdata[[#This Row],[FHq]],rawdata[[#This Row],[FW]]>=rawdata[[#This Row],[FWmin]],rawdata[[#This Row],[FW]]<=rawdata[[#This Row],[FWmax]]),\"YES\",\" - \")","v":" - "},{"$f":"IF(rawdata[[#This Row],[Fhmatch 1]]=\"YES\",((1-rawdata[[#This Row],[FWmin]]/rawdata[[#This Row],[FW]])+(1-rawdata[[#This Row],[FW]]/rawdata[[#This Row],[FWmax]]))/2,\"\")","v":""},{"$f":"IF(AND($C$4>=rawdata[[#This Row],[KDmin]],$J$11=rawdata[[#This Row],[FHq]],rawdata[[#This Row],[FW]]/2>=rawdata[[#This Row],[FWmin]],rawdata[[#This Row],[FW]]/2<=rawdata[[#This Row],[FWmax]]),\"YES\",\" - \")","v":" - "},{"$f":"IFERROR(rawdata[[#This Row],[FWmin]]*2,\" - \")","v":5.2},{"$f":"IFERROR(rawdata[[#This Row],[FWmax]]*2,\" - \")","v":7.8},{"$f":"IF(rawdata[[#This Row],[Fhmatch 2]]=\"YES\",((1-rawdata[[#This Row],[Fwmin 2]]/rawdata[[#This Row],[FW]])+(1-rawdata[[#This Row],[FW]]/rawdata[[#This Row],[FWmax 2]]))/2,\"\")","v":""}]
[null,"Touch opening",110,400,191,"D",{"$f":"IF(rawdata[[#This Row],[Opening type]]=\"Standard\",$C$10,$C$9)","v":{"v":4.388999999999999,"d":"4.39"}},3.5,{"v":5,"d":"5.0"},1.25,{"$f":"IF(AND($C$4>=rawdata[[#This Row],[KDmin]],$J$11=rawdata[[#This Row],[FHq]],rawdata[[#This Row],[FW]]>=rawdata[[#This Row],[FWmin]],rawdata[[#This Row],[FW]]<=rawdata[[#This Row],[FWmax]]),\"YES\",\" - \")","v":" - "},{"$f":"IF(rawdata[[#This Row],[Fhmatch 1]]=\"YES\",((1-rawdata[[#This Row],[FWmin]]/rawdata[[#This Row],[FW]])+(1-rawdata[[#This Row],[FW]]/rawdata[[#This Row],[FWmax]]))/2,\"\")","v":""},{"$f":"IF(AND($C$4>=rawdata[[#This Row],[KDmin]],$J$11=rawdata[[#This Row],[FHq]],rawdata[[#This Row],[FW]]/2>=rawdata[[#This Row],[FWmin]],rawdata[[#This Row],[FW]]/2<=rawdata[[#This Row],[FWmax]]),\"YES\",\" - \")","v":" - "},{"$f":"IFERROR(rawdata[[#This Row],[FWmin]]*2,\" - \")","v":{"v":7,"d":"7.0"}},{"$f":"IFERROR(rawdata[[#This Row],[FWmax]]*2,\" - \")","v":{"v":10,"d":"10.0"}},{"$f":"IF(rawdata[[#This Row],[Fhmatch 2]]=\"YES\",((1-rawdata[[#This Row],[Fwmin 2]]/rawdata[[#This Row],[FW]])+(1-rawdata[[#This Row],[FW]]/rawdata[[#This Row],[FWmax 2]]))/2,\"\")","v":""}]
[null,"Touch opening",110,450,191,"B",{"$f":"IF(rawdata[[#This Row],[Opening type]]=\"Standard\",$C$10,$C$9)","v":{"v":4.388999999999999,"d":"4.39"}},1.4,2.2,{"v":1.1111111111111112,"d":"1.11"},{"$f":"IF(AND($C$4>=rawdata[[#This Row],[KDmin]],$J$11=rawdata[[#This Row],[FHq]],rawdata[[#This Row],[FW]]>=rawdata[[#This Row],[FWmin]],rawdata[[#This Row],[FW]]<=rawdata[[#This Row],[FWmax]]),\"YES\",\" - \")","v":" - "},{"$f":"IF(rawdata[[#This Row],[Fhmatch 1]]=\"YES\",((1-rawdata[[#This Row],[FWmin]]/rawdata[[#This Row],[FW]])+(1-rawdata[[#This Row],[FW]]/rawdata[[#This Row],[FWmax]]))/2,\"\")","v":""},{"$f":"IF(AND($C$4>=rawdata[[#This Row],[KDmin]],$J$11=rawdata[[#This Row],[FHq]],rawdata[[#This Row],[FW]]/2>=rawdata[[#This Row],[FWmin]],rawdata[[#This Row],[FW]]/2<=rawdata[[#This Row],[FWmax]]),\"YES\",\" - \")","v":" - "},{"$f":"IFERROR(rawdata[[#This Row],[FWmin]]*2,\" - \")","v":2.8},{"$f":"IFERROR(rawdata[[#This Row],[FWmax]]*2,\" - \")","v":4.4},{"$f":"IF(rawdata[[#This Row],[Fhmatch 2]]=\"YES\",((1-rawdata[[#This Row],[Fwmin 2]]/rawdata[[#This Row],[FW]])+(1-rawdata[[#This Row],[FW]]/rawdata[[#This Row],[FWmax 2]]))/2,\"\")","v":""}]
[null,"Touch opening",110,450,191,"C",{"$f":"IF(rawdata[[#This Row],[Opening type]]=\"Standard\",$C$10,$C$9)","v":{"v":4.388999999999999,"d":"4.39"}},2.2,3.7,{"v":1.1111111111111112,"d":"1.11"},{"$f":"IF(AND($C$4>=rawdata[[#This Row],[KDmin]],$J$11=rawdata[[#This Row],[FHq]],rawdata[[#This Row],[FW]]>=rawdata[[#This Row],[FWmin]],rawdata[[#This Row],[FW]]<=rawdata[[#This Row],[FWmax]]),\"YES\",\" - \")","v":" - "},{"$f":"IF(rawdata[[#This Row],[Fhmatch 1]]=\"YES\",((1-rawdata[[#This Row],[FWmin]]/rawdata[[#This Row],[FW]])+(1-rawdata[[#This Row],[FW]]/rawdata[[#This Row],[FWmax]]))/2,\"\")","v":""},{"$f":"IF(AND($C$4>=rawdata[[#This Row],[KDmin]],$J$11=rawdata[[#This Row],[FHq]],rawdata[[#This Row],[FW]]/2>=rawdata[[#This Row],[FWmin]],rawdata[[#This Row],[FW]]/2<=rawdata[[#This Row],[FWmax]]),\"YES\",\" - \")","v":" - "},{"$f":"IFERROR(rawdata[[#This Row],[FWmin]]*2,\" - \")","v":4.4},{"$f":"IFERROR(rawdata[[#This Row],[FWmax]]*2,\" - \")","v":7.4},{"$f":"IF(rawdata[[#This Row],[Fhmatch 2]]=\"YES\",((1-rawdata[[#This Row],[Fwmin 2]]/rawdata[[#This Row],[FW]])+(1-rawdata[[#This Row],[FW]]/rawdata[[#This Row],[FWmax 2]]))/2,\"\")","v":""}]
[null,"Touch opening",110,450,191,"D",{"$f":"IF(rawdata[[#This Row],[Opening type]]=\"Standard\",$C$10,$C$9)","v":{"v":4.388999999999999,"d":"4.39"}},2.9,4.4,{"v":1.1111111111111112,"d":"1.11"},{"$f":"IF(AND($C$4>=rawdata[[#This Row],[KDmin]],$J$11=rawdata[[#This Row],[FHq]],rawdata[[#This Row],[FW]]>=rawdata[[#This Row],[FWmin]],rawdata[[#This Row],[FW]]<=rawdata[[#This Row],[FWmax]]),\"YES\",\" - \")","v":" - "},{"$f":"IF(rawdata[[#This Row],[Fhmatch 1]]=\"YES\",((1-rawdata[[#This Row],[FWmin]]/rawdata[[#This Row],[FW]])+(1-rawdata[[#This Row],[FW]]/rawdata[[#This Row],[FWmax]]))/2,\"\")","v":""},{"$f":"IF(AND($C$4>=rawdata[[#This Row],[KDmin]],$J$11=rawdata[[#This Row],[FHq]],rawdata[[#This Row],[FW]]/2>=rawdata[[#This Row],[FWmin]],rawdata[[#This Row],[FW]]/2<=rawdata[[#This Row],[FWmax]]),\"YES\",\" - \")","v":" - "},{"$f":"IFERROR(rawdata[[#This Row],[FWmin]]*2,\" - \")","v":5.8},{"$f":"IFERROR(rawdata[[#This Row],[FWmax]]*2,\" - \")","v":8.8},{"$f":"IF(rawdata[[#This Row],[Fhmatch 2]]=\"YES\",((1-rawdata[[#This Row],[Fwmin 2]]/rawdata[[#This Row],[FW]])+(1-rawdata[[#This Row],[FW]]/rawdata[[#This Row],[FWmax 2]]))/2,\"\")","v":""}]
[null,"Touch opening",110,500,191,"B",{"$f":"IF(rawdata[[#This Row],[Opening type]]=\"Standard\",$C$10,$C$9)","v":{"v":4.388999999999999,"d":"4.39"}},1.3,2.2,{"v":1,"d":"1.00"},{"$f":"IF(AND($C$4>=rawdata[[#This Row],[KDmin]],$J$11=rawdata[[#This Row],[FHq]],rawdata[[#This Row],[FW]]>=rawdata[[#This Row],[FWmin]],rawdata[[#This Row],[FW]]<=rawdata[[#This Row],[FWmax]]),\"YES\",\" - \")","v":" - "},{"$f":"IF(rawdata[[#This Row],[Fhmatch 1]]=\"YES\",((1-rawdata[[#This Row],[FWmin]]/rawdata[[#This Row],[FW]])+(1-rawdata[[#This Row],[FW]]/rawdata[[#This Row],[FWmax]]))/2,\"\")","v":""},{"$f":"IF(AND($C$4>=rawdata[[#This Row],[KDmin]],$J$11=rawdata[[#This Row],[FHq]],rawdata[[#This Row],[FW]]/2>=rawdata[[#This Row],[FWmin]],rawdata[[#This Row],[FW]]/2<=rawdata[[#This Row],[FWmax]]),\"YES\",\" - \")","v":"YES"},{"$f":"IFERROR(rawdata[[#This Row],[FWmin]]*2,\" - \")","v":2.6},{"$f":"IFERROR(rawdata[[#This Row],[FWmax]]*2,\" - \")","v":4.4},{"$f":"IF(rawdata[[#This Row],[Fhmatch 2]]=\"YES\",((1-rawdata[[#This Row],[Fwmin 2]]/rawdata[[#This Row],[FW]])+(1-rawdata[[#This Row],[FW]]/rawdata[[#This Row],[FWmax 2]]))/2,\"\")","v":{"v":0.2050549669628618,"d":"20.51%"}}]
[null,"Touch opening",110,500,191,"C",{"$f":"IF(rawdata[[#This Row],[Opening type]]=\"Standard\",$C$10,$C$9)","v":{"v":4.388999999999999,"d":"4.39"}},{"v":2,"d":"2.0"},3.4,{"v":1,"d":"1.00"},{"$f":"IF(AND($C$4>=rawdata[[#This Row],[KDmin]],$J$11=rawdata[[#This Row],[FHq]],rawdata[[#This Row],[FW]]>=rawdata[[#This Row],[FWmin]],rawdata[[#This Row],[FW]]<=rawdata[[#This Row],[FWmax]]),\"YES\",\" - \")","v":" - "},{"$f":"IF(rawdata[[#This Row],[Fhmatch 1]]=\"YES\",((1-rawdata[[#This Row],[FWmin]]/rawdata[[#This Row],[FW]])+(1-rawdata[[#This Row],[FW]]/rawdata[[#This Row],[FWmax]]))/2,\"\")","v":""},{"$f":"IF(AND($C$4>=rawdata[[#This Row],[KDmin]],$J$11=rawdata[[#This Row],[FHq]],rawdata[[#This Row],[FW]]/2>=rawdata[[#This Row],[FWmin]],rawdata[[#This Row],[FW]]/2<=rawdata[[#This Row],[FWmax]]),\"YES\",\" - \")","v":"YES"},{"$f":"IFERROR(rawdata[[#This Row],[FWmin]]*2,\" - \")","v":{"v":4,"d":"4.0"}},{"$f":"IFERROR(rawdata[[#This Row],[FWmax]]*2,\" - \")","v":6.8},{"$f":"IF(rawdata[[#This Row],[Fhmatch 2]]=\"YES\",((1-rawdata[[#This Row],[Fwmin 2]]/rawdata[[#This Row],[FW]])+(1-rawdata[[#This Row],[FW]]/rawdata[[#This Row],[FWmax 2]]))/2,\"\")","v":{"v":0.22159474555372383,"d":"22.16%"}}]
[null,"Touch opening",110,500,191,"D",{"$f":"IF(rawdata[[#This Row],[Opening type]]=\"Standard\",$C$10,$C$9)","v":{"v":4.388999999999999,"d":"4.39"}},2.6,3.7,{"v":1,"d":"1.00"},{"$f":"IF(AND($C$4>=rawdata[[#This Row],[KDmin]],$J$11=rawdata[[#This Row],[FHq]],rawdata[[#This Row],[FW]]>=rawdata[[#This Row],[FWmin]],rawdata[[#This Row],[FW]]<=rawdata[[#This Row],[FWmax]]),\"YES\",\" - \")","v":" - "},{"$f":"IF(rawdata[[#This Row],[Fhmatch 1]]=\"YES\",((1-rawdata[[#This Row],[FWmin]]/rawdata[[#This Row],[FW]])+(1-rawdata[[#This Row],[FW]]/rawdata[[#This Row],[FWmax]]))/2,\"\")","v":""},{"$f":"IF(AND($C$4>=rawdata[[#This Row],[KDmin]],$J$11=rawdata[[#This Row],[FHq]],rawdata[[#This Row],[FW]]/2>=rawdata[[#This Row],[FWmin]],rawdata[[#This Row],[FW]]/2<=rawdata[[#This Row],[FWmax]]),\"YES\",\" - \")","v":" - "},{"$f":"IFERROR(rawdata[[#This Row],[FWmin]]*2,\" - \")","v":5.2},{"$f":"IFERROR(rawdata[[#This Row],[FWmax]]*2,\" - \")","v":7.4},{"$f":"IF(rawdata[[#This Row],[Fhmatch 2]]=\"YES\",((1-rawdata[[#This Row],[Fwmin 2]]/rawdata[[#This Row],[FW]])+(1-rawdata[[#This Row],[FW]]/rawdata[[#This Row],[FWmax 2]]))/2,\"\")","v":""}]
[null,"Touch opening",110,550,191,"B",{"$f":"IF(rawdata[[#This Row],[Opening type]]=\"Standard\",$C$10,$C$9)","v":{"v":4.388999999999999,"d":"4.39"}},{"v":1,"d":"1.0"},1.8,{"v":0.9090909090909091,"d":"0.91"},{"$f":"IF(AND($C$4>=rawdata[[#This Row],[KDmin]],$J$11=rawdata[[#This Row],[FHq]],rawdata[[#This Row],[FW]]>=rawdata[[#This Row],[FWmin]],rawdata[[#This Row],[FW]]<=rawdata[[#This Row],[FWmax]]),\"YES\",\" - \")","v":" - "},{"$f":"IF(rawdata[[#This Row],[Fhmatch 1]]=\"YES\",((1-rawdata[[#This Row],[FWmin]]/rawdata[[#This Row],[FW]])+(1-rawdata[[#This Row],[FW]]/rawdata[[#This Row],[FWmax]]))/2,\"\")","v":""},{"$f":"IF(AND($C$4>=rawdata[[#This Row],[KDmin]],$J$11=rawdata[[#This Row],[FHq]],rawdata[[#This Row],[FW]]/2>=rawdata[[#This Row],[FWmin]],rawdata[[#This Row],[FW]]/2<=rawdata[[#This Row],[FWmax]]),\"YES\",\" - \")","v":" - "},{"$f":"IFERROR(rawdata[[#This Row],[FWmin]]*2,\" - \")","v":{"v":2,"d":"2.0"}},{"$f":"IFERROR(rawdata[[#This Row],[FWmax]]*2,\" - \")","v":3.6},{"$f":"IF(rawdata[[#This Row],[Fhmatch 2]]=\"YES\",((1-rawdata[[#This Row],[Fwmin 2]]/rawdata[[#This Row],[FW]])+(1-rawdata[[#This Row],[FW]]/rawdata[[#This Row],[FWmax 2]]))/2,\"\")","v":""}]
[null,"Touch opening",110,550,191,"C",{"$f":"IF(rawdata[[#This Row],[Opening type]]=\"Standard\",$C$10,$C$9)","v":{"v":4.388999999999999,"d":"4.39"}},1.6,3.2,{"v":0.9090909090909091,"d":"0.91"},{"$f":"IF(AND($C$4>=rawdata[[#This Row],[KDmin]],$J$11=rawdata[[#This Row],[FHq]],rawdata[[#This Row],[FW]]>=rawdata[[#This Row],[FWmin]],rawdata[[#This Row],[FW]]<=rawdata[[#This Row],[FWmax]]),\"YES\",\" - \")","v":" - "},{"$f":"IF(rawdata[[#This Row],[Fhmatch 1]]=\"YES\",((1-rawdata[[#This Row],[FWmin]]/rawdata[[#This Row],[FW]])+(1-rawdata[[#This Row],[FW]]/rawdata[[#This Row],[FWmax]]))/2,\"\")","v":""},{"$f":"IF(AND($C$4>=rawdata[[#This Row],[KDmin]],$J$11=rawdata[[#This Row],[FHq]],rawdata[[#This Row],[FW]]/2>=rawdata[[#This Row],[FWmin]],rawdata[[#This Row],[FW]]/2<=rawdata[[#This Row],[FWmax]]),\"YES\",\" - \")","v":" - "},{"$f":"IFERROR(rawdata[[#This Row],[FWmin]]*2,\" - \")","v":3.2},{"$f":"IFERROR(rawdata[[#This Row],[FWmax]]*2,\" - \")","v":6.4},{"$f":"IF(rawdata[[#This Row],[Fhmatch 2]]=\"YES\",((1-rawdata[[#This Row],[Fwmin 2]]/rawdata[[#This Row],[FW]])+(1-rawdata[[#This Row],[FW]]/rawdata[[#This Row],[FWmax 2]]))/2,\"\")","v":""}]
[null,"Touch opening",110,550,191,"D",{"$f":"IF(rawdata[[#This Row],[Opening type]]=\"Standard\",$C$10,$C$9)","v":{"v":4.388999999999999,"d":"4.39"}},2.3,3.9,{"v":0.9090909090909091,"d":"0.91"},{"$f":"IF(AND($C$4>=rawdata[[#This Row],[KDmin]],$J$11=rawdata[[#This Row],[FHq]],rawdata[[#This Row],[FW]]>=rawdata[[#This Row],[FWmin]],rawdata[[#This Row],[FW]]<=rawdata[[#This Row],[FWmax]]),\"YES\",\" - \")","v":" - "},{"$f":"IF(rawdata[[#This Row],[Fhmatch 1]]=\"YES\",((1-rawdata[[#This Row],[FWmin]]/rawdata[[#This Row],[FW]])+(1-rawdata[[#This Row],[FW]]/rawdata[[#This Row],[FWmax]]))/2,\"\")","v":""},{"$f":"IF(AND($C$4>=rawdata[[#This Row],[KDmin]],$J$11=rawdata[[#This Row],[FHq]],rawdata[[#This Row],[FW]]/2>=rawdata[[#This Row],[FWmin]],rawdata[[#This Row],[FW]]/2<=rawdata[[#This Row],[FWmax]]),\"YES\",\" - \")","v":" - "},{"$f":"IFERROR(rawdata[[#This Row],[FWmin]]*2,\" - \")","v":4.6},{"$f":"IFERROR(rawdata[[#This Row],[FWmax]]*2,\" - \")","v":7.8},{"$f":"IF(rawdata[[#This Row],[Fhmatch 2]]=\"YES\",((1-rawdata[[#This Row],[Fwmin 2]]/rawdata[[#This Row],[FW]])+(1-rawdata[[#This Row],[FW]]/rawdata[[#This Row],[FWmax 2]]))/2,\"\")","v":""}]
[null,"Touch opening",110,600,191,"B",{"$f":"IF(rawdata[[#This Row],[Opening type]]=\"Standard\",$C$10,$C$9)","v":{"v":4.388999999999999,"d":"4.39"}},"-","-",{"v":0.8333333333333334,"d":"0.83"},{"$f":"IF(AND($C$4>=rawdata[[#This Row],[KDmin]],$J$11=rawdata[[#This Row],[FHq]],rawdata[[#This Row],[FW]]>=rawdata[[#This Row],[FWmin]],rawdata[[#This Row],[FW]]<=rawdata[[#This Row],[FWmax]]),\"YES\",\" - \")","v":" - "},{"$f":"IF(rawdata[[#This Row],[Fhmatch 1]]=\"YES\",((1-rawdata[[#This Row],[FWmin]]/rawdata[[#This Row],[FW]])+(1-rawdata[[#This Row],[FW]]/rawdata[[#This Row],[FWmax]]))/2,\"\")","v":""},{"$f":"IF(AND($C$4>=rawdata[[#This Row],[KDmin]],$J$11=rawdata[[#This Row],[FHq]],rawdata[[#This Row],[FW]]/2>=rawdata[[#This Row],[FWmin]],rawdata[[#This Row],[FW]]/2<=rawdata[[#This Row],[FWmax]]),\"YES\",\" - \")","v":" - "},{"$f":"IFERROR(rawdata[[#This Row],[FWmin]]*2,\" - \")","v":" - "},{"$f":"IFERROR(rawdata[[#This Row],[FWmax]]*2,\" - \")","v":" - "},{"$f":"IF(rawdata[[#This Row],[Fhmatch 2]]=\"YES\",((1-rawdata[[#This Row],[Fwmin 2]]/rawdata[[#This Row],[FW]])+(1-rawdata[[#This Row],[FW]]/rawdata[[#This Row],[FWmax 2]]))/2,\"\")","v":""}]
[null,"Touch opening",110,600,191,"C",{"$f":"IF(rawdata[[#This Row],[Opening type]]=\"Standard\",$C$10,$C$9)","v":{"v":4.388999999999999,"d":"4.39"}},1.5,2.7,{"v":0.8333333333333334,"d":"0.83"},{"$f":"IF(AND($C$4>=rawdata[[#This Row],[KDmin]],$J$11=rawdata[[#This Row],[FHq]],rawdata[[#This Row],[FW]]>=rawdata[[#This Row],[FWmin]],rawdata[[#This Row],[FW]]<=rawdata[[#This Row],[FWmax]]),\"YES\",\" - \")","v":" - "},{"$f":"IF(rawdata[[#This Row],[Fhmatch 1]]=\"YES\",((1-rawdata[[#This Row],[FWmin]]/rawdata[[#This Row],[FW]])+(1-rawdata[[#This Row],[FW]]/rawdata[[#This Row],[FWmax]]))/2,\"\")","v":""},{"$f":"IF(AND($C$4>=rawdata[[#This Row],[KDmin]],$J$11=rawdata[[#This Row],[FHq]],rawdata[[#This Row],[FW]]/2>=rawdata[[#This Row],[FWmin]],rawdata[[#This Row],[FW]]/2<=rawdata[[#This Row],[FWmax]]),\"YES\",\" - \")","v":" - "},{"$f":"IFERROR(rawdata[[#This Row],[FWmin]]*2,\" - \")","v":{"v":3,"d":"3.0"}},{"$f":"IFERROR(rawdata[[#This Row],[FWmax]]*2,\" - \")","v":5.4},{"$f":"IF(rawdata[[#This Row],[Fhmatch 2]]=\"YES\",((1-rawdata[[#This Row],[Fwmin 2]]/rawdata[[#This Row],[FW]])+(1-rawdata[[#This Row],[FW]]/rawdata[[#This Row],[FWmax 2]]))/2,\"\")","v":""}]
[null,"Touch opening",110,600,191,"D",{"$f":"IF(rawdata[[#This Row],[Opening type]]=\"Standard\",$C$10,$C$9)","v":{"v":4.388999999999999,"d":"4.39"}},2.2,3.4,{"v":0.8333333333333334,"d":"0.83"},{"$f":"IF(AND($C$4>=rawdata[[#This Row],[KDmin]],$J$11=rawdata[[#This Row],[FHq]],rawdata[[#This Row],[FW]]>=rawdata[[#This Row],[FWmin]],rawdata[[#This Row],[FW]]<=rawdata[[#This Row],[FWmax]]),\"YES\",\" - \")","v":" - "},{"$f":"IF(rawdata[[#This Row],[Fhmatch 1]]=\"YES\",((1-rawdata[[#This Row],[FWmin]]/rawdata[[#This Row],[FW]])+(1-rawdata[[#This Row],[FW]]/rawdata[[#This Row],[FWmax]]))/2,\"\")","v":""},{"$f":"IF(AND($C$4>=rawdata[[#This Row],[KDmin]],$J$11=rawdata[[#This Row],[FHq]],rawdata[[#This Row],[FW]]/2>=rawdata[[#This Row],[FWmin]],rawdata[[#This Row],[FW]]/2<=rawdata[[#This Row],[FWmax]]),\"YES\",\" - \")","v":" - "},{"$f":"IFERROR(rawdata[[#This Row],[FWmin]]*2,\" - \")","v":4.4},{"$f":"IFERROR(rawdata[[#This Row],[FWmax]]*2,\" - \")","v":6.8},{"$f":"IF(rawdata[[#This Row],[Fhmatch 2]]=\"YES\",((1-rawdata[[#This Row],[Fwmin 2]]/rawdata[[#This Row],[FW]])+(1-rawdata[[#This Row],[FW]]/rawdata[[#This Row],[FWmax 2]]))/2,\"\")","v":""}]
[null,"Push-to-open",75,350,189,"B",{"$f":"IF(rawdata[[#This Row],[Opening type]]=\"Standard\",$C$10,$C$9)","v":{"v":4.388999999999999,"d":"4.39"}},2.6,3.6,{"v":1.4285714285714286,"d":"1.43"},{"$f":"IF(AND($C$4>=rawdata[[#This Row],[KDmin]],$J$11=rawdata[[#This Row],[FHq]],rawdata[[#This Row],[FW]]>=rawdata[[#This Row],[FWmin]],rawdata[[#This Row],[FW]]<=rawdata[[#This Row],[FWmax]]),\"YES\",\" - \")","v":" - "},{"$f":"IF(rawdata[[#This Row],[Fhmatch 1]]=\"YES\",((1-rawdata[[#This Row],[FWmin]]/rawdata[[#This Row],[FW]])+(1-rawdata[[#This Row],[FW]]/rawdata[[#This Row],[FWmax]]))/2,\"\")","v":""},{"$f":"IF(AND($C$4>=rawdata[[#This Row],[KDmin]],$J$11=rawdata[[#This Row],[FHq]],rawdata[[#This Row],[FW]]/2>=rawdata[[#This Row],[FWmin]],rawdata[[#This Row],[FW]]/2<=rawdata[[#This Row],[FWmax]]),\"YES\",\" - \")","v":" - "},{"$f":"IFERROR(rawdata[[#This Row],[FWmin]]*2,\" - \")","v":5.2},{"$f":"IFERROR(rawdata[[#This Row],[FWmax]]*2,\" - \")","v":7.2},{"$f":"IF(rawdata[[#This Row],[Fhmatch 2]]=\"YES\",((1-rawdata[[#This Row],[Fwmin 2]]/rawdata[[#This Row],[FW]])+(1-rawdata[[#This Row],[FW]]/rawdata[[#This Row],[FWmax 2]]))/2,\"\")","v":""}]
[null,"Push-to-open",75,350,189,"C*",{"$f":"IF(rawdata[[#This Row],[Opening type]]=\"Standard\",$C$10,$C$9)","v":{"v":4.388999999999999,"d":"4.39"}},3.1,5.3,{"v":1.4285714285714286,"d":"1.43"},{"$f":"IF(AND($C$4>=rawdata[[#This Row],[KDmin]],$J$11=rawdata[[#This Row],[FHq]],rawdata[[#This Row],[FW]]>=rawdata[[#This Row],[FWmin]],rawdata[[#This Row],[FW]]<=rawdata[[#This Row],[FWmax]]),\"YES\",\" - \")","v":" - "},{"$f":"IF(rawdata[[#This Row],[Fhmatch 1]]=\"YES\",((1-rawdata[[#This Row],[FWmin]]/rawdata[[#This Row],[FW]])+(1-rawdata[[#This Row],[FW]]/rawdata[[#This Row],[FWmax]]))/2,\"\")","v":""},{"$f":"IF(AND($C$4>=rawdata[[#This Row],[KDmin]],$J$11=rawdata[[#This Row],[FHq]],rawdata[[#This Row],[FW]]/2>=rawdata[[#This Row],[FWmin]],rawdata[[#This Row],[FW]]/2<=rawdata[[#This Row],[FWmax]]),\"YES\",\" - \")","v":" - "},{"$f":"IFERROR(rawdata[[#This Row],[FWmin]]*2,\" - \")","v":6.2},{"$f":"IFERROR(rawdata[[#This Row],[FWmax]]*2,\" - \")","v":10.6},{"$f":"IF(rawdata[[#This Row],[Fhmatch 2]]=\"YES\",((1-rawdata[[#This Row],[Fwmin 2]]/rawdata[[#This Row],[FW]])+(1-rawdata[[#This Row],[FW]]/rawdata[[#This Row],[FWmax 2]]))/2,\"\")","v":""}]
[null,"Push-to-open",75,350,189,"D*",{"$f":"IF(rawdata[[#This Row],[Opening type]]=\"Standard\",$C$10,$C$9)","v":{"v":4.388999999999999,"d":"4.39"}},4.7,6.6,{"v":1.4285714285714286,"d":"1.43"},{"$f":"IF(AND($C$4>=rawdata[[#This Row],[KDmin]],$J$11=rawdata[[#This Row],[FHq]],rawdata[[#This Row],[FW]]>=rawdata[[#This Row],[FWmin]],rawdata[[#This Row],[FW]]<=rawdata[[#This Row],[FWmax]]),\"YES\",\" - \")","v":" - "},{"$f":"IF(rawdata[[#This Row],[Fhmatch 1]]=\"YES\",((1-rawdata[[#This Row],[FWmin]]/rawdata[[#This Row],[FW]])+(1-rawdata[[#This Row],[FW]]/rawdata[[#This Row],[FWmax]]))/2,\"\")","v":""},{"$f":"IF(AND($C$4>=rawdata[[#This Row],[KDmin]],$J$11=rawdata[[#This Row],[FHq]],rawdata[[#This Row],[FW]]/2>=rawdata[[#This Row],[FWmin]],rawdata[[#This Row],[FW]]/2<=rawdata[[#This Row],[FWmax]]),\"YES\",\" - \")","v":" - "},{"$f":"IFERROR(rawdata[[#This Row],[FWmin]]*2,\" - \")","v":9.4},{"$f":"IFERROR(rawdata[[#This Row],[FWmax]]*2,\" - \")","v":13.2},{"$f":"IF(rawdata[[#This Row],[Fhmatch 2]]=\"YES\",((1-rawdata[[#This Row],[Fwmin 2]]/rawdata[[#This Row],[FW]])+(1-rawdata[[#This Row],[FW]]/rawdata[[#This Row],[FWmax 2]]))/2,\"\")","v":""}]
[null,"Push-to-open",75,400,189,"B",{"$f":"IF(rawdata[[#This Row],[Opening type]]=\"Standard\",$C$10,$C$9)","v":{"v":4.388999999999999,"d":"4.39"}},2.3,3.1,1.25,{"$f":"IF(AND($C$4>=rawdata[[#This Row],[KDmin]],$J$11=rawdata[[#This Row],[FHq]],rawdata[[#This Row],[FW]]>=rawdata[[#This Row],[FWmin]],rawdata[[#This Row],[FW]]<=rawdata[[#This Row],[FWmax]]),\"YES\",\" - \")","v":" - "},{"$f":"IF(rawdata[[#This Row],[Fhmatch 1]]=\"YES\",((1-rawdata[[#This Row],[FWmin]]/rawdata[[#This Row],[FW]])+(1-rawdata[[#This Row],[FW]]/rawdata[[#This Row],[FWmax]]))/2,\"\")","v":""},{"$f":"IF(AND($C$4>=rawdata[[#This Row],[KDmin]],$J$11=rawdata[[#This Row],[FHq]],rawdata[[#This Row],[FW]]/2>=rawdata[[#This Row],[FWmin]],rawdata[[#This Row],[FW]]/2<=rawdata[[#This Row],[FWmax]]),\"YES\",\" - \")","v":" - "},{"$f":"IFERROR(rawdata[[#This Row],[FWmin]]*2,\" - \")","v":4.6},{"$f":"IFERROR(rawdata[[#This Row],[FWmax]]*2,\" - \")","v":6.2},{"$f":"IF(rawdata[[#This Row],[Fhmatch 2]]=\"YES\",((1-rawdata[[#This Row],[Fwmin 2]]/rawdata[[#This Row],[FW]])+(1-rawdata[[#This Row],[FW]]/rawdata[[#This Row],[FWmax 2]]))/2,\"\")","v":""}]
[null,"Push-to-open",75,400,189,"C*",{"$f":"IF(rawdata[[#This Row],[Opening type]]=\"Standard\",$C$10,$C$9)","v":{"v":4.388999999999999,"d":"4.39"}},3.1,5.1,1.25,{"$f":"IF(AND($C$4>=rawdata[[#This Row],[KDmin]],$J$11=rawdata[[#This Row],[FHq]],rawdata[[#This Row],[FW]]>=rawdata[[#This Row],[FWmin]],rawdata[[#This Row],[FW]]<=rawdata[[#This Row],[FWmax]]),\"YES\",\" - \")","v":" - "},{"$f":"IF(rawdata[[#This Row],[Fhmatch 1]]=\"YES\",((1-rawdata[[#This Row],[FWmin]]/rawdata[[#This Row],[FW]])+(1-rawdata[[#This Row],[FW]]/rawdata[[#This Row],[FWmax]]))/2,\"\")","v":""},{"$f":"IF(AND($C$4>=rawdata[[#This Row],[KDmin]],$J$11=rawdata[[#This Row],[FHq]],rawdata[[#This Row],[FW]]/2>=rawdata[[#This Row],[FWmin]],rawdata[[#This Row],[FW]]/2<=rawdata[[#This Row],[FWmax]]),\"YES\",\" - \")","v":" - "},{"$f":"IFERROR(rawdata[[#This Row],[FWmin]]*2,\" - \")","v":6.2},{"$f":"IFERROR(rawdata[[#This Row],[FWmax]]*2,\" - \")","v":10.2},{"$f":"IF(rawdata[[#This Row],[Fhmatch 2]]=\"YES\",((1-rawdata[[#This Row],[Fwmin 2]]/rawdata[[#This Row],[FW]])+(1-rawdata[[#This Row],[FW]]/rawdata[[#This Row],[FWmax 2]]))/2,\"\")","v":""}]
[null,"Push-to-open",75,400,189,"D*",{"$f":"IF(rawdata[[#This Row],[Opening type]]=\"Standard\",$C$10,$C$9)","v":{"v":4.388999999999999,"d":"4.39"}},4.3,6.6,{"$f":"$C$2/D141","v":1.25},{"$f":"IF(AND($C$4>=rawdata[[#This Row],[KDmin]],$J$11=rawdata[[#This Row],[FHq]],rawdata[[#This Row],[FW]]>=rawdata[[#This Row],[FWmin]],rawdata[[#This Row],[FW]]<=rawdata[[#This Row],[FWmax]]),\"YES\",\" - \")","v":" - "},{"$f":"IF(rawdata[[#This Row],[Fhmatch 1]]=\"YES\",((1-rawdata[[#This Row],[FWmin]]/rawdata[[#This Row],[FW]])+(1-rawdata[[#This Row],[FW]]/rawdata[[#This Row],[FWmax]]))/2,\"\")","v":""},{"$f":"IF(AND($C$4>=rawdata[[#This Row],[KDmin]],$J$11=rawdata[[#This Row],[FHq]],rawdata[[#This Row],[FW]]/2>=rawdata[[#This Row],[FWmin]],rawdata[[#This Row],[FW]]/2<=rawdata[[#This Row],[FWmax]]),\"YES\",\" - \")","v":" - "},{"$f":"IFERROR(rawdata[[#This Row],[FWmin]]*2,\" - \")","v":8.6},{"$f":"IFERROR(rawdata[[#This Row],[FWmax]]*2,\" - \")","v":13.2},{"$f":"IF(rawdata[[#This Row],[Fhmatch 2]]=\"YES\",((1-rawdata[[#This Row],[Fwmin 2]]/rawdata[[#This Row],[FW]])+(1-rawdata[[#This Row],[FW]]/rawdata[[#This Row],[FWmax 2]]))/2,\"\")","v":""}]
[null,"Push-to-open",75,450,189,"B",{"$f":"IF(rawdata[[#This Row],[Opening type]]=\"Standard\",$C$10,$C$9)","v":{"v":4.388999999999999,"d":"4.39"}},1.8,2.6,{"v":1.1111111111111112,"d":"1.11"},{"$f":"IF(AND($C$4>=rawdata[[#This Row],[KDmin]],$J$11=rawdata[[#This Row],[FHq]],rawdata[[#This Row],[FW]]>=rawdata[[#This Row],[FWmin]],rawdata[[#This Row],[FW]]<=rawdata[[#This Row],[FWmax]]),\"YES\",\" - \")","v":" - "},{"$f":"IF(rawdata[[#This Row],[Fhmatch 1]]=\"YES\",((1-rawdata[[#This Row],[FWmin]]/rawdata[[#This Row],[FW]])+(1-rawdata[[#This Row],[FW]]/rawdata[[#This Row],[FWmax]]))/2,\"\")","v":""},{"$f":"IF(AND($C$4>=rawdata[[#This Row],[KDmin]],$J$11=rawdata[[#This Row],[FHq]],rawdata[[#This Row],[FW]]/2>=rawdata[[#This Row],[FWmin]],rawdata[[#This Row],[FW]]/2<=rawdata[[#This Row],[FWmax]]),\"YES\",\" - \")","v":" - "},{"$f":"IFERROR(rawdata[[#This Row],[FWmin]]*2,\" - \")","v":3.6},{"$f":"IFERROR(rawdata[[#This Row],[FWmax]]*2,\" - \")","v":5.2},{"$f":"IF(rawdata[[#This Row],[Fhmatch 2]]=\"YES\",((1-rawdata[[#This Row],[Fwmin 2]]/rawdata[[#This Row],[FW]])+(1-rawdata[[#This Row],[FW]]/rawdata[[#This Row],[FWmax 2]]))/2,\"\")","v":""}]
[null,"Push-to-open",75,450,189,"C*",{"$f":"IF(rawdata[[#This Row],[Opening type]]=\"Standard\",$C$10,$C$9)","v":{"v":4.388999999999999,"d":"4.39"}},2.6,{"v":4,"d":"4.0"},{"v":1.1111111111111112,"d":"1.11"},{"$f":"IF(AND($C$4>=rawdata[[#This Row],[KDmin]],$J$11=rawdata[[#This Row],[FHq]],rawdata[[#This Row],[FW]]>=rawdata[[#This Row],[FWmin]],rawdata[[#This Row],[FW]]<=rawdata[[#This Row],[FWmax]]),\"YES\",\" - \")","v":" - "},{"$f":"IF(rawdata[[#This Row],[Fhmatch 1]]=\"YES\",((1-rawdata[[#This Row],[FWmin]]/rawdata[[#This Row],[FW]])+(1-rawdata[[#This Row],[FW]]/rawdata[[#This Row],[FWmax]]))/2,\"\")","v":""},{"$f":"IF(AND($C$4>=rawdata[[#This Row],[KDmin]],$J$11=rawdata[[#This Row],[FHq]],rawdata[[#This Row],[FW]]/2>=rawdata[[#This Row],[FWmin]],rawdata[[#This Row],[FW]]/2<=rawdata[[#This Row],[FWmax]]),\"YES\",\" - \")","v":" - "},{"$f":"IFERROR(rawdata[[#This Row],[FWmin]]*2,\" - \")","v":5.2},{"$f":"IFERROR(rawdata[[#This Row],[FWmax]]*2,\" - \")","v":{"v":8,"d":"8.0"}},{"$f":"IF(rawdata[[#This Row],[Fhmatch 2]]=\"YES\",((1-rawdata[[#This Row],[Fwmin 2]]/rawdata[[#This Row],[FW]])+(1-rawdata[[#This Row],[FW]]/rawdata[[#This Row],[FWmax 2]]))/2,\"\")","v":""}]
[null,"Push-to-open",75,450,189,"D*",{"$f":"IF(rawdata[[#This Row],[Opening type]]=\"Standard\",$C$10,$C$9)","v":{"v":4.388999999999999,"d":"4.39"}},3.6,5.6,{"v":1.1111111111111112,"d":"1.11"},{"$f":"IF(AND($C$4>=rawdata[[#This Row],[KDmin]],$J$11=rawdata[[#This Row],[FHq]],rawdata[[#This Row],[FW]]>=rawdata[[#This Row],[FWmin]],rawdata[[#This Row],[FW]]<=rawdata[[#This Row],[FWmax]]),\"YES\",\" - \")","v":" - "},{"$f":"IF(rawdata[[#This Row],[Fhmatch 1]]=\"YES\",((1-rawdata[[#This Row],[FWmin]]/rawdata[[#This Row],[FW]])+(1-rawdata[[#This Row],[FW]]/rawdata[[#This Row],[FWmax]]))/2,\"\")","v":""},{"$f":"IF(AND($C$4>=rawdata[[#This Row],[KDmin]],$J$11=rawdata[[#This Row],[FHq]],rawdata[[#This Row],[FW]]/2>=rawdata[[#This Row],[FWmin]],rawdata[[#This Row],[FW]]/2<=rawdata[[#This Row],[FWmax]]),\"YES\",\" - \")","v":" - "},{"$f":"IFERROR(rawdata[[#This Row],[FWmin]]*2,\" - \")","v":7.2},{"$f":"IFERROR(rawdata[[#This Row],[FWmax]]*2,\" - \")","v":11.2},{"$f":"IF(rawdata[[#This Row],[Fhmatch 2]]=\"YES\",((1-rawdata[[#This Row],[Fwmin 2]]/rawdata[[#This Row],[FW]])+(1-rawdata[[#This Row],[FW]]/rawdata[[#This Row],[FWmax 2]]))/2,\"\")","v":""}]
[null,"Push-to-open",75,500,189,"B",{"$f":"IF(rawdata[[#This Row],[Opening type]]=\"Standard\",$C$10,$C$9)","v":{"v":4.388999999999999,"d":"4.39"}},1.6,2.3,{"v":1,"d":"1.00"},{"$f":"IF(AND($C$4>=rawdata[[#This Row],[KDmin]],$J$11=rawdata[[#This Row],[FHq]],rawdata[[#This Row],[FW]]>=rawdata[[#This Row],[FWmin]],rawdata[[#This Row],[FW]]<=rawdata[[#This Row],[FWmax]]),\"YES\",\" - \")","v":" - "},{"$f":"IF(rawdata[[#This Row],[Fhmatch 1]]=\"YES\",((1-rawdata[[#This Row],[FWmin]]/rawdata[[#This Row],[FW]])+(1-rawdata[[#This Row],[FW]]/rawdata[[#This Row],[FWmax]]))/2,\"\")","v":""},{"$f":"IF(AND($C$4>=rawdata[[#This Row],[KDmin]],$J$11=rawdata[[#This Row],[FHq]],rawdata[[#This Row],[FW]]/2>=rawdata[[#This Row],[FWmin]],rawdata[[#This Row],[FW]]/2<=rawdata[[#This Row],[FWmax]]),\"YES\",\" - \")","v":"YES"},{"$f":"IFERROR(rawdata[[#This Row],[FWmin]]*2,\" - \")","v":3.2},{"$f":"IFERROR(rawdata[[#This Row],[FWmax]]*2,\" - \")","v":4.6},{"$f":"IF(rawdata[[#This Row],[Fhmatch 2]]=\"YES\",((1-rawdata[[#This Row],[Fwmin 2]]/rawdata[[#This Row],[FW]])+(1-rawdata[[#This Row],[FW]]/rawdata[[#This Row],[FWmax 2]]))/2,\"\")","v":{"v":0.15838704963991002,"d":"15.84%"}}]
[null,"Push-to-open",75,500,189,"C",{"$f":"IF(rawdata[[#This Row],[Opening type]]=\"Standard\",$C$10,$C$9)","v":{"v":4.388999999999999,"d":"4.39"}},2.3,3.6,{"v":1,"d":"1.00"},{"$f":"IF(AND($C$4>=rawdata[[#This Row],[KDmin]],$J$11=rawdata[[#This Row],[FHq]],rawdata[[#This Row],[FW]]>=rawdata[[#This Row],[FWmin]],rawdata[[#This Row],[FW]]<=rawdata[[#This Row],[FWmax]]),\"YES\",\" - \")","v":" - "},{"$f":"IF(rawdata[[#This Row],[Fhmatch 1]]=\"YES\",((1-rawdata[[#This Row],[FWmin]]/rawdata[[#This Row],[FW]])+(1-rawdata[[#This Row],[FW]]/rawdata[[#This Row],[FWmax]]))/2,\"\")","v":""},{"$f":"IF(AND($C$4>=rawdata[[#This Row],[KDmin]],$J$11=rawdata[[#This Row],[FHq]],rawdata[[#This Row],[FW]]/2>=rawdata[[#This Row],[FWmin]],rawdata[[#This Row],[FW]]/2<=rawdata[[#This Row],[FWmax]]),\"YES\",\" - \")","v":" - "},{"$f":"IFERROR(rawdata[[#This Row],[FWmin]]*2,\" - \")","v":4.6},{"$f":"IFERROR(rawdata[[#This Row],[FWmax]]*2,\" - \")","v":7.2},{"$f":"IF(rawdata[[#This Row],[Fhmatch 2]]=\"YES\",((1-rawdata[[#This Row],[Fwmin 2]]/rawdata[[#This Row],[FW]])+(1-rawdata[[#This Row],[FW]]/rawdata[[#This Row],[FWmax 2]]))/2,\"\")","v":""}]
[null,"Push-to-open",75,500,189,"D",{"$f":"IF(rawdata[[#This Row],[Opening type]]=\"Standard\",$C$10,$C$9)","v":{"v":4.388999999999999,"d":"4.39"}},3.6,4.9,{"v":1,"d":"1.00"},{"$f":"IF(AND($C$4>=rawdata[[#This Row],[KDmin]],$J$11=rawdata[[#This Row],[FHq]],rawdata[[#This Row],[FW]]>=rawdata[[#This Row],[FWmin]],rawdata[[#This Row],[FW]]<=rawdata[[#This Row],[FWmax]]),\"YES\",\" - \")","v":"YES"},{"$f":"IF(rawdata[[#This Row],[Fhmatch 1]]=\"YES\",((1-rawdata[[#This Row],[FWmin]]/rawdata[[#This Row],[FW]])+(1-rawdata[[#This Row],[FW]]/rawdata[[#This Row],[FWmax]]))/2,\"\")","v":{"v":0.1420266575529734,"d":"14.20%"}},{"$f":"IF(AND($C$4>=rawdata[[#This Row],[KDmin]],$J$11=rawdata[[#This Row],[FHq]],rawdata[[#This Row],[FW]]/2>=rawdata[[#This Row],[FWmin]],rawdata[[#This Row],[FW]]/2<=rawdata[[#This Row],[FWmax]]),\"YES\",\" - \")","v":" - "},{"$f":"IFERROR(rawdata[[#This Row],[FWmin]]*2,\" - \")","v":7.2},{"$f":"IFERROR(rawdata[[#This Row],[FWmax]]*2,\" - \")","v":9.8},{"$f":"IF(rawdata[[#This Row],[Fhmatch 2]]=\"YES\",((1-rawdata[[#This Row],[Fwmin 2]]/rawdata[[#This Row],[FW]])+(1-rawdata[[#This Row],[FW]]/rawdata[[#This Row],[FWmax 2]]))/2,\"\")","v":""}]
[null,"Push-to-open",75,550,189,"B",{"$f":"IF(rawdata[[#This Row],[Opening type]]=\"Standard\",$C$10,$C$9)","v":{"v":4.388999999999999,"d":"4.39"}},1.5,2.1,{"v":0.9090909090909091,"d":"0.91"},{"$f":"IF(AND($C$4>=rawdata[[#This Row],[KDmin]],$J$11=rawdata[[#This Row],[FHq]],rawdata[[#This Row],[FW]]>=rawdata[[#This Row],[FWmin]],rawdata[[#This Row],[FW]]<=rawdata[[#This Row],[FWmax]]),\"YES\",\" - \")","v":" - "},{"$f":"IF(rawdata[[#This Row],[Fhmatch 1]]=\"YES\",((1-rawdata[[#This Row],[FWmin]]/rawdata[[#This Row],[FW]])+(1-rawdata[[#This Row],[FW]]/rawdata[[#This Row],[FWmax]]))/2,\"\")","v":""},{"$f":"IF(AND($C$4>=rawdata[[#This Row],[KDmin]],$J$11=rawdata[[#This Row],[FHq]],rawdata[[#This Row],[FW]]/2>=rawdata[[#This Row],[FWmin]],rawdata[[#This Row],[FW]]/2<=rawdata[[#This Row],[FWmax]]),\"YES\",\" - \")","v":" - "},{"$f":"IFERROR(rawdata[[#This Row],[FWmin]]*2,\" - \")","v":{"v":3,"d":"3.0"}},{"$f":"IFERROR(rawdata[[#This Row],[FWmax]]*2,\" - \")","v":4.2},{"$f":"IF(rawdata[[#This Row],[Fhmatch 2]]=\"YES\",((1-rawdata[[#This Row],[Fwmin 2]]/rawdata[[#This Row],[FW]])+(1-rawdata[[#This Row],[FW]]/rawdata[[#This Row],[FWmax 2]]))/2,\"\")","v":""}]
[null,"Push-to-open",75,550,189,"C",{"$f":"IF(rawdata[[#This Row],[Opening type]]=\"Standard\",$C$10,$C$9)","v":{"v":4.388999999999999,"d":"4.39"}},2.1,3.6,{"v":0.9090909090909091,"d":"0.91"},{"$f":"IF(AND($C$4>=rawdata[[#This Row],[KDmin]],$J$11=rawdata[[#This Row],[FHq]],rawdata[[#This Row],[FW]]>=rawdata[[#This Row],[FWmin]],rawdata[[#This Row],[FW]]<=rawdata[[#This Row],[FWmax]]),\"YES\",\" - \")","v":" - "},{"$f":"IF(rawdata[[#This Row],[Fhmatch 1]]=\"YES\",((1-rawdata[[#This Row],[FWmin]]/rawdata[[#This Row],[FW]])+(1-rawdata[[#This Row],[FW]]/rawdata[[#This Row],[FWmax]]))/2,\"\")","v":""},{"$f":"IF(AND($C$4>=rawdata[[#This Row],[KDmin]],$J$11=rawdata[[#This Row],[FHq]],rawdata[[#This Row],[FW]]/2>=rawdata[[#This Row],[FWmin]],rawdata[[#This Row],[FW]]/2<=rawdata[[#This Row],[FWmax]]),\"YES\",\" - \")","v":" - "},{"$f":"IFERROR(rawdata[[#This Row],[FWmin]]*2,\" - \")","v":4.2},{"$f":"IFERROR(rawdata[[#This Row],[FWmax]]*2,\" - \")","v":7.2},{"$f":"IF(rawdata[[#This Row],[Fhmatch 2]]=\"YES\",((1-rawdata[[#This Row],[Fwmin 2]]/rawdata[[#This Row],[FW]])+(1-rawdata[[#This Row],[FW]]/rawdata[[#This Row],[FWmax 2]]))/2,\"\")","v":""}]
[null,"Push-to-open",75,550,189,"D",{"$f":"IF(rawdata[[#This Row],[Opening type]]=\"Standard\",$C$10,$C$9)","v":{"v":4.388999999999999,"d":"4.39"}},3.1,4.6,{"v":0.9090909090909091,"d":"0.91"},{"$f":"IF(AND($C$4>=rawdata[[#This Row],[KDmin]],$J$11=rawdata[[#This Row],[FHq]],rawdata[[#This Row],[FW]]>=rawdata[[#This Row],[FWmin]],rawdata[[#This Row],[FW]]<=rawdata[[#This Row],[FWmax]]),\"YES\",\" - \")","v":" - "},{"$f":"IF(rawdata[[#This Row],[Fhmatch 1]]=\"YES\",((1-rawdata[[#This Row],[FWmin]]/rawdata[[#This Row],[FW]])+(1-rawdata[[#This Row],[FW]]/rawdata[[#This Row],[FWmax]]))/2,\"\")","v":""},{"$f":"IF(AND($C$4>=rawdata[[#This Row],[KDmin]],$J$11=rawdata[[#This Row],[FHq]],rawdata[[#This Row],[FW]]/2>=rawdata[[#This Row],[FWmin]],rawdata[[#This Row],[FW]]/2<=rawdata[[#This Row],[FWmax]]),\"YES\",\" - \")","v":" - "},{"$f":"IFERROR(rawdata[[#This Row],[FWmin]]*2,\" - \")","v":6.2},{"$f":"IFERROR(rawdata[[#This Row],[FWmax]]*2,\" - \")","v":9.2},{"$f":"IF(rawdata[[#This Row],[Fhmatch 2]]=\"YES\",((1-rawdata[[#This Row],[Fwmin 2]]/rawdata[[#This Row],[FW]])+(1-rawdata[[#This Row],[FW]]/rawdata[[#This Row],[FWmax 2]]))/2,\"\")","v":""}]
[null,"Push-to-open",75,600,189,"B",{"$f":"IF(rawdata[[#This Row],[Opening type]]=\"Standard\",$C$10,$C$9)","v":{"v":4.388999999999999,"d":"4.39"}},1.4,{"v":2,"d":"2.0"},{"v":0.8333333333333334,"d":"0.83"},{"$f":"IF(AND($C$4>=rawdata[[#This Row],[KDmin]],$J$11=rawdata[[#This Row],[FHq]],rawdata[[#This Row],[FW]]>=rawdata[[#This Row],[FWmin]],rawdata[[#This Row],[FW]]<=rawdata[[#This Row],[FWmax]]),\"YES\",\" - \")","v":" - "},{"$f":"IF(rawdata[[#This Row],[Fhmatch 1]]=\"YES\",((1-rawdata[[#This Row],[FWmin]]/rawdata[[#This Row],[FW]])+(1-rawdata[[#This Row],[FW]]/rawdata[[#This Row],[FWmax]]))/2,\"\")","v":""},{"$f":"IF(AND($C$4>=rawdata[[#This Row],[KDmin]],$J$11=rawdata[[#This Row],[FHq]],rawdata[[#This Row],[FW]]/2>=rawdata[[#This Row],[FWmin]],rawdata[[#This Row],[FW]]/2<=rawdata[[#This Row],[FWmax]]),\"YES\",\" - \")","v":" - "},{"$f":"IFERROR(rawdata[[#This Row],[FWmin]]*2,\" - \")","v":2.8},{"$f":"IFERROR(rawdata[[#This Row],[FWmax]]*2,\" - \")","v":{"v":4,"d":"4.0"}},{"$f":"IF(rawdata[[#This Row],[Fhmatch 2]]=\"YES\",((1-rawdata[[#This Row],[Fwmin 2]]/rawdata[[#This Row],[FW]])+(1-rawdata[[#This Row],[FW]]/rawdata[[#This Row],[FWmax 2]]))/2,\"\")","v":""}]
[null,"Push-to-open",75,600,189,"C",{"$f":"IF(rawdata[[#This Row],[Opening type]]=\"Standard\",$C$10,$C$9)","v":{"v":4.388999999999999,"d":"4.39"}},{"v":2,"d":"2.0"},3.2,{"v":0.8333333333333334,"d":"0.83"},{"$f":"IF(AND($C$4>=rawdata[[#This Row],[KDmin]],$J$11=rawdata[[#This Row],[FHq]],rawdata[[#This Row],[FW]]>=rawdata[[#This Row],[FWmin]],rawdata[[#This Row],[FW]]<=rawdata[[#This Row],[FWmax]]),\"YES\",\" - \")","v":" - "},{"$f":"IF(rawdata[[#This Row],[Fhmatch 1]]=\"YES\",((1-rawdata[[#This Row],[FWmin]]/rawdata[[#This Row],[FW]])+(1-rawdata[[#This Row],[FW]]/rawdata[[#This Row],[FWmax]]))/2,\"\")","v":""},{"$f":"IF(AND($C$4>=rawdata[[#This Row],[KDmin]],$J$11=rawdata[[#This Row],[FHq]],rawdata[[#This Row],[FW]]/2>=rawdata[[#This Row],[FWmin]],rawdata[[#This Row],[FW]]/2<=rawdata[[#This Row],[FWmax]]),\"YES\",\" - \")","v":" - "},{"$f":"IFERROR(rawdata[[#This Row],[FWmin]]*2,\" - \")","v":{"v":4,"d":"4.0"}},{"$f":"IFERROR(rawdata[[#This Row],[FWmax]]*2,\" - \")","v":6.4},{"$f":"IF(rawdata[[#This Row],[Fhmatch 2]]=\"YES\",((1-rawdata[[#This Row],[Fwmin 2]]/rawdata[[#This Row],[FW]])+(1-rawdata[[#This Row],[FW]]/rawdata[[#This Row],[FWmax 2]]))/2,\"\")","v":""}]
[null,"Push-to-open",75,600,189,"D",{"$f":"IF(rawdata[[#This Row],[Opening type]]=\"Standard\",$C$10,$C$9)","v":{"v":4.388999999999999,"d":"4.39"}},2.7,4.2,{"v":0.8333333333333334,"d":"0.83"},{"$f":"IF(AND($C$4>=rawdata[[#This Row],[KDmin]],$J$11=rawdata[[#This Row],[FHq]],rawdata[[#This Row],[FW]]>=rawdata[[#This Row],[FWmin]],rawdata[[#This Row],[FW]]<=rawdata[[#This Row],[FWmax]]),\"YES\",\" - \")","v":" - "},{"$f":"IF(rawdata[[#This Row],[Fhmatch 1]]=\"YES\",((1-rawdata[[#This Row],[FWmin]]/rawdata[[#This Row],[FW]])+(1-rawdata[[#This Row],[FW]]/rawdata[[#This Row],[FWmax]]))/2,\"\")","v":""},{"$f":"IF(AND($C$4>=rawdata[[#This Row],[KDmin]],$J$11=rawdata[[#This Row],[FHq]],rawdata[[#This Row],[FW]]/2>=rawdata[[#This Row],[FWmin]],rawdata[[#This Row],[FW]]/2<=rawdata[[#This Row],[FWmax]]),\"YES\",\" - \")","v":" - "},{"$f":"IFERROR(rawdata[[#This Row],[FWmin]]*2,\" - \")","v":5.4},{"$f":"IFERROR(rawdata[[#This Row],[FWmax]]*2,\" - \")","v":8.4},{"$f":"IF(rawdata[[#This Row],[Fhmatch 2]]=\"YES\",((1-rawdata[[#This Row],[Fwmin 2]]/rawdata[[#This Row],[FW]])+(1-rawdata[[#This Row],[FW]]/rawdata[[#This Row],[FWmax 2]]))/2,\"\")","v":""}]
[null,"Push-to-open",90,350,185,"B",{"$f":"IF(rawdata[[#This Row],[Opening type]]=\"Standard\",$C$10,$C$9)","v":{"v":4.388999999999999,"d":"4.39"}},1.7,2.5,{"v":1.4285714285714286,"d":"1.43"},{"$f":"IF(AND($C$4>=rawdata[[#This Row],[KDmin]],$J$11=rawdata[[#This Row],[FHq]],rawdata[[#This Row],[FW]]>=rawdata[[#This Row],[FWmin]],rawdata[[#This Row],[FW]]<=rawdata[[#This Row],[FWmax]]),\"YES\",\" - \")","v":" - "},{"$f":"IF(rawdata[[#This Row],[Fhmatch 1]]=\"YES\",((1-rawdata[[#This Row],[FWmin]]/rawdata[[#This Row],[FW]])+(1-rawdata[[#This Row],[FW]]/rawdata[[#This Row],[FWmax]]))/2,\"\")","v":""},{"$f":"IF(AND($C$4>=rawdata[[#This Row],[KDmin]],$J$11=rawdata[[#This Row],[FHq]],rawdata[[#This Row],[FW]]/2>=rawdata[[#This Row],[FWmin]],rawdata[[#This Row],[FW]]/2<=rawdata[[#This Row],[FWmax]]),\"YES\",\" - \")","v":" - "},{"$f":"IFERROR(rawdata[[#This Row],[FWmin]]*2,\" - \")","v":3.4},{"$f":"IFERROR(rawdata[[#This Row],[FWmax]]*2,\" - \")","v":{"v":5,"d":"5.0"}},{"$f":"IF(rawdata[[#This Row],[Fhmatch 2]]=\"YES\",((1-rawdata[[#This Row],[Fwmin 2]]/rawdata[[#This Row],[FW]])+(1-rawdata[[#This Row],[FW]]/rawdata[[#This Row],[FWmax 2]]))/2,\"\")","v":""}]
[null,"Push-to-open",90,350,185,"C",{"$f":"IF(rawdata[[#This Row],[Opening type]]=\"Standard\",$C$10,$C$9)","v":{"v":4.388999999999999,"d":"4.39"}},2.1,3.2,{"v":1.4285714285714286,"d":"1.43"},{"$f":"IF(AND($C$4>=rawdata[[#This Row],[KDmin]],$J$11=rawdata[[#This Row],[FHq]],rawdata[[#This Row],[FW]]>=rawdata[[#This Row],[FWmin]],rawdata[[#This Row],[FW]]<=rawdata[[#This Row],[FWmax]]),\"YES\",\" - \")","v":" - "},{"$f":"IF(rawdata[[#This Row],[Fhmatch 1]]=\"YES\",((1-rawdata[[#This Row],[FWmin]]/rawdata[[#This Row],[FW]])+(1-rawdata[[#This Row],[FW]]/rawdata[[#This Row],[FWmax]]))/2,\"\")","v":""},{"$f":"IF(AND($C$4>=rawdata[[#This Row],[KDmin]],$J$11=rawdata[[#This Row],[FHq]],rawdata[[#This Row],[FW]]/2>=rawdata[[#This Row],[FWmin]],rawdata[[#This Row],[FW]]/2<=rawdata[[#This Row],[FWmax]]),\"YES\",\" - \")","v":" - "},{"$f":"IFERROR(rawdata[[#This Row],[FWmin]]*2,\" - \")","v":4.2},{"$f":"IFERROR(rawdata[[#This Row],[FWmax]]*2,\" - \")","v":6.4},{"$f":"IF(rawdata[[#This Row],[Fhmatch 2]]=\"YES\",((1-rawdata[[#This Row],[Fwmin 2]]/rawdata[[#This Row],[FW]])+(1-rawdata[[#This Row],[FW]]/rawdata[[#This Row],[FWmax 2]]))/2,\"\")","v":""}]
[null,"Push-to-open",90,350,185,"D",{"$f":"IF(rawdata[[#This Row],[Opening type]]=\"Standard\",$C$10,$C$9)","v":{"v":4.388999999999999,"d":"4.39"}},{"v":3,"d":"3.0"},{"v":4,"d":"4.0"},{"v":1.4285714285714286,"d":"1.43"},{"$f":"IF(AND($C$4>=rawdata[[#This Row],[KDmin]],$J$11=rawdata[[#This Row],[FHq]],rawdata[[#This Row],[FW]]>=rawdata[[#This Row],[FWmin]],rawdata[[#This Row],[FW]]<=rawdata[[#This Row],[FWmax]]),\"YES\",\" - \")","v":" - "},{"$f":"IF(rawdata[[#This Row],[Fhmatch 1]]=\"YES\",((1-rawdata[[#This Row],[FWmin]]/rawdata[[#This Row],[FW]])+(1-rawdata[[#This Row],[FW]]/rawdata[[#This Row],[FWmax]]))/2,\"\")","v":""},{"$f":"IF(AND($C$4>=rawdata[[#This Row],[KDmin]],$J$11=rawdata[[#This Row],[FHq]],rawdata[[#This Row],[FW]]/2>=rawdata[[#This Row],[FWmin]],rawdata[[#This Row],[FW]]/2<=rawdata[[#This Row],[FWmax]]),\"YES\",\" - \")","v":" - "},{"$f":"IFERROR(rawdata[[#This Row],[FWmin]]*2,\" - \")","v":{"v":6,"d":"6.0"}},{"$f":"IFERROR(rawdata[[#This Row],[FWmax]]*2,\" - \")","v":{"v":8,"d":"8.0"}},{"$f":"IF(rawdata[[#This Row],[Fhmatch 2]]=\"YES\",((1-rawdata[[#This Row],[Fwmin 2]]/rawdata[[#This Row],[FW]])+(1-rawdata[[#This Row],[FW]]/rawdata[[#This Row],[FWmax 2]]))/2,\"\")","v":""}]
[null,"Push-to-open",90,400,185,"B",{"$f":"IF(rawdata[[#This Row],[Opening type]]=\"Standard\",$C$10,$C$9)","v":{"v":4.388999999999999,"d":"4.39"}},1.3,1.9,1.25,{"$f":"IF(AND($C$4>=rawdata[[#This Row],[KDmin]],$J$11=rawdata[[#This Row],[FHq]],rawdata[[#This Row],[FW]]>=rawdata[[#This Row],[FWmin]],rawdata[[#This Row],[FW]]<=rawdata[[#This Row],[FWmax]]),\"YES\",\" - \")","v":" - "},{"$f":"IF(rawdata[[#This Row],[Fhmatch 1]]=\"YES\",((1-rawdata[[#This Row],[FWmin]]/rawdata[[#This Row],[FW]])+(1-rawdata[[#This Row],[FW]]/rawdata[[#This Row],[FWmax]]))/2,\"\")","v":""},{"$f":"IF(AND($C$4>=rawdata[[#This Row],[KDmin]],$J$11=rawdata[[#This Row],[FHq]],rawdata[[#This Row],[FW]]/2>=rawdata[[#This Row],[FWmin]],rawdata[[#This Row],[FW]]/2<=rawdata[[#This Row],[FWmax]]),\"YES\",\" - \")","v":" - "},{"$f":"IFERROR(rawdata[[#This Row],[FWmin]]*2,\" - \")","v":2.6},{"$f":"IFERROR(rawdata[[#This Row],[FWmax]]*2,\" - \")","v":3.8},{"$f":"IF(rawdata[[#This Row],[Fhmatch 2]]=\"YES\",((1-rawdata[[#This Row],[Fwmin 2]]/rawdata[[#This Row],[FW]])+(1-rawdata[[#This Row],[FW]]/rawdata[[#This Row],[FWmax 2]]))/2,\"\")","v":""}]
[null,"Push-to-open",90,400,185,"C",{"$f":"IF(rawdata[[#This Row],[Opening type]]=\"Standard\",$C$10,$C$9)","v":{"v":4.388999999999999,"d":"4.39"}},1.9,{"v":3,"d":"3.0"},1.25,{"$f":"IF(AND($C$4>=rawdata[[#This Row],[KDmin]],$J$11=rawdata[[#This Row],[FHq]],rawdata[[#This Row],[FW]]>=rawdata[[#This Row],[FWmin]],rawdata[[#This Row],[FW]]<=rawdata[[#This Row],[FWmax]]),\"YES\",\" - \")","v":" - "},{"$f":"IF(rawdata[[#This Row],[Fhmatch 1]]=\"YES\",((1-rawdata[[#This Row],[FWmin]]/rawdata[[#This Row],[FW]])+(1-rawdata[[#This Row],[FW]]/rawdata[[#This Row],[FWmax]]))/2,\"\")","v":""},{"$f":"IF(AND($C$4>=rawdata[[#This Row],[KDmin]],$J$11=rawdata[[#This Row],[FHq]],rawdata[[#This Row],[FW]]/2>=rawdata[[#This Row],[FWmin]],rawdata[[#This Row],[FW]]/2<=rawdata[[#This Row],[FWmax]]),\"YES\",\" - \")","v":" - "},{"$f":"IFERROR(rawdata[[#This Row],[FWmin]]*2,\" - \")","v":3.8},{"$f":"IFERROR(rawdata[[#This Row],[FWmax]]*2,\" - \")","v":{"v":6,"d":"6.0"}},{"$f":"IF(rawdata[[#This Row],[Fhmatch 2]]=\"YES\",((1-rawdata[[#This Row],[Fwmin 2]]/rawdata[[#This Row],[FW]])+(1-rawdata[[#This Row],[FW]]/rawdata[[#This Row],[FWmax 2]]))/2,\"\")","v":""}]
[null,"Push-to-open",90,400,185,"D",{"$f":"IF(rawdata[[#This Row],[Opening type]]=\"Standard\",$C$10,$C$9)","v":{"v":4.388999999999999,"d":"4.39"}},2.8,{"v":4,"d":"4.0"},1.25,{"$f":"IF(AND($C$4>=rawdata[[#This Row],[KDmin]],$J$11=rawdata[[#This Row],[FHq]],rawdata[[#This Row],[FW]]>=rawdata[[#This Row],[FWmin]],rawdata[[#This Row],[FW]]<=rawdata[[#This Row],[FWmax]]),\"YES\",\" - \")","v":" - "},{"$f":"IF(rawdata[[#This Row],[Fhmatch 1]]=\"YES\",((1-rawdata[[#This Row],[FWmin]]/rawdata[[#This Row],[FW]])+(1-rawdata[[#This Row],[FW]]/rawdata[[#This Row],[FWmax]]))/2,\"\")","v":""},{"$f":"IF(AND($C$4>=rawdata[[#This Row],[KDmin]],$J$11=rawdata[[#This Row],[FHq]],rawdata[[#This Row],[FW]]/2>=rawdata[[#This Row],[FWmin]],rawdata[[#This Row],[FW]]/2<=rawdata[[#This Row],[FWmax]]),\"YES\",\" - \")","v":" - "},{"$f":"IFERROR(rawdata[[#This Row],[FWmin]]*2,\" - \")","v":5.6},{"$f":"IFERROR(rawdata[[#This Row],[FWmax]]*2,\" - \")","v":{"v":8,"d":"8.0"}},{"$f":"IF(rawdata[[#This Row],[Fhmatch 2]]=\"YES\",((1-rawdata[[#This Row],[Fwmin 2]]/rawdata[[#This Row],[FW]])+(1-rawdata[[#This Row],[FW]]/rawdata[[#This Row],[FWmax 2]]))/2,\"\")","v":""}]
[null,"Push-to-open",90,450,185,"B",{"$f":"IF(rawdata[[#This Row],[Opening type]]=\"Standard\",$C$10,$C$9)","v":{"v":4.388999999999999,"d":"4.39"}},1.1,1.5,{"v":1.1111111111111112,"d":"1.11"},{"$f":"IF(AND($C$4>=rawdata[[#This Row],[KDmin]],$J$11=rawdata[[#This Row],[FHq]],rawdata[[#This Row],[FW]]>=rawdata[[#This Row],[FWmin]],rawdata[[#This Row],[FW]]<=rawdata[[#This Row],[FWmax]]),\"YES\",\" - \")","v":" - "},{"$f":"IF(rawdata[[#This Row],[Fhmatch 1]]=\"YES\",((1-rawdata[[#This Row],[FWmin]]/rawdata[[#This Row],[FW]])+(1-rawdata[[#This Row],[FW]]/rawdata[[#This Row],[FWmax]]))/2,\"\")","v":""},{"$f":"IF(AND($C$4>=rawdata[[#This Row],[KDmin]],$J$11=rawdata[[#This Row],[FHq]],rawdata[[#This Row],[FW]]/2>=rawdata[[#This Row],[FWmin]],rawdata[[#This Row],[FW]]/2<=rawdata[[#This Row],[FWmax]]),\"YES\",\" - \")","v":" - "},{"$f":"IFERROR(rawdata[[#This Row],[FWmin]]*2,\" - \")","v":2.2},{"$f":"IFERROR(rawdata[[#This Row],[FWmax]]*2,\" - \")","v":{"v":3,"d":"3.0"}},{"$f":"IF(rawdata[[#This Row],[Fhmatch 2]]=\"YES\",((1-rawdata[[#This Row],[Fwmin 2]]/rawdata[[#This Row],[FW]])+(1-rawdata[[#This Row],[FW]]/rawdata[[#This Row],[FWmax 2]]))/2,\"\")","v":""}]
[null,"Push-to-open",90,450,185,"C",{"$f":"IF(rawdata[[#This Row],[Opening type]]=\"Standard\",$C$10,$C$9)","v":{"v":4.388999999999999,"d":"4.39"}},1.5,2.6,{"v":1.1111111111111112,"d":"1.11"},{"$f":"IF(AND($C$4>=rawdata[[#This Row],[KDmin]],$J$11=rawdata[[#This Row],[FHq]],rawdata[[#This Row],[FW]]>=rawdata[[#This Row],[FWmin]],rawdata[[#This Row],[FW]]<=rawdata[[#This Row],[FWmax]]),\"YES\",\" - \")","v":" - "},{"$f":"IF(rawdata[[#This Row],[Fhmatch 1]]=\"YES\",((1-rawdata[[#This Row],[FWmin]]/rawdata[[#This Row],[FW]])+(1-rawdata[[#This Row],[FW]]/rawdata[[#This Row],[FWmax]]))/2,\"\")","v":""},{"$f":"IF(AND($C$4>=rawdata[[#This Row],[KDmin]],$J$11=rawdata[[#This Row],[FHq]],rawdata[[#This Row],[FW]]/2>=rawdata[[#This Row],[FWmin]],rawdata[[#This Row],[FW]]/2<=rawdata[[#This Row],[FWmax]]),\"YES\",\" - \")","v":" - "},{"$f":"IFERROR(rawdata[[#This Row],[FWmin]]*2,\" - \")","v":{"v":3,"d":"3.0"}},{"$f":"IFERROR(rawdata[[#This Row],[FWmax]]*2,\" - \")","v":5.2},{"$f":"IF(rawdata[[#This Row],[Fhmatch 2]]=\"YES\",((1-rawdata[[#This Row],[Fwmin 2]]/rawdata[[#This Row],[FW]])+(1-rawdata[[#This Row],[FW]]/rawdata[[#This Row],[FWmax 2]]))/2,\"\")","v":""}]
[null,"Push-to-open",90,450,185,"D",{"$f":"IF(rawdata[[#This Row],[Opening type]]=\"Standard\",$C$10,$C$9)","v":{"v":4.388999999999999,"d":"4.39"}},2.2,3.2,{"v":1.1111111111111112,"d":"1.11"},{"$f":"IF(AND($C$4>=rawdata[[#This Row],[KDmin]],$J$11=rawdata[[#This Row],[FHq]],rawdata[[#This Row],[FW]]>=rawdata[[#This Row],[FWmin]],rawdata[[#This Row],[FW]]<=rawdata[[#This Row],[FWmax]]),\"YES\",\" - \")","v":" - "},{"$f":"IF(rawdata[[#This Row],[Fhmatch 1]]=\"YES\",((1-rawdata[[#This Row],[FWmin]]/rawdata[[#This Row],[FW]])+(1-rawdata[[#This Row],[FW]]/rawdata[[#This Row],[FWmax]]))/2,\"\")","v":""},{"$f":"IF(AND($C$4>=rawdata[[#This Row],[KDmin]],$J$11=rawdata[[#This Row],[FHq]],rawdata[[#This Row],[FW]]/2>=rawdata[[#This Row],[FWmin]],rawdata[[#This Row],[FW]]/2<=rawdata[[#This Row],[FWmax]]),\"YES\",\" - \")","v":" - "},{"$f":"IFERROR(rawdata[[#This Row],[FWmin]]*2,\" - \")","v":4.4},{"$f":"IFERROR(rawdata[[#This Row],[FWmax]]*2,\" - \")","v":6.4},{"$f":"IF(rawdata[[#This Row],[Fhmatch 2]]=\"YES\",((1-rawdata[[#This Row],[Fwmin 2]]/rawdata[[#This Row],[FW]])+(1-rawdata[[#This Row],[FW]]/rawdata[[#This Row],[FWmax 2]]))/2,\"\")","v":""}]
[null,"Push-to-open",90,500,185,"B",{"$f":"IF(rawdata[[#This Row],[Opening type]]=\"Standard\",$C$10,$C$9)","v":{"v":4.388999999999999,"d":"4.39"}},"-","-",{"v":1,"d":"1.00"},{"$f":"IF(AND($C$4>=rawdata[[#This Row],[KDmin]],$J$11=rawdata[[#This Row],[FHq]],rawdata[[#This Row],[FW]]>=rawdata[[#This Row],[FWmin]],rawdata[[#This Row],[FW]]<=rawdata[[#This Row],[FWmax]]),\"YES\",\" - \")","v":" - "},{"$f":"IF(rawdata[[#This Row],[Fhmatch 1]]=\"YES\",((1-rawdata[[#This Row],[FWmin]]/rawdata[[#This Row],[FW]])+(1-rawdata[[#This Row],[FW]]/rawdata[[#This Row],[FWmax]]))/2,\"\")","v":""},{"$f":"IF(AND($C$4>=rawdata[[#This Row],[KDmin]],$J$11=rawdata[[#This Row],[FHq]],rawdata[[#This Row],[FW]]/2>=rawdata[[#This Row],[FWmin]],rawdata[[#This Row],[FW]]/2<=rawdata[[#This Row],[FWmax]]),\"YES\",\" - \")","v":" - "},{"$f":"IFERROR(rawdata[[#This Row],[FWmin]]*2,\" - \")","v":" - "},{"$f":"IFERROR(rawdata[[#This Row],[FWmax]]*2,\" - \")","v":" - "},{"$f":"IF(rawdata[[#This Row],[Fhmatch 2]]=\"YES\",((1-rawdata[[#This Row],[Fwmin 2]]/rawdata[[#This Row],[FW]])+(1-rawdata[[#This Row],[FW]]/rawdata[[#This Row],[FWmax 2]]))/2,\"\")","v":""}]
[null,"Push-to-open",90,500,185,"C",{"$f":"IF(rawdata[[#This Row],[Opening type]]=\"Standard\",$C$10,$C$9)","v":{"v":4.388999999999999,"d":"4.39"}},1.4,2.4,{"v":1,"d":"1.00"},{"$f":"IF(AND($C$4>=rawdata[[#This Row],[KDmin]],$J$11=rawdata[[#This Row],[FHq]],rawdata[[#This Row],[FW]]>=rawdata[[#This Row],[FWmin]],rawdata[[#This Row],[FW]]<=rawdata[[#This Row],[FWmax]]),\"YES\",\" - \")","v":" - "},{"$f":"IF(rawdata[[#This Row],[Fhmatch 1]]=\"YES\",((1-rawdata[[#This Row],[FWmin]]/rawdata[[#This Row],[FW]])+(1-rawdata[[#This Row],[FW]]/rawdata[[#This Row],[FWmax]]))/2,\"\")","v":""},{"$f":"IF(AND($C$4>=rawdata[[#This Row],[KDmin]],$J$11=rawdata[[#This Row],[FHq]],rawdata[[#This Row],[FW]]/2>=rawdata[[#This Row],[FWmin]],rawdata[[#This Row],[FW]]/2<=rawdata[[#This Row],[FWmax]]),\"YES\",\" - \")","v":"YES"},{"$f":"IFERROR(rawdata[[#This Row],[FWmin]]*2,\" - \")","v":2.8},{"$f":"IFERROR(rawdata[[#This Row],[FWmax]]*2,\" - \")","v":4.8},{"$f":"IF(rawdata[[#This Row],[Fhmatch 2]]=\"YES\",((1-rawdata[[#This Row],[Fwmin 2]]/rawdata[[#This Row],[FW]])+(1-rawdata[[#This Row],[FW]]/rawdata[[#This Row],[FWmax 2]]))/2,\"\")","v":{"v":0.2238332336523126,"d":"22.38%"}}]
[null,"Push-to-open",90,500,185,"D",{"$f":"IF(rawdata[[#This Row],[Opening type]]=\"Standard\",$C$10,$C$9)","v":{"v":4.388999999999999,"d":"4.39"}},{"v":2,"d":"2.0"},2.9,{"v":1,"d":"1.00"},{"$f":"IF(AND($C$4>=rawdata[[#This Row],[KDmin]],$J$11=rawdata[[#This Row],[FHq]],rawdata[[#This Row],[FW]]>=rawdata[[#This Row],[FWmin]],rawdata[[#This Row],[FW]]<=rawdata[[#This Row],[FWmax]]),\"YES\",\" - \")","v":" - "},{"$f":"IF(rawdata[[#This Row],[Fhmatch 1]]=\"YES\",((1-rawdata[[#This Row],[FWmin]]/rawdata[[#This Row],[FW]])+(1-rawdata[[#This Row],[FW]]/rawdata[[#This Row],[FWmax]]))/2,\"\")","v":""},{"$f":"IF(AND($C$4>=rawdata[[#This Row],[KDmin]],$J$11=rawdata[[#This Row],[FHq]],rawdata[[#This Row],[FW]]/2>=rawdata[[#This Row],[FWmin]],rawdata[[#This Row],[FW]]/2<=rawdata[[#This Row],[FWmax]]),\"YES\",\" - \")","v":"YES"},{"$f":"IFERROR(rawdata[[#This Row],[FWmin]]*2,\" - \")","v":{"v":4,"d":"4.0"}},{"$f":"IFERROR(rawdata[[#This Row],[FWmax]]*2,\" - \")","v":5.8},{"$f":"IF(rawdata[[#This Row],[Fhmatch 2]]=\"YES\",((1-rawdata[[#This Row],[Fwmin 2]]/rawdata[[#This Row],[FW]])+(1-rawdata[[#This Row],[FW]]/rawdata[[#This Row],[FWmax 2]]))/2,\"\")","v":{"v":0.1659532648235007,"d":"16.60%"}}]
[null,"Push-to-open",90,550,185,"B",{"$f":"IF(rawdata[[#This Row],[Opening type]]=\"Standard\",$C$10,$C$9)","v":{"v":4.388999999999999,"d":"4.39"}},"-","-",{"v":0.9090909090909091,"d":"0.91"},{"$f":"IF(AND($C$4>=rawdata[[#This Row],[KDmin]],$J$11=rawdata[[#This Row],[FHq]],rawdata[[#This Row],[FW]]>=rawdata[[#This Row],[FWmin]],rawdata[[#This Row],[FW]]<=rawdata[[#This Row],[FWmax]]),\"YES\",\" - \")","v":" - "},{"$f":"IF(rawdata[[#This Row],[Fhmatch 1]]=\"YES\",((1-rawdata[[#This Row],[FWmin]]/rawdata[[#This Row],[FW]])+(1-rawdata[[#This Row],[FW]]/rawdata[[#This Row],[FWmax]]))/2,\"\")","v":""},{"$f":"IF(AND($C$4>=rawdata[[#This Row],[KDmin]],$J$11=rawdata[[#This Row],[FHq]],rawdata[[#This Row],[FW]]/2>=rawdata[[#This Row],[FWmin]],rawdata[[#This Row],[FW]]/2<=rawdata[[#This Row],[FWmax]]),\"YES\",\" - \")","v":" - "},{"$f":"IFERROR(rawdata[[#This Row],[FWmin]]*2,\" - \")","v":" - "},{"$f":"IFERROR(rawdata[[#This Row],[FWmax]]*2,\" - \")","v":" - "},{"$f":"IF(rawdata[[#This Row],[Fhmatch 2]]=\"YES\",((1-rawdata[[#This Row],[Fwmin 2]]/rawdata[[#This Row],[FW]])+(1-rawdata[[#This Row],[FW]]/rawdata[[#This Row],[FWmax 2]]))/2,\"\")","v":""}]
[null,"Push-to-open",90,550,185,"C",{"$f":"IF(rawdata[[#This Row],[Opening type]]=\"Standard\",$C$10,$C$9)","v":{"v":4.388999999999999,"d":"4.39"}},1.3,2.2,{"v":0.9090909090909091,"d":"0.91"},{"$f":"IF(AND($C$4>=rawdata[[#This Row],[KDmin]],$J$11=rawdata[[#This Row],[FHq]],rawdata[[#This Row],[FW]]>=rawdata[[#This Row],[FWmin]],rawdata[[#This Row],[FW]]<=rawdata[[#This Row],[FWmax]]),\"YES\",\" - \")","v":" - "},{"$f":"IF(rawdata[[#This Row],[Fhmatch 1]]=\"YES\",((1-rawdata[[#This Row],[FWmin]]/rawdata[[#This Row],[FW]])+(1-rawdata[[#This Row],[FW]]/rawdata[[#This Row],[FWmax]]))/2,\"\")","v":""},{"$f":"IF(AND($C$4>=rawdata[[#This Row],[KDmin]],$J$11=rawdata[[#This Row],[FHq]],rawdata[[#This Row],[FW]]/2>=rawdata[[#This Row],[FWmin]],rawdata[[#This Row],[FW]]/2<=rawdata[[#This Row],[FWmax]]),\"YES\",\" - \")","v":" - "},{"$f":"IFERROR(rawdata[[#This Row],[FWmin]]*2,\" - \")","v":2.6},{"$f":"IFERROR(rawdata[[#This Row],[FWmax]]*2,\" - \")","v":4.4},{"$f":"IF(rawdata[[#This Row],[Fhmatch 2]]=\"YES\",((1-rawdata[[#This Row],[Fwmin 2]]/rawdata[[#This Row],[FW]])+(1-rawdata[[#This Row],[FW]]/rawdata[[#This Row],[FWmax 2]]))/2,\"\")","v":""}]
[null,"Push-to-open",90,550,185,"D",{"$f":"IF(rawdata[[#This Row],[Opening type]]=\"Standard\",$C$10,$C$9)","v":{"v":4.388999999999999,"d":"4.39"}},1.8,2.8,{"v":0.9090909090909091,"d":"0.91"},{"$f":"IF(AND($C$4>=rawdata[[#This Row],[KDmin]],$J$11=rawdata[[#This Row],[FHq]],rawdata[[#This Row],[FW]]>=rawdata[[#This Row],[FWmin]],rawdata[[#This Row],[FW]]<=rawdata[[#This Row],[FWmax]]),\"YES\",\" - \")","v":" - "},{"$f":"IF(rawdata[[#This Row],[Fhmatch 1]]=\"YES\",((1-rawdata[[#This Row],[FWmin]]/rawdata[[#This Row],[FW]])+(1-rawdata[[#This Row],[FW]]/rawdata[[#This Row],[FWmax]]))/2,\"\")","v":""},{"$f":"IF(AND($C$4>=rawdata[[#This Row],[KDmin]],$J$11=rawdata[[#This Row],[FHq]],rawdata[[#This Row],[FW]]/2>=rawdata[[#This Row],[FWmin]],rawdata[[#This Row],[FW]]/2<=rawdata[[#This Row],[FWmax]]),\"YES\",\" - \")","v":" - "},{"$f":"IFERROR(rawdata[[#This Row],[FWmin]]*2,\" - \")","v":3.6},{"$f":"IFERROR(rawdata[[#This Row],[FWmax]]*2,\" - \")","v":5.6},{"$f":"IF(rawdata[[#This Row],[Fhmatch 2]]=\"YES\",((1-rawdata[[#This Row],[Fwmin 2]]/rawdata[[#This Row],[FW]])+(1-rawdata[[#This Row],[FW]]/rawdata[[#This Row],[FWmax 2]]))/2,\"\")","v":""}]
[null,"Push-to-open",90,600,185,"B",{"$f":"IF(rawdata[[#This Row],[Opening type]]=\"Standard\",$C$10,$C$9)","v":{"v":4.388999999999999,"d":"4.39"}},"-","-",{"v":0.8333333333333334,"d":"0.83"},{"$f":"IF(AND($C$4>=rawdata[[#This Row],[KDmin]],$J$11=rawdata[[#This Row],[FHq]],rawdata[[#This Row],[FW]]>=rawdata[[#This Row],[FWmin]],rawdata[[#This Row],[FW]]<=rawdata[[#This Row],[FWmax]]),\"YES\",\" - \")","v":" - "},{"$f":"IF(rawdata[[#This Row],[Fhmatch 1]]=\"YES\",((1-rawdata[[#This Row],[FWmin]]/rawdata[[#This Row],[FW]])+(1-rawdata[[#This Row],[FW]]/rawdata[[#This Row],[FWmax]]))/2,\"\")","v":""},{"$f":"IF(AND($C$4>=rawdata[[#This Row],[KDmin]],$J$11=rawdata[[#This Row],[FHq]],rawdata[[#This Row],[FW]]/2>=rawdata[[#This Row],[FWmin]],rawdata[[#This Row],[FW]]/2<=rawdata[[#This Row],[FWmax]]),\"YES\",\" - \")","v":" - "},{"$f":"IFERROR(rawdata[[#This Row],[FWmin]]*2,\" - \")","v":" - "},{"$f":"IFERROR(rawdata[[#This Row],[FWmax]]*2,\" - \")","v":" - "},{"$f":"IF(rawdata[[#This Row],[Fhmatch 2]]=\"YES\",((1-rawdata[[#This Row],[Fwmin 2]]/rawdata[[#This Row],[FW]])+(1-rawdata[[#This Row],[FW]]/rawdata[[#This Row],[FWmax 2]]))/2,\"\")","v":""}]
[null,"Push-to-open",90,600,185,"C",{"$f":"IF(rawdata[[#This Row],[Opening type]]=\"Standard\",$C$10,$C$9)","v":{"v":4.388999999999999,"d":"4.39"}},1.3,1.7,{"v":0.8333333333333334,"d":"0.83"},{"$f":"IF(AND($C$4>=rawdata[[#This Row],[KDmin]],$J$11=rawdata[[#This Row],[FHq]],rawdata[[#This Row],[FW]]>=rawdata[[#This Row],[FWmin]],rawdata[[#This Row],[FW]]<=rawdata[[#This Row],[FWmax]]),\"YES\",\" - \")","v":" - "},{"$f":"IF(rawdata[[#This Row],[Fhmatch 1]]=\"YES\",((1-rawdata[[#This Row],[FWmin]]/rawdata[[#This Row],[FW]])+(1-rawdata[[#This Row],[FW]]/rawdata[[#This Row],[FWmax]]))/2,\"\")","v":""},{"$f":"IF(AND($C$4>=rawdata[[#This Row],[KDmin]],$J$11=rawdata[[#This Row],[FHq]],rawdata[[#This Row],[FW]]/2>=rawdata[[#This Row],[FWmin]],rawdata[[#This Row],[FW]]/2<=rawdata[[#This Row],[FWmax]]),\"YES\",\" - \")","v":" - "},{"$f":"IFERROR(rawdata[[#This Row],[FWmin]]*2,\" - \")","v":2.6},{"$f":"IFERROR(rawdata[[#This Row],[FWmax]]*2,\" - \")","v":3.4},{"$f":"IF(rawdata[[#This Row],[Fhmatch 2]]=\"YES\",((1-rawdata[[#This Row],[Fwmin 2]]/rawdata[[#This Row],[FW]])+(1-rawdata[[#This Row],[FW]]/rawdata[[#This Row],[FWmax 2]]))/2,\"\")","v":""}]
[null,"Push-to-open",90,600,185,"D",{"$f":"IF(rawdata[[#This Row],[Opening type]]=\"Standard\",$C$10,$C$9)","v":{"v":4.388999999999999,"d":"4.39"}},1.5,2.5,{"v":0.8333333333333334,"d":"0.83"},{"$f":"IF(AND($C$4>=rawdata[[#This Row],[KDmin]],$J$11=rawdata[[#This Row],[FHq]],rawdata[[#This Row],[FW]]>=rawdata[[#This Row],[FWmin]],rawdata[[#This Row],[FW]]<=rawdata[[#This Row],[FWmax]]),\"YES\",\" - \")","v":" - "},{"$f":"IF(rawdata[[#This Row],[Fhmatch 1]]=\"YES\",((1-rawdata[[#This Row],[FWmin]]/rawdata[[#This Row],[FW]])+(1-rawdata[[#This Row],[FW]]/rawdata[[#This Row],[FWmax]]))/2,\"\")","v":""},{"$f":"IF(AND($C$4>=rawdata[[#This Row],[KDmin]],$J$11=rawdata[[#This Row],[FHq]],rawdata[[#This Row],[FW]]/2>=rawdata[[#This Row],[FWmin]],rawdata[[#This Row],[FW]]/2<=rawdata[[#This Row],[FWmax]]),\"YES\",\" - \")","v":" - "},{"$f":"IFERROR(rawdata[[#This Row],[FWmin]]*2,\" - \")","v":{"v":3,"d":"3.0"}},{"$f":"IFERROR(rawdata[[#This Row],[FWmax]]*2,\" - \")","v":{"v":5,"d":"5.0"}},{"$f":"IF(rawdata[[#This Row],[Fhmatch 2]]=\"YES\",((1-rawdata[[#This Row],[Fwmin 2]]/rawdata[[#This Row],[FW]])+(1-rawdata[[#This Row],[FW]]/rawdata[[#This Row],[FWmax 2]]))/2,\"\")","v":""}]
[null,"Push-to-open",110,300,190,"B",{"$f":"IF(rawdata[[#This Row],[Opening type]]=\"Standard\",$C$10,$C$9)","v":{"v":4.388999999999999,"d":"4.39"}},1.5,2.1,{"v":1.6666666666666667,"d":"1.67"},{"$f":"IF(AND($C$4>=rawdata[[#This Row],[KDmin]],$J$11=rawdata[[#This Row],[FHq]],rawdata[[#This Row],[FW]]>=rawdata[[#This Row],[FWmin]],rawdata[[#This Row],[FW]]<=rawdata[[#This Row],[FWmax]]),\"YES\",\" - \")","v":" - "},{"$f":"IF(rawdata[[#This Row],[Fhmatch 1]]=\"YES\",((1-rawdata[[#This Row],[FWmin]]/rawdata[[#This Row],[FW]])+(1-rawdata[[#This Row],[FW]]/rawdata[[#This Row],[FWmax]]))/2,\"\")","v":""},{"$f":"IF(AND($C$4>=rawdata[[#This Row],[KDmin]],$J$11=rawdata[[#This Row],[FHq]],rawdata[[#This Row],[FW]]/2>=rawdata[[#This Row],[FWmin]],rawdata[[#This Row],[FW]]/2<=rawdata[[#This Row],[FWmax]]),\"YES\",\" - \")","v":" - "},{"$f":"IFERROR(rawdata[[#This Row],[FWmin]]*2,\" - \")","v":{"v":3,"d":"3.0"}},{"$f":"IFERROR(rawdata[[#This Row],[FWmax]]*2,\" - \")","v":4.2},{"$f":"IF(rawdata[[#This Row],[Fhmatch 2]]=\"YES\",((1-rawdata[[#This Row],[Fwmin 2]]/rawdata[[#This Row],[FW]])+(1-rawdata[[#This Row],[FW]]/rawdata[[#This Row],[FWmax 2]]))/2,\"\")","v":""}]
[null,"Push-to-open",110,300,190,"C",{"$f":"IF(rawdata[[#This Row],[Opening type]]=\"Standard\",$C$10,$C$9)","v":{"v":4.388999999999999,"d":"4.39"}},2.1,{"v":3,"d":"3.0"},{"$f":"$C$2/D173","v":{"v":1.6666666666666667,"d":"1.67"}},{"$f":"IF(AND($C$4>=rawdata[[#This Row],[KDmin]],$J$11=rawdata[[#This Row],[FHq]],rawdata[[#This Row],[FW]]>=rawdata[[#This Row],[FWmin]],rawdata[[#This Row],[FW]]<=rawdata[[#This Row],[FWmax]]),\"YES\",\" - \")","v":" - "},{"$f":"IF(rawdata[[#This Row],[Fhmatch 1]]=\"YES\",((1-rawdata[[#This Row],[FWmin]]/rawdata[[#This Row],[FW]])+(1-rawdata[[#This Row],[FW]]/rawdata[[#This Row],[FWmax]]))/2,\"\")","v":""},{"$f":"IF(AND($C$4>=rawdata[[#This Row],[KDmin]],$J$11=rawdata[[#This Row],[FHq]],rawdata[[#This Row],[FW]]/2>=rawdata[[#This Row],[FWmin]],rawdata[[#This Row],[FW]]/2<=rawdata[[#This Row],[FWmax]]),\"YES\",\" - \")","v":" - "},{"$f":"IFERROR(rawdata[[#This Row],[FWmin]]*2,\" - \")","v":4.2},{"$f":"IFERROR(rawdata[[#This Row],[FWmax]]*2,\" - \")","v":{"v":6,"d":"6.0"}},{"$f":"IF(rawdata[[#This Row],[Fhmatch 2]]=\"YES\",((1-rawdata[[#This Row],[Fwmin 2]]/rawdata[[#This Row],[FW]])+(1-rawdata[[#This Row],[FW]]/rawdata[[#This Row],[FWmax 2]]))/2,\"\")","v":""}]
[null,"Push-to-open",110,300,190,"D",{"$f":"IF(rawdata[[#This Row],[Opening type]]=\"Standard\",$C$10,$C$9)","v":{"v":4.388999999999999,"d":"4.39"}},2.7,4.1,{"v":1.6666666666666667,"d":"1.67"},{"$f":"IF(AND($C$4>=rawdata[[#This Row],[KDmin]],$J$11=rawdata[[#This Row],[FHq]],rawdata[[#This Row],[FW]]>=rawdata[[#This Row],[FWmin]],rawdata[[#This Row],[FW]]<=rawdata[[#This Row],[FWmax]]),\"YES\",\" - \")","v":" - "},{"$f":"IF(rawdata[[#This Row],[Fhmatch 1]]=\"YES\",((1-rawdata[[#This Row],[FWmin]]/rawdata[[#This Row],[FW]])+(1-rawdata[[#This Row],[FW]]/rawdata[[#This Row],[FWmax]]))/2,\"\")","v":""},{"$f":"IF(AND($C$4>=rawdata[[#This Row],[KDmin]],$J$11=rawdata[[#This Row],[FHq]],rawdata[[#This Row],[FW]]/2>=rawdata[[#This Row],[FWmin]],rawdata[[#This Row],[FW]]/2<=rawdata[[#This Row],[FWmax]]),\"YES\",\" - \")","v":" - "},{"$f":"IFERROR(rawdata[[#This Row],[FWmin]]*2,\" - \")","v":5.4},{"$f":"IFERROR(rawdata[[#This Row],[FWmax]]*2,\" - \")","v":8.2},{"$f":"IF(rawdata[[#This Row],[Fhmatch 2]]=\"YES\",((1-rawdata[[#This Row],[Fwmin 2]]/rawdata[[#This Row],[FW]])+(1-rawdata[[#This Row],[FW]]/rawdata[[#This Row],[FWmax 2]]))/2,\"\")","v":""}]
[null,"Push-to-open",110,350,190,"B",{"$f":"IF(rawdata[[#This Row],[Opening type]]=\"Standard\",$C$10,$C$9)","v":{"v":4.388999999999999,"d":"4.39"}},1.5,2.1,{"v":1.4285714285714286,"d":"1.43"},{"$f":"IF(AND($C$4>=rawdata[[#This Row],[KDmin]],$J$11=rawdata[[#This Row],[FHq]],rawdata[[#This Row],[FW]]>=rawdata[[#This Row],[FWmin]],rawdata[[#This Row],[FW]]<=rawdata[[#This Row],[FWmax]]),\"YES\",\" - \")","v":" - "},{"$f":"IF(rawdata[[#This Row],[Fhmatch 1]]=\"YES\",((1-rawdata[[#This Row],[FWmin]]/rawdata[[#This Row],[FW]])+(1-rawdata[[#This Row],[FW]]/rawdata[[#This Row],[FWmax]]))/2,\"\")","v":""},{"$f":"IF(AND($C$4>=rawdata[[#This Row],[KDmin]],$J$11=rawdata[[#This Row],[FHq]],rawdata[[#This Row],[FW]]/2>=rawdata[[#This Row],[FWmin]],rawdata[[#This Row],[FW]]/2<=rawdata[[#This Row],[FWmax]]),\"YES\",\" - \")","v":" - "},{"$f":"IFERROR(rawdata[[#This Row],[FWmin]]*2,\" - \")","v":{"v":3,"d":"3.0"}},{"$f":"IFERROR(rawdata[[#This Row],[FWmax]]*2,\" - \")","v":4.2},{"$f":"IF(rawdata[[#This Row],[Fhmatch 2]]=\"YES\",((1-rawdata[[#This Row],[Fwmin 2]]/rawdata[[#This Row],[FW]])+(1-rawdata[[#This Row],[FW]]/rawdata[[#This Row],[FWmax 2]]))/2,\"\")","v":""}]
[null,"Push-to-open",110,350,190,"C",{"$f":"IF(rawdata[[#This Row],[Opening type]]=\"Standard\",$C$10,$C$9)","v":{"v":4.388999999999999,"d":"4.39"}},1.9,2.7,{"v":1.4285714285714286,"d":"1.43"},{"$f":"IF(AND($C$4>=rawdata[[#This Row],[KDmin]],$J$11=rawdata[[#This Row],[FHq]],rawdata[[#This Row],[FW]]>=rawdata[[#This Row],[FWmin]],rawdata[[#This Row],[FW]]<=rawdata[[#This Row],[FWmax]]),\"YES\",\" - \")","v":" - "},{"$f":"IF(rawdata[[#This Row],[Fhmatch 1]]=\"YES\",((1-rawdata[[#This Row],[FWmin]]/rawdata[[#This Row],[FW]])+(1-rawdata[[#This Row],[FW]]/rawdata[[#This Row],[FWmax]]))/2,\"\")","v":""},{"$f":"IF(AND($C$4>=rawdata[[#This Row],[KDmin]],$J$11=rawdata[[#This Row],[FHq]],rawdata[[#This Row],[FW]]/2>=rawdata[[#This Row],[FWmin]],rawdata[[#This Row],[FW]]/2<=rawdata[[#This Row],[FWmax]]),\"YES\",\" - \")","v":" - "},{"$f":"IFERROR(rawdata[[#This Row],[FWmin]]*2,\" - \")","v":3.8},{"$f":"IFERROR(rawdata[[#This Row],[FWmax]]*2,\" - \")","v":5.4},{"$f":"IF(rawdata[[#This Row],[Fhmatch 2]]=\"YES\",((1-rawdata[[#This Row],[Fwmin 2]]/rawdata[[#This Row],[FW]])+(1-rawdata[[#This Row],[FW]]/rawdata[[#This Row],[FWmax 2]]))/2,\"\")","v":""}]
[null,"Push-to-open",110,350,190,"D",{"$f":"IF(rawdata[[#This Row],[Opening type]]=\"Standard\",$C$10,$C$9)","v":{"v":4.388999999999999,"d":"4.39"}},2.6,3.7,{"v":1.4285714285714286,"d":"1.43"},{"$f":"IF(AND($C$4>=rawdata[[#This Row],[KDmin]],$J$11=rawdata[[#This Row],[FHq]],rawdata[[#This Row],[FW]]>=rawdata[[#This Row],[FWmin]],rawdata[[#This Row],[FW]]<=rawdata[[#This Row],[FWmax]]),\"YES\",\" - \")","v":" - "},{"$f":"IF(rawdata[[#This Row],[Fhmatch 1]]=\"YES\",((1-rawdata[[#This Row],[FWmin]]/rawdata[[#This Row],[FW]])+(1-rawdata[[#This Row],[FW]]/rawdata[[#This Row],[FWmax]]))/2,\"\")","v":""},{"$f":"IF(AND($C$4>=rawdata[[#This Row],[KDmin]],$J$11=rawdata[[#This Row],[FHq]],rawdata[[#This Row],[FW]]/2>=rawdata[[#This Row],[FWmin]],rawdata[[#This Row],[FW]]/2<=rawdata[[#This Row],[FWmax]]),\"YES\",\" - \")","v":" - "},{"$f":"IFERROR(rawdata[[#This Row],[FWmin]]*2,\" - \")","v":5.2},{"$f":"IFERROR(rawdata[[#This Row],[FWmax]]*2,\" - \")","v":7.4},{"$f":"IF(rawdata[[#This Row],[Fhmatch 2]]=\"YES\",((1-rawdata[[#This Row],[Fwmin 2]]/rawdata[[#This Row],[FW]])+(1-rawdata[[#This Row],[FW]]/rawdata[[#This Row],[FWmax 2]]))/2,\"\")","v":""}]
[null,"Push-to-open",110,400,190,"B",{"$f":"IF(rawdata[[#This Row],[Opening type]]=\"Standard\",$C$10,$C$9)","v":{"v":4.388999999999999,"d":"4.39"}},1.1,1.5,1.25,{"$f":"IF(AND($C$4>=rawdata[[#This Row],[KDmin]],$J$11=rawdata[[#This Row],[FHq]],rawdata[[#This Row],[FW]]>=rawdata[[#This Row],[FWmin]],rawdata[[#This Row],[FW]]<=rawdata[[#This Row],[FWmax]]),\"YES\",\" - \")","v":" - "},{"$f":"IF(rawdata[[#This Row],[Fhmatch 1]]=\"YES\",((1-rawdata[[#This Row],[FWmin]]/rawdata[[#This Row],[FW]])+(1-rawdata[[#This Row],[FW]]/rawdata[[#This Row],[FWmax]]))/2,\"\")","v":""},{"$f":"IF(AND($C$4>=rawdata[[#This Row],[KDmin]],$J$11=rawdata[[#This Row],[FHq]],rawdata[[#This Row],[FW]]/2>=rawdata[[#This Row],[FWmin]],rawdata[[#This Row],[FW]]/2<=rawdata[[#This Row],[FWmax]]),\"YES\",\" - \")","v":" - "},{"$f":"IFERROR(rawdata[[#This Row],[FWmin]]*2,\" - \")","v":2.2},{"$f":"IFERROR(rawdata[[#This Row],[FWmax]]*2,\" - \")","v":{"v":3,"d":"3.0"}},{"$f":"IF(rawdata[[#This Row],[Fhmatch 2]]=\"YES\",((1-rawdata[[#This Row],[Fwmin 2]]/rawdata[[#This Row],[FW]])+(1-rawdata[[#This Row],[FW]]/rawdata[[#This Row],[FWmax 2]]))/2,\"\")","v":""}]
[null,"Push-to-open",110,400,190,"C",{"$f":"IF(rawdata[[#This Row],[Opening type]]=\"Standard\",$C$10,$C$9)","v":{"v":4.388999999999999,"d":"4.39"}},1.5,2.5,1.25,{"$f":"IF(AND($C$4>=rawdata[[#This Row],[KDmin]],$J$11=rawdata[[#This Row],[FHq]],rawdata[[#This Row],[FW]]>=rawdata[[#This Row],[FWmin]],rawdata[[#This Row],[FW]]<=rawdata[[#This Row],[FWmax]]),\"YES\",\" - \")","v":" - "},{"$f":"IF(rawdata[[#This Row],[Fhmatch 1]]=\"YES\",((1-rawdata[[#This Row],[FWmin]]/rawdata[[#This Row],[FW]])+(1-rawdata[[#This Row],[FW]]/rawdata[[#This Row],[FWmax]]))/2,\"\")","v":""},{"$f":"IF(AND($C$4>=rawdata[[#This Row],[KDmin]],$J$11=rawdata[[#This Row],[FHq]],rawdata[[#This Row],[FW]]/2>=rawdata[[#This Row],[FWmin]],rawdata[[#This Row],[FW]]/2<=rawdata[[#This Row],[FWmax]]),\"YES\",\" - \")","v":" - "},{"$f":"IFERROR(rawdata[[#This Row],[FWmin]]*2,\" - \")","v":{"v":3,"d":"3.0"}},{"$f":"IFERROR(rawdata[[#This Row],[FWmax]]*2,\" - \")","v":{"v":5,"d":"5.0"}},{"$f":"IF(rawdata[[#This Row],[Fhmatch 2]]=\"YES\",((1-rawdata[[#This Row],[Fwmin 2]]/rawdata[[#This Row],[FW]])+(1-rawdata[[#This Row],[FW]]/rawdata[[#This Row],[FWmax 2]]))/2,\"\")","v":""}]
[null,"Push-to-open",110,400,190,"D",{"$f":"IF(rawdata[[#This Row],[Opening type]]=\"Standard\",$C$10,$C$9)","v":{"v":4.388999999999999,"d":"4.39"}},2.2,3.5,1.25,{"$f":"IF(AND($C$4>=rawdata[[#This Row],[KDmin]],$J$11=rawdata[[#This Row],[FHq]],rawdata[[#This Row],[FW]]>=rawdata[[#This Row],[FWmin]],rawdata[[#This Row],[FW]]<=rawdata[[#This Row],[FWmax]]),\"YES\",\" - \")","v":" - "},{"$f":"IF(rawdata[[#This Row],[Fhmatch 1]]=\"YES\",((1-rawdata[[#This Row],[FWmin]]/rawdata[[#This Row],[FW]])+(1-rawdata[[#This Row],[FW]]/rawdata[[#This Row],[FWmax]]))/2,\"\")","v":""},{"$f":"IF(AND($C$4>=rawdata[[#This Row],[KDmin]],$J$11=rawdata[[#This Row],[FHq]],rawdata[[#This Row],[FW]]/2>=rawdata[[#This Row],[FWmin]],rawdata[[#This Row],[FW]]/2<=rawdata[[#This Row],[FWmax]]),\"YES\",\" - \")","v":" - "},{"$f":"IFERROR(rawdata[[#This Row],[FWmin]]*2,\" - \")","v":4.4},{"$f":"IFERROR(rawdata[[#This Row],[FWmax]]*2,\" - \")","v":{"v":7,"d":"7.0"}},{"$f":"IF(rawdata[[#This Row],[Fhmatch 2]]=\"YES\",((1-rawdata[[#This Row],[Fwmin 2]]/rawdata[[#This Row],[FW]])+(1-rawdata[[#This Row],[FW]]/rawdata[[#This Row],[FWmax 2]]))/2,\"\")","v":""}]
[null,"Push-to-open",110,450,190,"B",{"$f":"IF(rawdata[[#This Row],[Opening type]]=\"Standard\",$C$10,$C$9)","v":{"v":4.388999999999999,"d":"4.39"}},{"v":1,"d":"1.0"},1.3,{"v":1.1111111111111112,"d":"1.11"},{"$f":"IF(AND($C$4>=rawdata[[#This Row],[KDmin]],$J$11=rawdata[[#This Row],[FHq]],rawdata[[#This Row],[FW]]>=rawdata[[#This Row],[FWmin]],rawdata[[#This Row],[FW]]<=rawdata[[#This Row],[FWmax]]),\"YES\",\" - \")","v":" - "},{"$f":"IF(rawdata[[#This Row],[Fhmatch 1]]=\"YES\",((1-rawdata[[#This Row],[FWmin]]/rawdata[[#This Row],[FW]])+(1-rawdata[[#This Row],[FW]]/rawdata[[#This Row],[FWmax]]))/2,\"\")","v":""},{"$f":"IF(AND($C$4>=rawdata[[#This Row],[KDmin]],$J$11=rawdata[[#This Row],[FHq]],rawdata[[#This Row],[FW]]/2>=rawdata[[#This Row],[FWmin]],rawdata[[#This Row],[FW]]/2<=rawdata[[#This Row],[FWmax]]),\"YES\",\" - \")","v":" - "},{"$f":"IFERROR(rawdata[[#This Row],[FWmin]]*2,\" - \")","v":{"v":2,"d":"2.0"}},{"$f":"IFERROR(rawdata[[#This Row],[FWmax]]*2,\" - \")","v":2.6},{"$f":"IF(rawdata[[#This Row],[Fhmatch 2]]=\"YES\",((1-rawdata[[#This Row],[Fwmin 2]]/rawdata[[#This Row],[FW]])+(1-rawdata[[#This Row],[FW]]/rawdata[[#This Row],[FWmax 2]]))/2,\"\")","v":""}]
[null,"Push-to-open",110,450,190,"C",{"$f":"IF(rawdata[[#This Row],[Opening type]]=\"Standard\",$C$10,$C$9)","v":{"v":4.388999999999999,"d":"4.39"}},1.3,2.3,{"v":1.1111111111111112,"d":"1.11"},{"$f":"IF(AND($C$4>=rawdata[[#This Row],[KDmin]],$J$11=rawdata[[#This Row],[FHq]],rawdata[[#This Row],[FW]]>=rawdata[[#This Row],[FWmin]],rawdata[[#This Row],[FW]]<=rawdata[[#This Row],[FWmax]]),\"YES\",\" - \")","v":" - "},{"$f":"IF(rawdata[[#This Row],[Fhmatch 1]]=\"YES\",((1-rawdata[[#This Row],[FWmin]]/rawdata[[#This Row],[FW]])+(1-rawdata[[#This Row],[FW]]/rawdata[[#This Row],[FWmax]]))/2,\"\")","v":""},{"$f":"IF(AND($C$4>=rawdata[[#This Row],[KDmin]],$J$11=rawdata[[#This Row],[FHq]],rawdata[[#This Row],[FW]]/2>=rawdata[[#This Row],[FWmin]],rawdata[[#This Row],[FW]]/2<=rawdata[[#This Row],[FWmax]]),\"YES\",\" - \")","v":" - "},{"$f":"IFERROR(rawdata[[#This Row],[FWmin]]*2,\" - \")","v":2.6},{"$f":"IFERROR(rawdata[[#This Row],[FWmax]]*2,\" - \")","v":4.6},{"$f":"IF(rawdata[[#This Row],[Fhmatch 2]]=\"YES\",((1-rawdata[[#This Row],[Fwmin 2]]/rawdata[[#This Row],[FW]])+(1-rawdata[[#This Row],[FW]]/rawdata[[#This Row],[FWmax 2]]))/2,\"\")","v":""}]
[null,"Push-to-open",110,450,190,"D",{"$f":"IF(rawdata[[#This Row],[Opening type]]=\"Standard\",$C$10,$C$9)","v":{"v":4.388999999999999,"d":"4.39"}},{"v":2,"d":"2.0"},2.9,{"v":1.1111111111111112,"d":"1.11"},{"$f":"IF(AND($C$4>=rawdata[[#This Row],[KDmin]],$J$11=rawdata[[#This Row],[FHq]],rawdata[[#This Row],[FW]]>=rawdata[[#This Row],[FWmin]],rawdata[[#This Row],[FW]]<=rawdata[[#This Row],[FWmax]]),\"YES\",\" - \")","v":" - "},{"$f":"IF(rawdata[[#This Row],[Fhmatch 1]]=\"YES\",((1-rawdata[[#This Row],[FWmin]]/rawdata[[#This Row],[FW]])+(1-rawdata[[#This Row],[FW]]/rawdata[[#This Row],[FWmax]]))/2,\"\")","v":""},{"$f":"IF(AND($C$4>=rawdata[[#This Row],[KDmin]],$J$11=rawdata[[#This Row],[FHq]],rawdata[[#This Row],[FW]]/2>=rawdata[[#This Row],[FWmin]],rawdata[[#This Row],[FW]]/2<=rawdata[[#This Row],[FWmax]]),\"YES\",\" - \")","v":" - "},{"$f":"IFERROR(rawdata[[#This Row],[FWmin]]*2,\" - \")","v":{"v":4,"d":"4.0"}},{"$f":"IFERROR(rawdata[[#This Row],[FWmax]]*2,\" - \")","v":5.8},{"$f":"IF(rawdata[[#This Row],[Fhmatch 2]]=\"YES\",((1-rawdata[[#This Row],[Fwmin 2]]/rawdata[[#This Row],[FW]])+(1-rawdata[[#This Row],[FW]]/rawdata[[#This Row],[FWmax 2]]))/2,\"\")","v":""}]
[null,"Push-to-open",110,500,190,"B",{"$f":"IF(rawdata[[#This Row],[Opening type]]=\"Standard\",$C$10,$C$9)","v":{"v":4.388999999999999,"d":"4.39"}},"-","-",{"v":1,"d":"1.00"},{"$f":"IF(AND($C$4>=rawdata[[#This Row],[KDmin]],$J$11=rawdata[[#This Row],[FHq]],rawdata[[#This Row],[FW]]>=rawdata[[#This Row],[FWmin]],rawdata[[#This Row],[FW]]<=rawdata[[#This Row],[FWmax]]),\"YES\",\" - \")","v":" - "},{"$f":"IF(rawdata[[#This Row],[Fhmatch 1]]=\"YES\",((1-rawdata[[#This Row],[FWmin]]/rawdata[[#This Row],[FW]])+(1-rawdata[[#This Row],[FW]]/rawdata[[#This Row],[FWmax]]))/2,\"\")","v":""},{"$f":"IF(AND($C$4>=rawdata[[#This Row],[KDmin]],$J$11=rawdata[[#This Row],[FHq]],rawdata[[#This Row],[FW]]/2>=rawdata[[#This Row],[FWmin]],rawdata[[#This Row],[FW]]/2<=rawdata[[#This Row],[FWmax]]),\"YES\",\" - \")","v":" - "},{"$f":"IFERROR(rawdata[[#This Row],[FWmin]]*2,\" - \")","v":" - "},{"$f":"IFERROR(rawdata[[#This Row],[FWmax]]*2,\" - \")","v":" - "},{"$f":"IF(rawdata[[#This Row],[Fhmatch 2]]=\"YES\",((1-rawdata[[#This Row],[Fwmin 2]]/rawdata[[#This Row],[FW]])+(1-rawdata[[#This Row],[FW]]/rawdata[[#This Row],[FWmax 2]]))/2,\"\")","v":""}]
[null,"Push-to-open",110,500,190,"C",{"$f":"IF(rawdata[[#This Row],[Opening type]]=\"Standard\",$C$10,$C$9)","v":{"v":4.388999999999999,"d":"4.39"}},1.2,1.7,{"v":1,"d":"1.00"},{"$f":"IF(AND($C$4>=rawdata[[#This Row],[KDmin]],$J$11=rawdata[[#This Row],[FHq]],rawdata[[#This Row],[FW]]>=rawdata[[#This Row],[FWmin]],rawdata[[#This Row],[FW]]<=rawdata[[#This Row],[FWmax]]),\"YES\",\" - \")","v":" - "},{"$f":"IF(rawdata[[#This Row],[Fhmatch 1]]=\"YES\",((1-rawdata[[#This Row],[FWmin]]/rawdata[[#This Row],[FW]])+(1-rawdata[[#This Row],[FW]]/rawdata[[#This Row],[FWmax]]))/2,\"\")","v":""},{"$f":"IF(AND($C$4>=rawdata[[#This Row],[KDmin]],$J$11=rawdata[[#This Row],[FHq]],rawdata[[#This Row],[FW]]/2>=rawdata[[#This Row],[FWmin]],rawdata[[#This Row],[FW]]/2<=rawdata[[#This Row],[FWmax]]),\"YES\",\" - \")","v":" - "},{"$f":"IFERROR(rawdata[[#This Row],[FWmin]]*2,\" - \")","v":2.4},{"$f":"IFERROR(rawdata[[#This Row],[FWmax]]*2,\" - \")","v":3.4},{"$f":"IF(rawdata[[#This Row],[Fhmatch 2]]=\"YES\",((1-rawdata[[#This Row],[Fwmin 2]]/rawdata[[#This Row],[FW]])+(1-rawdata[[#This Row],[FW]]/rawdata[[#This Row],[FWmax 2]]))/2,\"\")","v":""}]
[null,"Push-to-open",110,500,190,"D",{"$f":"IF(rawdata[[#This Row],[Opening type]]=\"Standard\",$C$10,$C$9)","v":{"v":4.388999999999999,"d":"4.39"}},1.6,2.7,{"v":1,"d":"1.00"},{"$f":"IF(AND($C$4>=rawdata[[#This Row],[KDmin]],$J$11=rawdata[[#This Row],[FHq]],rawdata[[#This Row],[FW]]>=rawdata[[#This Row],[FWmin]],rawdata[[#This Row],[FW]]<=rawdata[[#This Row],[FWmax]]),\"YES\",\" - \")","v":" - "},{"$f":"IF(rawdata[[#This Row],[Fhmatch 1]]=\"YES\",((1-rawdata[[#This Row],[FWmin]]/rawdata[[#This Row],[FW]])+(1-rawdata[[#This Row],[FW]]/rawdata[[#This Row],[FWmax]]))/2,\"\")","v":""},{"$f":"IF(AND($C$4>=rawdata[[#This Row],[KDmin]],$J$11=rawdata[[#This Row],[FHq]],rawdata[[#This Row],[FW]]/2>=rawdata[[#This Row],[FWmin]],rawdata[[#This Row],[FW]]/2<=rawdata[[#This Row],[FWmax]]),\"YES\",\" - \")","v":"YES"},{"$f":"IFERROR(rawdata[[#This Row],[FWmin]]*2,\" - \")","v":3.2},{"$f":"IFERROR(rawdata[[#This Row],[FWmax]]*2,\" - \")","v":5.4},{"$f":"IF(rawdata[[#This Row],[Fhmatch 2]]=\"YES\",((1-rawdata[[#This Row],[Fwmin 2]]/rawdata[[#This Row],[FW]])+(1-rawdata[[#This Row],[FW]]/rawdata[[#This Row],[FWmax 2]]))/2,\"\")","v":{"v":0.22906337814232552,"d":"22.91%"}}]
[null,"Push-to-open",110,550,190,"B",{"$f":"IF(rawdata[[#This Row],[Opening type]]=\"Standard\",$C$10,$C$9)","v":{"v":4.388999999999999,"d":"4.39"}},"-","-",{"v":0.9090909090909091,"d":"0.91"},{"$f":"IF(AND($C$4>=rawdata[[#This Row],[KDmin]],$J$11=rawdata[[#This Row],[FHq]],rawdata[[#This Row],[FW]]>=rawdata[[#This Row],[FWmin]],rawdata[[#This Row],[FW]]<=rawdata[[#This Row],[FWmax]]),\"YES\",\" - \")","v":" - "},{"$f":"IF(rawdata[[#This Row],[Fhmatch 1]]=\"YES\",((1-rawdata[[#This Row],[FWmin]]/rawdata[[#This Row],[FW]])+(1-rawdata[[#This Row],[FW]]/rawdata[[#This Row],[FWmax]]))/2,\"\")","v":""},{"$f":"IF(AND($C$4>=rawdata[[#This Row],[KDmin]],$J$11=rawdata[[#This Row],[FHq]],rawdata[[#This Row],[FW]]/2>=rawdata[[#This Row],[FWmin]],rawdata[[#This Row],[FW]]/2<=rawdata[[#This Row],[FWmax]]),\"YES\",\" - \")","v":" - "},{"$f":"IFERROR(rawdata[[#This Row],[FWmin]]*2,\" - \")","v":" - "},{"$f":"IFERROR(rawdata[[#This Row],[FWmax]]*2,\" - \")","v":" - "},{"$f":"IF(rawdata[[#This Row],[Fhmatch 2]]=\"YES\",((1-rawdata[[#This Row],[Fwmin 2]]/rawdata[[#This Row],[FW]])+(1-rawdata[[#This Row],[FW]]/rawdata[[#This Row],[FWmax 2]]))/2,\"\")","v":""}]
[null,"Push-to-open",110,550,190,"C",{"$f":"IF(rawdata[[#This Row],[Opening type]]=\"Standard\",$C$10,$C$9)","v":{"v":4.388999999999999,"d":"4.39"}},1.2,1.7,{"v":0.9090909090909091,"d":"0.91"},{"$f":"IF(AND($C$4>=rawdata[[#This Row],[KDmin]],$J$11=rawdata[[#This Row],[FHq]],rawdata[[#This Row],[FW]]>=rawdata[[#This Row],[FWmin]],rawdata[[#This Row],[FW]]<=rawdata[[#This Row],[FWmax]]),\"YES\",\" - \")","v":" - "},{"$f":"IF(rawdata[[#This Row],[Fhmatch 1]]=\"YES\",((1-rawdata[[#This Row],[FWmin]]/rawdata[[#This Row],[FW]])+(1-rawdata[[#This Row],[FW]]/rawdata[[#This Row],[FWmax]]))/2,\"\")","v":""},{"$f":"IF(AND($C$4>=rawdata[[#This Row],[KDmin]],$J$11=rawdata[[#This Row],[FHq]],rawdata[[#This Row],[FW]]/2>=rawdata[[#This Row],[FWmin]],rawdata[[#This Row],[FW]]/2<=rawdata[[#This Row],[FWmax]]),\"YES\",\" - \")","v":" - "},{"$f":"IFERROR(rawdata[[#This Row],[FWmin]]*2,\" - \")","v":2.4},{"$f":"IFERROR(rawdata[[#This Row],[FWmax]]*2,\" - \")","v":3.4},{"$f":"IF(rawdata[[#This Row],[Fhmatch 2]]=\"YES\",((1-rawdata[[#This Row],[Fwmin 2]]/rawdata[[#This Row],[FW]])+(1-rawdata[[#This Row],[FW]]/rawdata[[#This Row],[FWmax 2]]))/2,\"\")","v":""}]
[null,"Push-to-open",110,550,190,"D",{"$f":"IF(rawdata[[#This Row],[Opening type]]=\"Standard\",$C$10,$C$9)","v":{"v":4.388999999999999,"d":"4.39"}},1.5,2.3,{"v":0.9090909090909091,"d":"0.91"},{"$f":"IF(AND($C$4>=rawdata[[#This Row],[KDmin]],$J$11=rawdata[[#This Row],[FHq]],rawdata[[#This Row],[FW]]>=rawdata[[#This Row],[FWmin]],rawdata[[#This Row],[FW]]<=rawdata[[#This Row],[FWmax]]),\"YES\",\" - \")","v":" - "},{"$f":"IF(rawdata[[#This Row],[Fhmatch 1]]=\"YES\",((1-rawdata[[#This Row],[FWmin]]/rawdata[[#This Row],[FW]])+(1-rawdata[[#This Row],[FW]]/rawdata[[#This Row],[FWmax]]))/2,\"\")","v":""},{"$f":"IF(AND($C$4>=rawdata[[#This Row],[KDmin]],$J$11=rawdata[[#This Row],[FHq]],rawdata[[#This Row],[FW]]/2>=rawdata[[#This Row],[FWmin]],rawdata[[#This Row],[FW]]/2<=rawdata[[#This Row],[FWmax]]),\"YES\",\" - \")","v":" - "},{"$f":"IFERROR(rawdata[[#This Row],[FWmin]]*2,\" - \")","v":{"v":3,"d":"3.0"}},{"$f":"IFERROR(rawdata[[#This Row],[FWmax]]*2,\" - \")","v":4.6},{"$f":"IF(rawdata[[#This Row],[Fhmatch 2]]=\"YES\",((1-rawdata[[#This Row],[Fwmin 2]]/rawdata[[#This Row],[FW]])+(1-rawdata[[#This Row],[FW]]/rawdata[[#This Row],[FWmax 2]]))/2,\"\")","v":""}]
[null,"Push-to-open",110,600,190,"B",{"$f":"IF(rawdata[[#This Row],[Opening type]]=\"Standard\",$C$10,$C$9)","v":{"v":4.388999999999999,"d":"4.39"}},"-","-",{"v":0.8333333333333334,"d":"0.83"},{"$f":"IF(AND($C$4>=rawdata[[#This Row],[KDmin]],$J$11=rawdata[[#This Row],[FHq]],rawdata[[#This Row],[FW]]>=rawdata[[#This Row],[FWmin]],rawdata[[#This Row],[FW]]<=rawdata[[#This Row],[FWmax]]),\"YES\",\" - \")","v":" - "},{"$f":"IF(rawdata[[#This Row],[Fhmatch 1]]=\"YES\",((1-rawdata[[#This Row],[FWmin]]/rawdata[[#This Row],[FW]])+(1-rawdata[[#This Row],[FW]]/rawdata[[#This Row],[FWmax]]))/2,\"\")","v":""},{"$f":"IF(AND($C$4>=rawdata[[#This Row],[KDmin]],$J$11=rawdata[[#This Row],[FHq]],rawdata[[#This Row],[FW]]/2>=rawdata[[#This Row],[FWmin]],rawdata[[#This Row],[FW]]/2<=rawdata[[#This Row],[FWmax]]),\"YES\",\" - \")","v":" - "},{"$f":"IFERROR(rawdata[[#This Row],[FWmin]]*2,\" - \")","v":" - "},{"$f":"IFERROR(rawdata[[#This Row],[FWmax]]*2,\" - \")","v":" - "},{"$f":"IF(rawdata[[#This Row],[Fhmatch 2]]=\"YES\",((1-rawdata[[#This Row],[Fwmin 2]]/rawdata[[#This Row],[FW]])+(1-rawdata[[#This Row],[FW]]/rawdata[[#This Row],[FWmax 2]]))/2,\"\")","v":""}]
[null,"Push-to-open",110,600,190,"C",{"$f":"IF(rawdata[[#This Row],[Opening type]]=\"Standard\",$C$10,$C$9)","v":{"v":4.388999999999999,"d":"4.39"}},1.2,1.5,{"v":0.8333333333333334,"d":"0.83"},{"$f":"IF(AND($C$4>=rawdata[[#This Row],[KDmin]],$J$11=rawdata[[#This Row],[FHq]],rawdata[[#This Row],[FW]]>=rawdata[[#This Row],[FWmin]],rawdata[[#This Row],[FW]]<=rawdata[[#This Row],[FWmax]]),\"YES\",\" - \")","v":" - "},{"$f":"IF(rawdata[[#This Row],[Fhmatch 1]]=\"YES\",((1-rawdata[[#This Row],[FWmin]]/rawdata[[#This Row],[FW]])+(1-rawdata[[#This Row],[FW]]/rawdata[[#This Row],[FWmax]]))/2,\"\")","v":""},{"$f":"IF(AND($C$4>=rawdata[[#This Row],[KDmin]],$J$11=rawdata[[#This Row],[FHq]],rawdata[[#This Row],[FW]]/2>=rawdata[[#This Row],[FWmin]],rawdata[[#This Row],[FW]]/2<=rawdata[[#This Row],[FWmax]]),\"YES\",\" - \")","v":" - "},{"$f":"IFERROR(rawdata[[#This Row],[FWmin]]*2,\" - \")","v":2.4},{"$f":"IFERROR(rawdata[[#This Row],[FWmax]]*2,\" - \")","v":{"v":3,"d":"3.0"}},{"$f":"IF(rawdata[[#This Row],[Fhmatch 2]]=\"YES\",((1-rawdata[[#This Row],[Fwmin 2]]/rawdata[[#This Row],[FW]])+(1-rawdata[[#This Row],[FW]]/rawdata[[#This Row],[FWmax 2]]))/2,\"\")","v":""}]
[null,"Push-to-open",110,600,190,"D",{"$f":"IF(rawdata[[#This Row],[Opening type]]=\"Standard\",$C$10,$C$9)","v":{"v":4.388999999999999,"d":"4.39"}},1.3,2.1,{"v":0.8333333333333334,"d":"0.83"},{"$f":"IF(AND($C$4>=rawdata[[#This Row],[KDmin]],$J$11=rawdata[[#This Row],[FHq]],rawdata[[#This Row],[FW]]>=rawdata[[#This Row],[FWmin]],rawdata[[#This Row],[FW]]<=rawdata[[#This Row],[FWmax]]),\"YES\",\" - \")","v":" - "},{"$f":"IF(rawdata[[#This Row],[Fhmatch 1]]=\"YES\",((1-rawdata[[#This Row],[FWmin]]/rawdata[[#This Row],[FW]])+(1-rawdata[[#This Row],[FW]]/rawdata[[#This Row],[FWmax]]))/2,\"\")","v":""},{"$f":"IF(AND($C$4>=rawdata[[#This Row],[KDmin]],$J$11=rawdata[[#This Row],[FHq]],rawdata[[#This Row],[FW]]/2>=rawdata[[#This Row],[FWmin]],rawdata[[#This Row],[FW]]/2<=rawdata[[#This Row],[FWmax]]),\"YES\",\" - \")","v":" - "},{"$f":"IFERROR(rawdata[[#This Row],[FWmin]]*2,\" - \")","v":2.6},{"$f":"IFERROR(rawdata[[#This Row],[FWmax]]*2,\" - \")","v":4.2},{"$f":"IF(rawdata[[#This Row],[Fhmatch 2]]=\"YES\",((1-rawdata[[#This Row],[Fwmin 2]]/rawdata[[#This Row],[FW]])+(1-rawdata[[#This Row],[FW]]/rawdata[[#This Row],[FWmax 2]]))/2,\"\")","v":""}]

{"sheet":"Імена","index":3,"n_rows":38,"n_cols":6,"rows_kept":38,"hidden":true}
["Матеріал фасаду","Щільність, кг/м3",null,"Товщина фасаду, мм",null,"Спосіб розраунку ваги"]
["ДСП",650,null,4,null,"Автоматичний"]
["МДФ",770,null,5,null,"Ручне введення"]
["ХДФ",900,null,6]
["Скло",2500,null,7]
[{"$nulls":3},8]
[{"$nulls":3},9]
[{"$nulls":3},10]
[{"$nulls":3},11]
[{"$nulls":3},12]
[{"$nulls":3},13]
[{"$nulls":3},14]
[{"$nulls":3},15]
[{"$nulls":3},16]
[{"$nulls":3},17]
[{"$nulls":3},18]
[{"$nulls":3},19]
[{"$nulls":3},20]
[{"$nulls":3},21]
[{"$nulls":3},22]
[{"$nulls":3},23]
[{"$nulls":3},24]
[{"$nulls":3},25]
[{"$nulls":3},26]
[{"$nulls":3},27]
[{"$nulls":3},28]
[{"$nulls":3},29]
[{"$nulls":3},30]
[{"$nulls":3},31]
[{"$nulls":3},32]
[{"$nulls":3},33]
[{"$nulls":3},34]
[{"$nulls":3},35]
[{"$nulls":3},36]
[{"$nulls":3},37]
[{"$nulls":3},38]
[{"$nulls":3},39]
[{"$nulls":3},40]